Workbook

Sheet PFP
A1: PROPOSTA FINANCEIRA DO PROJETO | J1: CODIGO:
J2: PFP
A3: NOME DA CONSULTORA:
A5: PROJETO: | F5: CONTRATANTE: | J5: DATA BASE:
A6: CONTRATAÇÃO DOS SERVIÇOS DE APOIO À FISCALIZAÇÃO PARA EXECUÇÃO DAS OBRAS DE ENGENHARIA, VISANDO A IMPLANTAÇÃO DO SISTEMA ADUTOR DO AGRESTE POTIGUAR, NO ESTADO DO RIO GRANDE DO NORTE. | F6: CODEVASF (SEDE) | J6: SICRO ABR/2025; SINAPI MAI/2025; EMBASA JAN/2025; ORSE ABR/2025; SUDECAP ABR/2025; SETOP JAN/2025 DATA-BASE ORÇAMENTO: JUL/2025
A7: Base | B7: Cod2 | C7: Código | D7: Categoria / Insumo | E7: Uni | F7: Qde | G7: CUD | H7: PU | I7: FatorK | J7: CT | K7: PT | L7: Encargos COMP E ADICIONAIS | M7: SOCIAIS | N7: TOTAIS | P7: Encargos Comp e Adicionais
A8: SICRO | B8: MO1 | C8: P8066 | D8: Engenheiro Pleno | E8: mês | F8: 63 | G8: =VLOOKUP(C8,'MDO - DNIT'!$A:$Z,4,0) -> 14740.22 | H8: =ROUND(I8*G8,2) -> 31547.02 | I8: ='PFP2.1_FatorKa'!$E$36 -> 2.1402 | J8: =ROUND(G8*F8,2) -> 928633.86 | K8: =ROUND(H8*F8,2) -> 1987462.26 | L8: =N8-M8 -> 1026.89 | M8: 13451.98 | N8: 14478.87 | P8: =VLOOKUP(C8,'MDO - DNIT'!$A:$Z,26,0) -> 1091.79
A9: SICRO | B9: MO1 | C9: P8065 | D9: Engenheiro - Profissional Júnior | E9: mês | F9: 180 | G9: =VLOOKUP(C9,'MDO - DNIT'!$A:$Z,4,0) -> 12903 | H9: =ROUND(I9*G9,2) -> 27615 | I9: ='PFP2.1_FatorKa'!$E$36 -> 2.1402 | J9: =ROUND(G9*F9,2) -> 2322540 | K9: =ROUND(H9*F9,2) -> 4970700 | P9: =VLOOKUP(C9,'MDO - DNIT'!$A:$Z,26,0) -> 1091.8
A10: SICRO | B10: MO1 | C10: P8057 | D10: Engenheiro Ambiental Júnior | E10: mês | F10: 60 | G10: =VLOOKUP(C10,'MDO - DNIT'!$A:$Z,4,0) -> 12903 | H10: 27615 | I10: ='PFP2.1_FatorKa'!$E$36 -> 2.1402 | J10: 774180 | K10: 1656900 | L10: 1030.19 | M10: 8980.37 | N10: 10010.56 | P10: =VLOOKUP(C10,'MDO - DNIT'!$A:$Z,26,0) -> 1092.68
A11: SICRO | B11: MO1 | C11: P8026 | D11: Auxiliar de Administrativo | E11: mês | F11: =60+60 -> 120 | G11: =VLOOKUP(C11,'MDO - DNIT'!$A:$Z,4,0) -> 1931.52 | H11: 4133.84 | I11: ='PFP2.1_FatorKa'!$E$36 -> 2.1402 | J11: 231782.4 | K11: 496060.8 | L11: 1070.18 | M11: 2450.48 | N11: 3520.66 | P11: =VLOOKUP(C11,'MDO - DNIT'!$A:$Z,26,0) -> 1198.58
A12: SICRO | B12: MO1 | C12: P8147 | D12: Técnico - Profissional Especial | E12: mês | F12: =3*55 -> 165 | G12: =VLOOKUP(C12,'MDO - DNIT'!$A:$Z,4,0) -> 3268.63 | H12: 6995.52 | I12: ='PFP2.1_FatorKa'!$E$36 -> 2.1402 | J12: 539323.95 | K12: 1154260.8 | L12: 1070.18 | M12: 2450.48 | N12: 3520.66 | P12: =VLOOKUP(C12,'MDO - DNIT'!$A:$Z,26,0) -> 1147.78
A13: SICRO | B13: MO1 | C13: P8147 | D13: Técnico Mecânico | E13: mês | F13: 45 | G13: =VLOOKUP(C13,'MDO - DNIT'!$A:$Z,4,0) -> 3268.63 | H13: 6995.52 | I13: ='PFP2.1_FatorKa'!$E$36 -> 2.1402 | J13: 147088.35 | K13: 314798.4 | P13: =VLOOKUP(C13,'MDO - DNIT'!$A:$Z,26,0) -> 1147.78
A14: SICRO | B14: MO1 | C14: P8147 | D14: Técnico Eletrotécnico | E14: mês | F14: 45 | G14: =VLOOKUP(C14,'MDO - DNIT'!$A:$Z,4,0) -> 3268.63 | H14: 6995.52 | I14: ='PFP2.1_FatorKa'!$E$36 -> 2.1402 | J14: 147088.35 | K14: 314798.4 | P14: =VLOOKUP(C14,'MDO - DNIT'!$A:$Z,26,0) -> 1147.78
A15: SICRO | B15: MO1 | C15: P8163 | D15: Topógrafo | E15: mês | F15: =2*60 -> 120 | G15: =VLOOKUP(C15,'MDO - DNIT'!$A:$Z,4,0) -> 2558.11 | H15: 5474.87 | I15: ='PFP2.1_FatorKa'!$E$36 -> 2.1402 | J15: 306973.2 | K15: 656984.4 | P15: =VLOOKUP(C15,'MDO - DNIT'!$A:$Z,26,0) -> 1190.81
A16: SICRO | B16: MO1 | C16: P8028 | D16: Auxiliar topografo | E16: mês | F16: =2*60 -> 120 | G16: =VLOOKUP(C16,'MDO - DNIT'!$A:$Z,4,0) -> 1665.28 | H16: 3564.03 | I16: ='PFP2.1_FatorKa'!$E$36 -> 2.1402 | J16: 199833.6 | K16: 427683.6 | P16: =VLOOKUP(C16,'MDO - DNIT'!$A:$Z,26,0) -> 1248.47
A17: SICRO | B17: MO1 | C17: P8147 | D17: Técnico de Edificações | E17: mês | F17: =2*55 -> 110 | G17: =VLOOKUP(C17,'MDO - DNIT'!$A:$Z,4,0) -> 3268.63 | H17: 6995.52 | I17: ='PFP2.1_FatorKa'!$E$36 -> 2.1402 | J17: 359549.3 | K17: 769507.2 | P17: =VLOOKUP(C17,'MDO - DNIT'!$A:$Z,26,0) -> 1147.78
A18: SICRO | B18: MO1 | C18: P8147 | D18: Técnico Profissional Especial (Desenhista) | E18: mês | F18: 60 | G18: =VLOOKUP(C18,'MDO - DNIT'!$A:$Z,4,0) -> 3268.63 | H18: 6995.52 | I18: ='PFP2.1_FatorKa'!$E$36 -> 2.1402 | J18: 196117.8 | K18: 419731.2 | P18: =VLOOKUP(C18,'MDO - DNIT'!$A:$Z,26,0) -> 1147.78
A19: SICRO | B19: MO1 | C19: P8021 | D19: Assistente Social | E19: mês | F19: 60 | G19: =VLOOKUP(C19,'MDO - DNIT'!$A:$Z,4,0) -> 7579.69 | H19: 16222.05 | I19: ='PFP2.1_FatorKa'!$E$36 -> 2.1402 | J19: 454781.4 | K19: 973323 | P19: =VLOOKUP(C19,'MDO - DNIT'!$A:$Z,26,0) -> 1092.27
A20: SICRO | B20: MO1 | C20: P8098 | D20: Técnico Auxiliar (Laboratorista) | E20: mês | F20: =2*60 -> 120 | G20: =VLOOKUP(C20,'MDO - DNIT'!$A:$Z,4,0) -> 2449.31 | H20: 5242.01 | I20: ='PFP2.1_FatorKa'!$E$36 -> 2.1402 | J20: 293917.2 | K20: 629041.2 | P20: =VLOOKUP(C20,'MDO - DNIT'!$A:$Z,26,0) -> 1197.15
A21: SICRO | B21: MO1 | C21: P8027 | D21: Servente (Auxiliar de Laboratório) | E21: mês | F21: =2*60 -> 120 | G21: =VLOOKUP(C21,'MDO - DNIT'!$A:$Z,4,0) -> 1836.99 | H21: 3931.53 | I21: ='PFP2.1_FatorKa'!$E$36 -> 2.1402 | J21: 220438.8 | K21: 471783.6 | P21: =VLOOKUP(C21,'MDO - DNIT'!$A:$Z,26,0) -> 1239.98
A22: SICRO | B22: MO1 | C22: P8143 | D22: Técnico Ambiental | E22: mês | F22: 60 | G22: =VLOOKUP(C22,'MDO - DNIT'!$A:$Z,4,0) -> 2987.19 | H22: 6393.18 | I22: ='PFP2.1_FatorKa'!$E$36 -> 2.1402 | J22: 179231.4 | K22: 383590.8 | P22: =VLOOKUP(C22,'MDO - DNIT'!$A:$Z,26,0) -> 1165.7
A23: SICRO | B23: MO1 | C23: P8151 | D23: Tecnico Segurança do Trabalho | E23: mês | F23: 60 | G23: =VLOOKUP(C23,'MDO - DNIT'!$A:$Z,4,0) -> 4601.83 | H23: 9848.84 | I23: ='PFP2.1_FatorKa'!$E$36 -> 2.1402 | J23: 276109.8 | K23: 590930.4 | P23: =VLOOKUP(C23,'MDO - DNIT'!$A:$Z,26,0) -> 1095.74
A24: CODE | B24: MO2 | C24: PROP | D24: Consultoria Engenheiro Consultor - Concreto Armado | E24: und | F24: 5 | G24: ='PFP1.3_Consultoria'!G10 -> 10447.22727 | H24: 15928.89 | I24: ='PFP2.2_FatorKb'!E35 -> 1.5247 | J24: 52236.14 | K24: 79644.45 | P24: =VLOOKUP('PFP1.3_Consultoria'!B8,'MDO - DNIT'!$A:$Z,26,0) -> 1089.45
A25: CODE | B25: MO2 | C25: PROP | D25: Consultoria Engenheiro Consultor - Transiente Hidráulico | E25: und | F25: 5 | G25: ='PFP1.3_Consultoria'!G15 -> 10447.22727 | H25: 15928.89 | I25: ='PFP2.2_FatorKb'!E35 -> 1.5247 | J25: 52236.14 | K25: 79644.45 | P25: =VLOOKUP('PFP1.3_Consultoria'!B13,'MDO - DNIT'!$A:$Z,26,0) -> 1089.45
A26: CODE | B26: MO2 | C26: PROP | D26: Consultoria Geólogo | E26: und | F26: 5 | G26: ='PFP1.3_Consultoria'!G20 -> 10447.22727 | H26: 15928.89 | I26: ='PFP2.2_FatorKb'!E35 -> 1.5247 | J26: 52236.14 | K26: 79644.45 | P26: =VLOOKUP('PFP1.3_Consultoria'!B18,'MDO - DNIT'!$A:$Z,26,0) -> 1089.45
A27: SICRO | B27: LO | C27: B8958 | D27: Cesta de Instalações Topografia | E27: mês | F27: 120 | G27: ='C.G - DNIT'!G23 -> 5150.27 | H27: 6232.34 | I27: =PFP3_FatorKd!E17 -> 1.2101 | J27: 618032.4 | K27: 747880.8
A28: CODE | B28: LO | C28: PROP | D28: PICK-UP - CD 4X4 Diesel | E28: mês | F28: =3*60 -> 180 | G28: ='CPU-VEICULO_PickUp'!C52 -> 2693.957296 | H28: 3259.96 | I28: =PFP3_FatorKd!E17 -> 1.2101 | J28: 484912.31 | K28: 586792.8
A29: CODE | B29: LO | C29: PROP | D29: Veículo leve - 71 a 115 CV | E29: mês | F29: 363 | G29: ='CPU-VEICULO_Leve'!D49 -> 1183.62029 | H29: 1432.3 | I29: =PFP3_FatorKd!E17 -> 1.2101 | J29: 429654.17 | K29: 519924.9
A30: CODE | B30: EM | C30: PROP | D30: Aquisição de GPS | E30: und | F30: 1 | G30: ='AUX - GPS'!E8 -> 3890.89 | H30: 4708.37 | I30: =PFP3_FatorKd!E17 -> 1.2101 | J30: 3890.89 | K30: 4708.37
A31: CODE | B31: LO | C31: PROP | D31: Passagem ida e volta | E31: und | F31: =9+4+4 -> 17 | G31: ='Cotação Voos'!C106 -> 1607 | H31: 1944.63 | I31: =PFP3_FatorKd!E17 -> 1.2101 | J31: 27319 | K31: 33058.71
A32: CODE | B32: LO | C32: PROP | D32: Diaria | E32: und | F32: =F31*4 -> 68 | G32: ='CPU HOSPEDAGEM'!C19 -> 160.8575758 | H32: 194.65 | I32: =PFP3_FatorKd!E17 -> 1.2101 | J32: 10938.32 | K32: 13236.2
A33: CODE | B33: LO | C33: PROP | D33: Infraestrutura e Equipamentos de Escritório | E33: unid | F33: 1 | G33: ='PFP1.2_Equi_div'!G11 -> 548146.77 | H33: 663312.41 | I33: =PFP3_FatorKd!E17 -> 1.2101 | J33: 548146.77 | K33: 663312.41
A34: CODE | B34: EC | C34: SICRO | D34: Encargos Complementares Adicionais | E34: mês | F34: =SUM(F8:F26) -> 1523 | G34: =AVERAGE(P8:P26) -> 1142.748421 | H34: =ROUND(I34*G34,2) -> 1382.84 | I34: =PFP3_FatorKd!E17 -> 1.2101 | J34: 1740405.85 | K34: 2106065.32
A35: TOTAL DOS CUSTOS DIRETOS | H35: =SUM(J8:J34) -> 11597597.54
A36: TOTAL DOS ENCARGOS E DESPESAS DIVERSAS | H36: =H37-H35 -> 9533871.38
A37: TOTAL DA PROPOSTA A PREÇO GLOBAL | H37: =SUM(K8:K34) -> 21131468.92
A38: TOTAL DA PROPOSTA | H38: =H37 -> 21131468.92
A39: OBSERVAÇÃO:
A40: *Encargos Complementares e adicionais já incluem auxílio transporte
A41: Alocar os Insumos MO, com respectivo FatorK, dentro da categoria de vínculo contratual (celetista, autonomo, societario)
A42: Uni - unidade de medição do insumo;
A43: Qde - Quantidade do Insumo (não pode ocorrer alteração pela Licitante)
A44: CUD - Custo Unitário Direto do Insumo (sem encargos, taxas e impostos, valor não pode ser maior que o Orçado pela Codevasf)
A45: CT - Custo Total (sem encargos, taxas e impostos) - CT = Qde x CUD
A46: FatorK - Taxa de Ressarcimento de Despesas e Encargos (detalhar composição nas Planilhas "PFP2.1", "PFP2.2", "PFP3")
A47: PU - Preço Unitário do Insumo (incluído encargos, taxas e impostos) - PU = CUD x FatorK
A48: PT - Preço Total do Insumo (incluído encargos, taxas e impostos) - PT = Qde x PU
A49: P - Profissionais nível superior nas áreas de Engenharia, Química, Arquitetura, Agronomia e Veterinária, conforme disposições da Lei 4.950-A/66 | P49: OBSERVAÇÃO:
A50: S - Profissionais de nível superior nas demais áreas de atuação, incluindo Arqueólogo, Biólogo, Geógrafo e Sociólogo | P50: A mão de obra do Sinapi já possui encargos sociais, por isso deve se usar o "fator K" sem encargos
A51: T - Profissionais de nível médio técnico nas diversas áreas de atuação
A52: A - Profissionais de nível médio de apoio técnico-administrativo
A54: Observações:
A55: 1- Sistemas oficiais de referência de preços utilizados
A56: Tabela Consultiva do DNIT-Out/2022.
A57: SINAPI/GO - 11/2022

Sheet PFP1.1Serv Graficos
A3: Serviços Gráficos
A5: Serviço | C5: Referencia | D5: Código | E5: Valor | H5: 1 Vol Impressão Rel Final
A6: Impressão colorida | C6: SETOP/COMPOSIÇÃO | D6: CO-2019 | E6: 1.8 | G6: Preto | H6: =C17*E7 -> 97.65
A7: Impressão preta | C7: SETOP/COMPOSIÇÃO | D7: CO-2017 | E7: 0.31 | G7: Colorida | H7: =D17*E6 -> 63
A8: Encadernação até 350 fls. | C8: EMBASA/COMPOSIÇÃO | D8: 30.02.30 / 30.02.27 | E8: =20+7.2 -> 27.2 | F8: Foi considerado a soma de 2 composições, com encadernação de 250 e 100 folhas | G8: Encader | H8: =E8 -> 27.2
A9: Encadernação até 50 fls. | C9: EMBASA/COMPOSIÇÃO | D9: 30.02.26 | E9: 6 | G9: Total | H9: =SUM(H6:H8) -> 187.85
A10: Encadernação até 100 fls. | C10: EMBASA/COMPOSIÇÃO | D10: 30.02.27 | E10: 7.2
A11: Impressão em A3 | C11: SETOP/COMPOSIÇÃO | D11: CO-2020 / CO-2018 | E11: =(4.33+0.83)/2 -> 2.58 | F11: Foi considerado o valor médio entre a impressão colorida e preta/branco | H11: 1 Rel A3
A12: Impressão em A1 | C12: - | D12: - | E12: =2*E11 -> 5.16 | F12: Foi considerado o dobro do valor da impressão A3 | G12: Impresão A3 | H12: =B18*E11 -> 645
A13: Impressão em A0 | C13: - | D13: - | E13: =2*E12 -> 10.32 | F13: Foi considerado o dobro do valor da impressão A1 | G13: Encader | H13: =E8 -> 27.2
G14: Total | H14: =SUM(H12:H13) -> 672.2
A15: RELATÓRIO FINAL
A16: Qtd Rel Final (Volumes) | B16: Qtd Pág por Volume | C16: Qtd Impressão Preta | D16: Qtd Impressão Color | E16: Custo Unitário Parcial
A17: 3 | B17: 350 | C17: =B17*0.9 -> 315 | D17: =B17*0.1 -> 35 | E17: =H9*A17 -> 563.55 | F17: Estimamos 90% do total de páginas de impressões pretas e 10% coloridas.
A18: Peça Gráfica - Impressão em A3 | B18: 250 | E18: =ROUND(((B18*E11)+E8),2) -> 672.2
A19: Peça Gráfica - Impressão em A1 | B19: 50 | E19: =ROUND(((B19*E12)+E8),2) -> 285.2
A20: Custo Unitário Rel Final | E20: =SUM(E17:E19) -> 1520.95
A23: MINUTA DO RELATÓRIO FINAL
A24: Qtd Rel Final (Volumes) | B24: Qtd Pág por Volume | C24: Qtd Impressão Preta | D24: Qtd Impressão Color | E24: Custo Unitário Parcial
A25: 3 | B25: 350 | C25: =B25*0.9 -> 315 | D25: =B25*0.1 -> 35 | E25: =H9*A25 -> 563.55
A26: Peça Gráfica - Impressão em A4 | B26: 350 | E26: =(E7*B26)+H8 -> 135.7
A28: Custo Unitário Rel Final | E28: =SUM(E25:E26) -> 699.25
A31: Descrição | B31: Qtd Pág por Volume | C31: Qtd Impressão Preta | D31: Qtd Impressão Color | E31: Custo Unitário Total
A32: Relatório Mensal | B32: 50 | C32: =B32*0.9 -> 45 | D32: =B32*0.1 -> 5 | E32: =H36 -> 28.95 | F32: Estimamos a quantidade de página por volume. | H32: 1 Rel Mensal | I32: 1 Rel Parcial
A33: Relatório Parcial | B33: 100 | C33: =B33*0.9 -> 90 | D33: =B33*0.1 -> 10 | E33: =I36 -> 53.1 | F33: Estimamos a quantidade de página por volume. | H33: =C32*E7 -> 13.95 | I33: =C33*E7 -> 27.9
A34: Minuta do Relatório Final | E34: =E28 -> 699.25 | H34: =D32*E6 -> 9 | I34: =D33*E6 -> 18
A35: Relatório Final | E35: =E20 -> 1520.95 | H35: =E9 -> 6 | I35: =E10 -> 7.2
G36: Total | H36: =SUM(H33:H35) -> 28.95 | I36: =SUM(I33:I35) -> 53.1
A38: OBS: A quantidade de páginas por volume foi estimada
A39: 1 - Relatório Mensal: Será considerado 01 Volume com uma quantidade estimada de 50 páginas.
A40: 2 - Relatório Parcial: Será considerado 01 Volumes com uma quantidade estimada de 100 páginas.
A41: 3 - Minuta do Relatório Final: Será considerado 03 Volumes com uma quantidade estimada de 350 páginas, cada, + 01 Volume de desenho em Folha A4, com estimativa de 350 páginas.
A42: 4 - Relatório Final: Será considerado 03 Volumes com uma quantidade estimada de 350 páginas, cada, + 01 Volume de desenho em Folha A3, com estimativa de 350 páginas.

Sheet PFP1.3_Consultoria
A1: CONSULTORIA | G1: CODIGO:
G2: PFP1.3
A3: NOME DA EMPRESA:
A5: PROJETO: | E5: CONTRATANTE: | G5: =PFP!J5 -> DATA BASE:
A6: CONTRATAÇÃO DOS SERVIÇOS DE APOIO À FISCALIZAÇÃO PARA EXECUÇÃO DAS OBRAS DE ENGENHARIA, VISANDO A IMPLANTAÇÃO DO SISTEMA ADUTOR DO AGRESTE POTIGUAR, NO ESTADO DO RIO GRANDE DO NORTE. | E6: CODEVASF (SEDE) | G6: =PFP!J6 -> SICRO ABR/2025; SINAPI MAI/2025; EMBASA JAN/2025; ORSE ABR/2025; SUDECAP ABR/2025; SETOP JAN/2025 DATA-BASE ORÇAMENTO: JUL/2025
A7: Base | B7: Código | C7: Insumos | D7: Uni | E7: Qde | F7: Custo Unitário (PU) | G7: Custo Total (PT)
A8: SICRO | B8: P8060 | C8: Engenheiro Consultor - Concreto Armado | D8: hora | E8: =80/176 -> 0.4545454545 | F8: =VLOOKUP(B8,'MDO - DNIT'!$A:$Z,4,0) -> 22750.26 | G8: =E8*F8 -> 10341.02727
A9: CODE | B9: PROP | C9: Relatório | D9: und | E9: 2 | F9: ='PFP1.1Serv Graficos'!E33 -> 53.1 | G9: =E9*F9 -> 106.2
A10: TOTAL | G10: =SUM(G8:G9) -> 10447.22727
A13: SICRO | B13: P8060 | C13: Engenheiro Consultor - Transiente Hidráulico | D13: hora | E13: =80/176 -> 0.4545454545 | F13: =VLOOKUP(B13,'MDO - DNIT'!$A:$Z,4,0) -> 22750.26 | G13: =E13*F13 -> 10341.02727
A14: CODE | B14: PROP | C14: Relatório | D14: und | E14: 2 | F14: =F9 -> 53.1 | G14: 106.2
A15: TOTAL | G15: =SUM(G13:G14) -> 10447.22727
A18: SICRO | B18: P8060 | C18: Geólogo Consultor - Adutora | D18: hora | E18: =80/176 -> 0.4545454545 | F18: =VLOOKUP(B18,'MDO - DNIT'!$A:$Z,4,0) -> 22750.26 | G18: =E18*F18 -> 10341.02727
A19: CODE | B19: PROP | C19: Relatório | D19: und | E19: 2 | F19: =F9 -> 53.1 | G19: 106.2
A20: TOTAL | G20: =SUM(G18:G19) -> 10447.22727

Sheet PFP1.2_Equi_div
A1: RECURSOS GERAIS | G1: CODIGO:
G2: PFP1.4
A3: NOME DA EMPRESA:
A5: PROJETO: | E5: CONTRATANTE: | G5: =PFP!J5 -> DATA BASE:
A6: ='PFP1.3_Consultoria'!A6 -> CONTRATAÇÃO DOS SERVIÇOS DE APOIO À FISCALIZAÇÃO PARA EXECUÇÃO DAS OBRAS DE ENGENHARIA, VISANDO A IMPLANTAÇÃO DO SISTEMA ADUTOR DO AGRESTE POTIGUAR, NO ESTADO DO RIO GRANDE DO NORTE. | E6: CODEVASF (SEDE) | G6: =PFP!J6 -> SICRO ABR/2025; SINAPI MAI/2025; EMBASA JAN/2025; ORSE ABR/2025; SUDECAP ABR/2025; SETOP JAN/2025 DATA-BASE ORÇAMENTO: JUL/2025
A7: Base | B7: Código | C7: Insumos | D7: Uni | E7: Qde | F7: CUD | G7: CT
A8: CODE | B8: PROP | C8: Aluguel de notebook | D8: mês | E8: =63+60+60+60+60+60+60+60+60+60+60+60+60 -> 783 | F8: ='AUX - NOTEBOOK'!H10 -> 43.32 | G8: =ROUND(E8*F8,2) -> 33919.56
A9: CODE | B9: PROP | C9: Aluguel de impressora | D9: mês | E9: 63 | F9: ='AUX - IMPRESSORA'!H10 -> 25.47 | G9: =ROUND(E9*F9,2) -> 1604.61
A10: CODE | B10: PROP | C10: Escritório | D10: mês | E10: =60*1 -> 60 | F10: ='CPU ESCRIT. CONTAINER'!C14 -> 8543.71 | G10: =ROUND(E10*F10,2) -> 512622.6
A11: TOTAL | G11: =SUM(G8:G10) -> 548146.77

Sheet PFP2.1_FatorKa
A1: DETALHAMENTO DOS ENCARGOS SOCIAIS: Ka | F1: CODIGO:
F2: PFP-2.1
A3: NOME DA CONSULTORA:
A5: PROJETO: | C5: CONTRATANTE: | F5: =PFP!J5 -> DATA BASE:
A6: =PFP!A6 -> CONTRATAÇÃO DOS SERVIÇOS DE APOIO À FISCALIZAÇÃO PARA EXECUÇÃO DAS OBRAS DE ENGENHARIA, VISANDO A IMPLANTAÇÃO DO SISTEMA ADUTOR DO AGRESTE POTIGUAR, NO ESTADO DO RIO GRANDE DO NORTE. | C6: CODEVASF (SEDE) | F6: SINAPI/RN
A7: Cod | B7: DESCRIÇÃO | E7: % | F7: R$
A8: A | B8: ENCARGOS SOCIAIS BÁSICOS | E8: =ROUND(SUM(E9:E17),4) -> 0.368 | F8: =ROUND(E8*SUMIF(PFP!B:B,"MO1",PFP!J:J),2) -> 2788552.9
A9: A1 | B9: INSS | E9: 0.2 | F9: =ROUND(E9*SUMIF(PFP!B:B,"MO1",PFP!J:J),2) -> 1515517.88
A10: A2 | B10: SESI | E10: 0.015 | F10: =ROUND(E10*SUMIF(PFP!B:B,"MO1",PFP!J:J),2) -> 113663.84
A11: A3 | B11: SENAI | E11: 0.01 | F11: =ROUND(E11*SUMIF(PFP!B:B,"MO1",PFP!J:J),2) -> 75775.89
A12: A4 | B12: INCRA | E12: 0.002 | F12: =ROUND(E12*SUMIF(PFP!B:B,"MO1",PFP!J:J),2) -> 15155.18
A13: A5 | B13: SEBRAE | E13: 0.006 | F13: =ROUND(E13*SUMIF(PFP!B:B,"MO1",PFP!J:J),2) -> 45465.54
A14: A6 | B14: Salário Educação | E14: 0.025 | F14: =ROUND(E14*SUMIF(PFP!B:B,"MO1",PFP!J:J),2) -> 189439.74
A15: A7 | B15: Seguro Contra Acidentes de Trabalho | E15: 0.03 | F15: =ROUND(E15*SUMIF(PFP!B:B,"MO1",PFP!J:J),2) -> 227327.68
A16: A8 | B16: FGTS | E16: 0.08 | F16: =ROUND(E16*SUMIF(PFP!B:B,"MO1",PFP!J:J),2) -> 606207.15
A17: A9 | B17: SECONCI | E17: 0 | F17: =ROUND(E17*SUMIF(PFP!B:B,"MO1",PFP!J:J),2) -> 0
A18: B | B18: ENCARGOS SOCIAIS QUE RECEBEM INCIDÊNCIA DE "A" | E18: =ROUND(SUM(E19:E25),4) -> 0.1962 | F18: =ROUND(E18*SUMIF(PFP!B:B,"MO1",PFP!J:J),2) -> 1486723.04
A19: B3 | B19: Auxílio Enfermidade | E19: 0.0065 | F19: =ROUND(E19*SUMIF(PFP!B:B,"MO1",PFP!J:J),2) -> 49254.33
A20: B4 | B20: 13º Salário | E20: 0.0833 | F20: =ROUND(E20*SUMIF(PFP!B:B,"MO1",PFP!J:J),2) -> 631213.2
A21: B5 | B21: Licença Paternidade | E21: 0.0005 | F21: =ROUND(E21*SUMIF(PFP!B:B,"MO1",PFP!J:J),2) -> 3788.79
A22: B6 | B22: Faltas Justificadas | E22: 0.0056 | F22: =ROUND(E22*SUMIF(PFP!B:B,"MO1",PFP!J:J),2) -> 42434.5
A23: B8 | B23: Auxílio Acidente de Trabalho | E23: 0.0007 | F23: =ROUND(E23*SUMIF(PFP!B:B,"MO1",PFP!J:J),2) -> 5304.31
A24: B9 | B24: Férias Gozadas | E24: 0.0993 | F24: =ROUND(E24*SUMIF(PFP!B:B,"MO1",PFP!J:J),2) -> 752454.63
A25: B10 | B25: Salário Maternidade | E25: 0.0003 | F25: =ROUND(E25*SUMIF(PFP!B:B,"MO1",PFP!J:J),2) -> 2273.28
A26: C | B26: ENCARGOS SOCIAIS QUE NÃO RECEBEM INCIDÊNCIA DE "A" | E26: =ROUND(SUM(E27:E31),4) -> 0.0687 | F26: =ROUND(E26*SUMIF(PFP!B:B,"MO1",PFP!J:J),2) -> 520580.39
A27: C1 | B27: Aviso Prévio Indenizado | E27: 0.0391 | F27: =ROUND(E27*SUMIF(PFP!B:B,"MO1",PFP!J:J),2) -> 296283.75
A28: C2 | B28: Aviso Prévio Trabalhado | E28: 0.0009 | F28: =ROUND(E28*SUMIF(PFP!B:B,"MO1",PFP!J:J),2) -> 6819.83
A29: C3 | B29: Férias Indenizadas | E29: 0.0063 | F29: =ROUND(E29*SUMIF(PFP!B:B,"MO1",PFP!J:J),2) -> 47738.81
A30: C4 | B30: Depósito Rescisão Sem Justa Causa | E30: 0.0191 | F30: =ROUND(E30*SUMIF(PFP!B:B,"MO1",PFP!J:J),2) -> 144731.96
A31: C5 | B31: Indenização Adicional | E31: 0.0033 | F31: =ROUND(E31*SUMIF(PFP!B:B,"MO1",PFP!J:J),2) -> 25006.05
A32: D | B32: REINCIDÊNCIAS | E32: =ROUND(SUM(E33:E34),4) -> 0.0757 | F32: =ROUND(E32*SUMIF(PFP!B:B,"MO1",PFP!J:J),2) -> 573623.52
A33: D1 | B33: Reincidência de "A" sobre "B" | E33: 0.0722 | F33: =ROUND(E33*SUMIF(PFP!B:B,"MO1",PFP!J:J),2) -> 547101.96
A34: D2 | B34: Reincidência de "A" sobre Aviso Prévio Trabalhado e reincidência do FGTS sobre Aviso Prévio Indenizado | E34: 0.0035 | F34: =ROUND(E34*SUMIF(PFP!B:B,"MO1",PFP!J:J),2) -> 26521.56
A35: K1a | B35: ENCARGOS SOCIAIS | E35: =ROUND(E8+E18+E26+E32,4) -> 0.7086 | F35: =ROUND(E35*SUMIF(PFP!B:B,"MO1",PFP!J:J),2) -> 5369479.86
A36: Ka | B36: TAXA DE RESSARCIMENTO DE DESPESAS E ENCARGOS SOBRE MO1 | E36: =ROUND((1+E35+PFP3_FatorKd!E13)*(1+PFP3_FatorKd!E12)*(1+PFP3_FatorKd!E8),4) -> 2.1402
A37: OBSERVAÇÃO: CELETISTAS E EQUIVALENTES
A38: 1 - DISCRIMINAR OS ENCARGOS SOCIAIS COM SEUS RESPECTIVOS PERCENTUAS TOTALIZANDO OS MESMOS.
A39: 2 - APLICAR O % TOTAL P/ CALCULAR OS E. SOCIAIS INCIDENTES NA MÃO-DE-OBRA CELETISTAS
A40: Ka - Taxa de Ressarcimento de Despesas e Encargos sobre a Mão de Obra CELETISTA (incide apenas no Insumo Codigo MO1)
A41: Ka = (1 + K1 + K2) x (1 + K3) x (1 + K4)

Sheet PFP2.2_FatorKb
A1: DETALHAMENTO DOS ENCARGOS SOCIAIS: Kb | F1: CODIGO:
F2: PFP-2.2
A3: NOME DA CONSULTORA:
A5: PROJETO: | C5: CONTRATANTE: | F5: ='PFP2.1_FatorKa'!F5 -> DATA BASE:
A6: =PFP!A6 -> CONTRATAÇÃO DOS SERVIÇOS DE APOIO À FISCALIZAÇÃO PARA EXECUÇÃO DAS OBRAS DE ENGENHARIA, VISANDO A IMPLANTAÇÃO DO SISTEMA ADUTOR DO AGRESTE POTIGUAR, NO ESTADO DO RIO GRANDE DO NORTE. | C6: CODEVASF (SEDE) | F6: ='PFP2.1_FatorKa'!F6 -> SINAPI/RN
A7: Cod | B7: DESCRIÇÃO | E7: % | F7: R$
A8: A | B8: ENCARGOS SOCIAIS BÁSICOS | E8: =ROUND(SUM(E9:E16),4) -> 0.2 | F8: =ROUND(E8*SUMIF(PFP!$B:$B,"MO2",PFP!$J:$J),2) -> 31341.68
A9: A1 | B9: INSS | E9: 0.2 | F9: =ROUND(E9*SUMIF(PFP!$B:$B,"MO2",PFP!$J:$J),2) -> 31341.68
A10: A2 | B10: SESI | E10: 0 | F10: =ROUND(E10*SUMIF(PFP!$B:$B,"MO2",PFP!$J:$J),2) -> 0
A11: A3 | B11: SENAI | E11: 0 | F11: =ROUND(E11*SUMIF(PFP!$B:$B,"MO2",PFP!$J:$J),2) -> 0
A12: A4 | B12: INCRA | E12: 0 | F12: =ROUND(E12*SUMIF(PFP!$B:$B,"MO2",PFP!$J:$J),2) -> 0
A13: A5 | B13: SEBRAE | E13: 0 | F13: =ROUND(E13*SUMIF(PFP!$B:$B,"MO2",PFP!$J:$J),2) -> 0
A14: A6 | B14: Salário Educação | E14: 0 | F14: =ROUND(E14*SUMIF(PFP!$B:$B,"MO2",PFP!$J:$J),2) -> 0
A15: A7 | B15: Seguro Contra Acidentes de Trabalho | E15: 0 | F15: =ROUND(E15*SUMIF(PFP!$B:$B,"MO2",PFP!$J:$J),2) -> 0
A16: A8 | B16: FGTS | E16: 0 | F16: =ROUND(E16*SUMIF(PFP!$B:$B,"MO2",PFP!$J:$J),2) -> 0
A17: B | B17: ENCARGOS SOCIAIS QUE RECEBEM INCIDÊNCIA DE "A" | E17: =ROUND(SUM(E18:E24),4) -> 0 | F17: =ROUND(E17*SUMIF(PFP!$B:$B,"MO2",PFP!$J:$J),2) -> 0
A18: B3 | B18: Auxílio Enfermidade | E18: 0 | F18: =ROUND(E18*SUMIF(PFP!$B:$B,"MO2",PFP!$J:$J),2) -> 0
A19: B4 | B19: 13º Salário | E19: 0 | F19: =ROUND(E19*SUMIF(PFP!$B:$B,"MO2",PFP!$J:$J),2) -> 0
A20: B5 | B20: Licença Paternidade | E20: 0 | F20: =ROUND(E20*SUMIF(PFP!$B:$B,"MO2",PFP!$J:$J),2) -> 0
A21: B6 | B21: Faltas Justificadas | E21: 0 | F21: =ROUND(E21*SUMIF(PFP!$B:$B,"MO2",PFP!$J:$J),2) -> 0
A22: B8 | B22: Auxílio Acidente de Trabalho | E22: 0 | F22: =ROUND(E22*SUMIF(PFP!$B:$B,"MO2",PFP!$J:$J),2) -> 0
A23: B9 | B23: Férias Gozadas | E23: 0 | F23: =ROUND(E23*SUMIF(PFP!$B:$B,"MO2",PFP!$J:$J),2) -> 0
A24: B10 | B24: Salário Maternidade | E24: 0 | F24: =ROUND(E24*SUMIF(PFP!$B:$B,"MO2",PFP!$J:$J),2) -> 0
A25: C | B25: ENCARGOS SOCIAIS QUE NÃO RECEBEM INCIDÊNCIA DE "A" | E25: =ROUND(SUM(E26:E30),4) -> 0 | F25: =ROUND(E25*SUMIF(PFP!$B:$B,"MO2",PFP!$J:$J),2) -> 0
A26: C1 | B26: Aviso Prévio Indenizado | E26: 0 | F26: =ROUND(E26*SUMIF(PFP!$B:$B,"MO2",PFP!$J:$J),2) -> 0
A27: C2 | B27: Aviso Prévio Trabalhado | E27: 0 | F27: =ROUND(E27*SUMIF(PFP!$B:$B,"MO2",PFP!$J:$J),2) -> 0
A28: C3 | B28: Férias Indenizadas | E28: 0 | F28: =ROUND(E28*SUMIF(PFP!$B:$B,"MO2",PFP!$J:$J),2) -> 0
A29: C4 | B29: Depósito Rescisão Sem Justa Causa | E29: 0 | F29: =ROUND(E29*SUMIF(PFP!$B:$B,"MO2",PFP!$J:$J),2) -> 0
A30: C5 | B30: Indenização Adicional | E30: 0 | F30: =ROUND(E30*SUMIF(PFP!$B:$B,"MO2",PFP!$J:$J),2) -> 0
A31: D | B31: REINCIDÊNCIAS | E31: =ROUND(SUM(E32:E33),4) -> 0 | F31: =ROUND(E31*SUMIF(PFP!$B:$B,"MO2",PFP!$J:$J),2) -> 0
A32: D1 | B32: Reincidência de "A" sobre "B" | E32: =ROUND(E8*E17,4) -> 0 | F32: =ROUND(E32*SUMIF(PFP!$B:$B,"MO2",PFP!$J:$J),2) -> 0
A33: D2 | B33: Reincidência de "A" sobre Aviso Prévio Trabalhado e reincidência do FGTS sobre Aviso Prévio Indenizado | E33: =ROUND((E27*E8)+(E26*E16),4) -> 0 | F33: =ROUND(E33*SUMIF(PFP!$B:$B,"MO2",PFP!$J:$J),2) -> 0
A34: K1b | B34: ENCARGOS SOCIAIS | E34: =ROUND(E8+E17+E25+E31,4) -> 0.2 | F34: =ROUND(E34*SUMIF(PFP!$B:$B,"MO2",PFP!$J:$J),2) -> 31341.68
A35: Kb | B35: TAXA DE RESSARCIMENTO DE DESPESAS E ENCARGOS SOBRE MO2 | E35: =ROUND((1+E34+PFP3_FatorKd!E13)*(1+PFP3_FatorKd!E12)*(1+PFP3_FatorKd!E8),4) -> 1.5247
A36: OBSERVAÇÃO: AUTÔNOMOS E EQUIVALENTES
A37: 1 - DISCRIMINAR OS ENCARGOS SOCIAIS COM SEUS RESPECTIVOS PERCENTUAS TOTALIZANDO OS MESMOS.
A38: 2 - APLICAR O % TOTAL P/ CALCULAR OS E. SOCIAIS INCIDENTES NA MÃO-DE-OBRA AUTONÔMOS
A39: Kb - Taxa de Ressarcimento de Despesas e Encargos sobre a Mão de Obra AUTONÔMA (incide apenas no Insumo Codigo MO2)
A40: Kb = (1 + K1 + K2) x (1 + K3) x (1 + K4)

Sheet PFP2.3_FatorKc
A1: DETALHAMENTO DOS ENCARGOS SOCIAIS: Kc | F1: CODIGO:
F2: PFP-2.3
A3: NOME DA CONSULTORA:
A5: PROJETO: | C5: CONTRATANTE: | F5: ='PFP2.2_FatorKb'!F5 -> DATA BASE:
A6: =PFP!A6 -> CONTRATAÇÃO DOS SERVIÇOS DE APOIO À FISCALIZAÇÃO PARA EXECUÇÃO DAS OBRAS DE ENGENHARIA, VISANDO A IMPLANTAÇÃO DO SISTEMA ADUTOR DO AGRESTE POTIGUAR, NO ESTADO DO RIO GRANDE DO NORTE. | C6: CODEVASF (SEDE) | F6: ='PFP2.2_FatorKb'!F6 -> SINAPI/RN
A7: Cod | B7: DESCRIÇÃO | E7: % | F7: R$
A8: A | B8: ENCARGOS SOCIAIS BÁSICOS | E8: =SUM(E9:E16) -> 0 | F8: =ROUND(E8*SUMIF(PFP!$B:$B,"MO3",PFP!$J:$J),2) -> 0
A9: A1 | B9: INSS | E9: 0 | F9: =ROUND(E9*SUMIF(PFP!$B:$B,"MO3",PFP!$J:$J),2) -> 0
A10: A2 | B10: SESI | E10: 0 | F10: =ROUND(E10*SUMIF(PFP!$B:$B,"MO3",PFP!$J:$J),2) -> 0
A11: A3 | B11: SENAI | E11: 0 | F11: =ROUND(E11*SUMIF(PFP!$B:$B,"MO3",PFP!$J:$J),2) -> 0
A12: A4 | B12: INCRA | E12: 0 | F12: =ROUND(E12*SUMIF(PFP!$B:$B,"MO3",PFP!$J:$J),2) -> 0
A13: A5 | B13: SEBRAE | E13: 0 | F13: =ROUND(E13*SUMIF(PFP!$B:$B,"MO3",PFP!$J:$J),2) -> 0
A14: A6 | B14: Salário Educação | E14: 0 | F14: =ROUND(E14*SUMIF(PFP!$B:$B,"MO3",PFP!$J:$J),2) -> 0
A15: A7 | B15: Seguro Contra Acidentes de Trabalho | E15: 0 | F15: =ROUND(E15*SUMIF(PFP!$B:$B,"MO3",PFP!$J:$J),2) -> 0
A16: A8 | B16: FGTS | E16: 0 | F16: =ROUND(E16*SUMIF(PFP!$B:$B,"MO3",PFP!$J:$J),2) -> 0
A17: B | B17: ENCARGOS SOCIAIS QUE RECEBEM INCIDÊNCIA DE "A" | E17: =ROUND(SUM(E18:E24),4) -> 0 | F17: =ROUND(E17*SUMIF(PFP!$B:$B,"MO3",PFP!$J:$J),2) -> 0
A18: B3 | B18: Auxílio Enfermidade | E18: 0 | F18: =ROUND(E18*SUMIF(PFP!$B:$B,"MO3",PFP!$J:$J),2) -> 0
A19: B4 | B19: 13º Salário | E19: 0 | F19: =ROUND(E19*SUMIF(PFP!$B:$B,"MO3",PFP!$J:$J),2) -> 0
A20: B5 | B20: Licença Paternidade | E20: 0 | F20: =ROUND(E20*SUMIF(PFP!$B:$B,"MO3",PFP!$J:$J),2) -> 0
A21: B6 | B21: Faltas Justificadas | E21: 0 | F21: =ROUND(E21*SUMIF(PFP!$B:$B,"MO3",PFP!$J:$J),2) -> 0
A22: B8 | B22: Auxílio Acidente de Trabalho | E22: 0 | F22: =ROUND(E22*SUMIF(PFP!$B:$B,"MO3",PFP!$J:$J),2) -> 0
A23: B9 | B23: Férias Gozadas | E23: 0 | F23: =ROUND(E23*SUMIF(PFP!$B:$B,"MO3",PFP!$J:$J),2) -> 0
A24: B10 | B24: Salário Maternidade | E24: 0 | F24: =ROUND(E24*SUMIF(PFP!$B:$B,"MO3",PFP!$J:$J),2) -> 0
A25: C | B25: ENCARGOS SOCIAIS QUE NÃO RECEBEM INCIDÊNCIA DE "A" | E25: =ROUND(SUM(E26:E30),4) -> 0 | F25: =ROUND(E25*SUMIF(PFP!$B:$B,"MO3",PFP!$J:$J),2) -> 0
A26: C1 | B26: Aviso Prévio Indenizado | E26: 0 | F26: =ROUND(E26*SUMIF(PFP!$B:$B,"MO3",PFP!$J:$J),2) -> 0
A27: C2 | B27: Aviso Prévio Trabalhado | E27: 0 | F27: =ROUND(E27*SUMIF(PFP!$B:$B,"MO3",PFP!$J:$J),2) -> 0
A28: C3 | B28: Férias Indenizadas | E28: 0 | F28: =ROUND(E28*SUMIF(PFP!$B:$B,"MO3",PFP!$J:$J),2) -> 0
A29: C4 | B29: Depósito Rescisão Sem Justa Causa | E29: 0 | F29: =ROUND(E29*SUMIF(PFP!$B:$B,"MO3",PFP!$J:$J),2) -> 0
A30: C5 | B30: Indenização Adicional | E30: 0 | F30: =ROUND(E30*SUMIF(PFP!$B:$B,"MO3",PFP!$J:$J),2) -> 0
A31: D | B31: REINCIDÊNCIAS | E31: =ROUND(SUM(E32:E33),4) -> 0 | F31: =ROUND(E31*SUMIF(PFP!$B:$B,"MO3",PFP!$J:$J),2) -> 0
A32: D1 | B32: Reincidência de "A" sobre "B" | E32: =ROUND(E8*E17,4) -> 0 | F32: =ROUND(E32*SUMIF(PFP!$B:$B,"MO3",PFP!$J:$J),2) -> 0
A33: D2 | B33: Reincidência de "A" sobre Aviso Prévio Trabalhado e reincidência do FGTS sobre Aviso Prévio Indenizado | E33: =ROUND(E8*E27,4)+ROUND(E26*E11,4) -> 0 | F33: =ROUND(E33*SUMIF(PFP!$B:$B,"MO3",PFP!$J:$J),2) -> 0
A34: K1c | B34: ENCARGOS SOCIAIS | E34: =ROUND(E8+E17+E25+E31,4) -> 0 | F34: =ROUND(E34*SUMIF(PFP!$B:$B,"MO3",PFP!$J:$J),2) -> 0
A35: Kc | B35: TAXA DE RESSARCIMENTO DE DESPESAS E ENCARGOS SOBRE MO3 | E35: =ROUND((1+E34+PFP3_FatorKd!E13)*(1+PFP3_FatorKd!E12)*(1+PFP3_FatorKd!E8),4) -> 1.2827
A36: OBSERVAÇÃO: SOCIETÁRIOS E EQUIVALENTES
A37: 1 - DISCRIMINAR OS ENCARGOS SOCIAIS COM SEUS RESPECTIVOS PERCENTUAS TOTALIZANDO OS MESMOS.
A38: 2 - APLICAR O % TOTAL P/ CALCULAR OS E. SOCIAIS INCIDENTES NA MÃO-DE-OBRA DE SOCIETÁRIOS
A39: Kc - Taxa de Ressarcimento de Despesas e Encargos sobre a Mão de Obra SOCIETÁRIA (incide apenas no Insumo Codigo MO3)
A40: Kc = (1 + K1 + K2) x (1 + K3) x (1 + K4)

Sheet PFP3_FatorKd
A1: DESPESAS FISCAIS E CUSTOS DIVERSOS: Kd | F1: CODIGO:
F2: PFP-3
A3: NOME DA CONSULTORA:
A5: PROJETO: | C5: CONTRATANTE: | F5: ='PFP2.3_FatorKc'!F5 -> DATA BASE:
A6: =PFP!A6 -> CONTRATAÇÃO DOS SERVIÇOS DE APOIO À FISCALIZAÇÃO PARA EXECUÇÃO DAS OBRAS DE ENGENHARIA, VISANDO A IMPLANTAÇÃO DO SISTEMA ADUTOR DO AGRESTE POTIGUAR, NO ESTADO DO RIO GRANDE DO NORTE. | C6: CODEVASF (SEDE) | F6: ='PFP2.3_FatorKc'!F6 -> SINAPI/RN
A7: Cod | B7: DESCRIÇÃO1 | D7: % preço2 | E7: % custo4 | F7: R$
A8: K4 | B8: TRIBUTOS | D8: =ROUND(D9+D10+D11,4) -> 0.124 | E8: =ROUND(E9+E10+E11,4) -> 0.1416 | F8: =E8*SUM(SUMIF(PFP!$B:$B,"MO1",PFP!$J:$J)*(1+'PFP2.1_FatorKa'!$E$35)+SUMIF(PFP!$B:$B,"MO2",PFP!$J:$J)*(1+'PFP2.2_FatorKb'!$E$34)+SUMIF(PFP!$B:$B,"<>MO*",PFP!$J:$J)+$F$13+$F$12) -> 2621047.94
A9: K4.1 | B9: ISS | D9: 0.05 | E9: =ROUND((1/(1-$D$8))*D9,4) -> 0.0571 | F9: =E9*SUM(SUMIF(PFP!$B:$B,"MO1",PFP!$J:$J)*(1+'PFP2.1_FatorKa'!$E$35)+SUMIF(PFP!$B:$B,"MO2",PFP!$J:$J)*(1+'PFP2.2_FatorKb'!$E$34)+SUMIF(PFP!$B:$B,"<>MO*",PFP!$J:$J)+$F$13+$F$12) -> 1056933.88
A10: K4.2 | B10: PIS3 - aliquota efetiva aplicavel percentual-desconto | D10: =ROUND(1.65%*0.8,4) -> 0.0132 | E10: =ROUND((1/(1-$D$8))*D10,4) -> 0.0151 | F10: =E10*SUM(SUMIF(PFP!$B:$B,"MO1",PFP!$J:$J)*(1+'PFP2.1_FatorKa'!$E$35)+SUMIF(PFP!$B:$B,"MO2",PFP!$J:$J)*(1+'PFP2.2_FatorKb'!$E$34)+SUMIF(PFP!$B:$B,"<>MO*",PFP!$J:$J)+$F$13+$F$12) -> 279504.4061
A11: K4.3 | B11: COFINS3 - aliquota efetiva aplicavel percentual-desconto | D11: =ROUND(7.6%*0.8,4) -> 0.0608 | E11: =ROUND((1/(1-$D$8))*D11,4) -> 0.0694 | F11: =E11*SUM(SUMIF(PFP!$B:$B,"MO1",PFP!$J:$J)*(1+'PFP2.1_FatorKa'!$E$35)+SUMIF(PFP!$B:$B,"MO2",PFP!$J:$J)*(1+'PFP2.2_FatorKb'!$E$34)+SUMIF(PFP!$B:$B,"<>MO*",PFP!$J:$J)+$F$13+$F$12) -> 1284609.654
A12: K3 | B12: REMUNERAÇÃO DA EMPRESA (LUCRO) | E12: 0.06 | F12: =E12*SUM(SUMIF(PFP!$B:$B,"MO1",PFP!$J:$J)*(1+'PFP2.1_FatorKa'!$E$35)+SUMIF(PFP!$B:$B,"MO2",PFP!$J:$J)*(1+'PFP2.2_FatorKb'!$E$34)+SUMIF(PFP!$B:$B,"<>MO*",PFP!$J:$J)+$F$13) -> 1047748.617
A13: K2 | B13: CUSTOS DA ADMINISTRAÇÃO CENTRAL | E13: =ROUND(SUM(E14:E16),4) -> 0.06 | F13: =ROUND(E13*SUMIF(PFP!$B:$B,"MO*",PFP!$J:$J),2) -> 464057.87
A14: K2.1 | B14: Custos da administração central da empresa (diretoria, pessoal técnico de apoio e pessoal administrativo não diretamente vinculado à prestação dos serviços) | E14: 0.03 | F14: =ROUND(E14*SUMIF(PFP!$B:$B,"MO*",PFP!$J:$J),2) -> 232028.93
A15: K2.2 | B15: Outras despesas que afetam o custo de produção como treinamento, biblioteca, programa de qualidade, programa de benefícios, auditoria interna e externa | E15: 0.02 | F15: =ROUND(E15*SUMIF(PFP!$B:$B,"MO*",PFP!$J:$J),2) -> 154685.96
A16: K2.3 | B16: Despesas fixas e variaveis com patrimônio, aluguéis, comunicação, manutenção e transporte não diretamente relacionados com o custo direto dos serviços | E16: 0.01 | F16: =ROUND(E16*SUMIF(PFP!$B:$B,"MO*",PFP!$J:$J),2) -> 77342.98
A17: Kd | B17: TAXA RESSARCIMENTO DE DESPESAS SOBRE CUSTOS DIVERSOS | E17: =ROUND((1+E12)*(1+E8),4) -> 1.2101
A18: NOME DO INFORMANTE: | E18: QUALIFICAÇÃO:
A20: ASSINATURA: | E20: DATA:
A22: Observação:
A23: 1 - RELACIONAR OS CUSTOS DE ADMINISTRAÇÃO COM RESPECTIVOS PERCENTUAIS INCIDENTES NA MÃO -DE-OBRA
A24: 1 - DISCRIMINAR OS TRIBUTOS QUE INCIDEM SOBRE OS CUSTOS DA PRESTAÇÃO DOS SERVIÇOS
A25: 2 - K4 = INDICAR % DE CADA TRIBUTO E A SOMA DOS MESMOS (ex: ISS 5% + PIS 1,65% + COFINS 7,60% = 14,25%)
A26: 3 - PIS e COFINS, Regime de Incidencia Acumulativa (0,65% e 3,00% - sem percentual de desconto) ou em Regime de Incidencia Não Acumulativa (1,65% e 7,60% - aplicável percentual de desconto) de acordo com a forma de apuração do lucro no IRPJ. APRESENTAR COMPROVANTES de aproveitamento de créditos tributários dos últimos 12 meses em caso de aplicação de "percentual de desconto".
A27: 4 - AS DESPESAS FISCAIS (K4) INCIDEM SOBRE O TOTAL DA FATURA E NÃO SOBRE OS CUSTOS INCORRIDOS,
A28: DEVENDO SER CALCULADO O K4' APLICANDO-SE A SEGUINTE FÓRMULA:
A29: K4' = { [ 1 / ( 1 - K4) ] - 1 } x 100
A30: =CONCATENATE(" K4' = { [ 1 / ( 1 - ",D8," ) ] - 1 } x 100") -> K4' = { [ 1 / ( 1 - 0,124 ) ] - 1 } x 100
A31: Kc - Taxa de Ressarcimento de Despesas sobre Custos Diversos (incide sobre os Insumos Codigo DP e EM)
A32: Kc = (1 + K3) x (1 + K4)
A33: K2 - Incide sobre o Custo Total (CT) da Mão de Obra (MO* = MO1 + MO2)
A34: K3 - Incide sobre o Custo Total (CT) Mão de Obra com encargos (MO1 x Ka ou MO2 x Kb), demais Custos (DP e EM), e Custos da Administração Central (K2)
A35: K4 - Incide sobre o Custo Total (CT) Mão de Obra com encargos (MO1 x Ka ou MO2 x Kb), demais Custos (DP e EM), e Custos da Administração Central (K2) e Lucro (K3)

Sheet Cronograma Físico-Financeiro
B1: CRONOGRAMA FÍSICO-FINANCEIRO
D4: Mês 1 | E4: Mês 2 | F4: Mês 3 | G4: Mês 4 | H4: Mês 5 | I4: Mês 6 | J4: Mês 7 | K4: Mês 8 | L4: Mês 9 | M4: Mês 10 | N4: Mês 11 | O4: Mês 12 | P4: Mês 13 | Q4: Mês 14 | R4: Mês 15 | S4: Mês 16 | T4: Mês 17 | U4: Mês 18 | V4: Mês 19 | W4: Mês 20 | X4: Mês 21 | Y4: Mês 22 | Z4: Mês 23 | AA4: Mês 24 | AB4: Mês 25 | AC4: Mês 26 | AD4: Mês 27 | AE4: Mês 28 | AF4: Mês 29 | AG4: Mês 30 | AH4: Mês 31 | AI4: Mês 32 | AJ4: Mês 33 | AK4: Mês 34 | AL4: Mês 35 | AM4: Mês 36 | AN4: Mês 37 | AO4: Mês 38 | AP4: Mês 39 | AQ4: Mês 40 | AR4: Mês 41 | AS4: Mês 42 | AT4: Mês 43 | AU4: Mês 44 | AV4: Mês 45 | AW4: Mês 46 | AX4: Mês 47 | AY4: Mês 48 | AZ4: Mês 49 | BA4: Mês 50 | BB4: Mês 51 | BC4: Mês 52 | BD4: Mês 53 | BE4: Mês 54 | BF4: Mês 55 | BG4: Mês 56 | BH4: Mês 57 | BI4: Mês 58 | BJ4: Mês 59 | BK4: Mês 60 | BL4: Mês 61 | BM4: Mês 62 | BN4: Mês 63
B5: =PFP!D8 -> Engenheiro Pleno | C5: =PFP!K8 -> 1987462.26 | D5: =D6*$C$5 -> 31547.02 | E5: =E6*$C$5 -> 31547.02 | F5: 31547.02 | G5: =G6*$C$5 -> 31547.02 | H5: =H6*$C$5 -> 31547.02 | I5: =I6*$C$5 -> 31547.02 | J5: =J6*$C$5 -> 31547.02 | K5: =K6*$C$5 -> 31547.02 | L5: 31547.02 | M5: 31547.02 | N5: 31547.02 | O5: 31547.02 | P5: 31547.02 | Q5: 31547.02 | R5: 31547.02 | S5: 31547.02 | T5: 31547.02 | U5: 31547.02 | V5: 31547.02 | W5: 31547.02 | X5: 31547.02 | Y5: 31547.02 | Z5: 31547.02 | AA5: 31547.02 | AB5: 31547.02 | AC5: 31547.02 | AD5: 31547.02 | AE5: 31547.02 | AF5: 31547.02 | AG5: 31547.02 | AH5: 31547.02 | AI5: 31547.02 | AJ5: 31547.02 | AK5: 31547.02 | AL5: 31547.02 | AM5: 31547.02 | AN5: 31547.02 | AO5: 31547.02 | AP5: 31547.02 | AQ5: 31547.02 | AR5: 31547.02 | AS5: 31547.02 | AT5: 31547.02 | AU5: 31547.02 | AV5: 31547.02 | AW5: 31547.02 | AX5: 31547.02 | AY5: 31547.02 | AZ5: 31547.02 | BA5: 31547.02 | BB5: 31547.02 | BC5: 31547.02 | BD5: 31547.02 | BE5: 31547.02 | BF5: 31547.02 | BG5: 31547.02 | BH5: 31547.02 | BI5: 31547.02 | BJ5: 31547.02 | BK5: 31547.02 | BL5: 31547.02 | BM5: =BM6*$C$5 -> 31547.02 | BN5: =BN6*$C$5 -> 31547.02 | BO5: =SUM(D5:BN5) -> 1987462.26
D6: =100/63/100 -> 0.01587301587 | E6: =100/63/100 -> 0.01587301587 | F6: 0.01587301587 | G6: 0.01587301587 | H6: 0.01587301587 | I6: 0.01587301587 | J6: 0.01587301587 | K6: 0.01587301587 | L6: 0.01587301587 | M6: 0.01587301587 | N6: 0.01587301587 | O6: 0.01587301587 | P6: 0.01587301587 | Q6: 0.01587301587 | R6: 0.01587301587 | S6: 0.01587301587 | T6: 0.01587301587 | U6: 0.01587301587 | V6: 0.01587301587 | W6: 0.01587301587 | X6: 0.01587301587 | Y6: 0.01587301587 | Z6: 0.01587301587 | AA6: 0.01587301587 | AB6: 0.01587301587 | AC6: 0.01587301587 | AD6: 0.01587301587 | AE6: 0.01587301587 | AF6: 0.01587301587 | AG6: 0.01587301587 | AH6: 0.01587301587 | AI6: 0.01587301587 | AJ6: 0.01587301587 | AK6: 0.01587301587 | AL6: 0.01587301587 | AM6: 0.01587301587 | AN6: 0.01587301587 | AO6: 0.01587301587 | AP6: 0.01587301587 | AQ6: 0.01587301587 | AR6: 0.01587301587 | AS6: 0.01587301587 | AT6: 0.01587301587 | AU6: 0.01587301587 | AV6: 0.01587301587 | AW6: 0.01587301587 | AX6: 0.01587301587 | AY6: 0.01587301587 | AZ6: 0.01587301587 | BA6: 0.01587301587 | BB6: 0.01587301587 | BC6: 0.01587301587 | BD6: 0.01587301587 | BE6: 0.01587301587 | BF6: 0.01587301587 | BG6: 0.01587301587 | BH6: 0.01587301587 | BI6: 0.01587301587 | BJ6: 0.01587301587 | BK6: 0.01587301587 | BL6: 0.01587301587 | BM6: 0.01587301587 | BN6: 0.01587301587 | BO6: 1
B7: Engenheiro - Profissional Pleno | C7: =PFP!K9 -> 4970700 | D7: =D8*$C$7 -> 0 | E7: =E8*$C$7 -> 0 | F7: 0 | G7: =G8*$C$7 -> 82845 | H7: 82845 | I7: 82845 | J7: 82845 | K7: 82845 | L7: 82845 | M7: 82845 | N7: 82845 | O7: 82845 | P7: 82845 | Q7: 82845 | R7: 82845 | S7: 82845 | T7: 82845 | U7: 82845 | V7: 82845 | W7: 82845 | X7: 82845 | Y7: 82845 | Z7: 82845 | AA7: 82845 | AB7: 82845 | AC7: 82845 | AD7: 82845 | AE7: 82845 | AF7: 82845 | AG7: 82845 | AH7: 82845 | AI7: 82845 | AJ7: 82845 | AK7: 82845 | AL7: 82845 | AM7: 82845 | AN7: 82845 | AO7: 82845 | AP7: 82845 | AQ7: 82845 | AR7: 82845 | AS7: 82845 | AT7: 82845 | AU7: 82845 | AV7: 82845 | AW7: 82845 | AX7: 82845 | AY7: 82845 | AZ7: 82845 | BA7: 82845 | BB7: 82845 | BC7: 82845 | BD7: 82845 | BE7: 82845 | BF7: 82845 | BG7: 82845 | BH7: 82845 | BI7: 82845 | BJ7: 82845 | BK7: 82845 | BL7: 82845 | BM7: 82845 | BN7: 82845 | BO7: 4970700
G8: =((100/60/100)/3)*3 -> 0.01666666667 | H8: 0.01666666667 | I8: 0.01666666667 | J8: 0.01666666667 | K8: 0.01666666667 | L8: =((100/60/100)/3)*3 -> 0.01666666667 | M8: 0.01666666667 | N8: 0.01666666667 | O8: 0.01666666667 | P8: 0.01666666667 | Q8: 0.01666666667 | R8: 0.01666666667 | S8: 0.01666666667 | T8: 0.01666666667 | U8: 0.01666666667 | V8: 0.01666666667 | W8: 0.01666666667 | X8: 0.01666666667 | Y8: 0.01666666667 | Z8: 0.01666666667 | AA8: 0.01666666667 | AB8: 0.01666666667 | AC8: 0.01666666667 | AD8: 0.01666666667 | AE8: 0.01666666667 | AF8: 0.01666666667 | AG8: 0.01666666667 | AH8: 0.01666666667 | AI8: 0.01666666667 | AJ8: 0.01666666667 | AK8: 0.01666666667 | AL8: 0.01666666667 | AM8: 0.01666666667 | AN8: 0.01666666667 | AO8: 0.01666666667 | AP8: 0.01666666667 | AQ8: 0.01666666667 | AR8: 0.01666666667 | AS8: 0.01666666667 | AT8: 0.01666666667 | AU8: 0.01666666667 | AV8: 0.01666666667 | AW8: 0.01666666667 | AX8: 0.01666666667 | AY8: 0.01666666667 | AZ8: 0.01666666667 | BA8: 0.01666666667 | BB8: 0.01666666667 | BC8: 0.01666666667 | BD8: 0.01666666667 | BE8: 0.01666666667 | BF8: 0.01666666667 | BG8: 0.01666666667 | BH8: 0.01666666667 | BI8: 0.01666666667 | BJ8: 0.01666666667 | BK8: 0.01666666667 | BL8: 0.01666666667 | BM8: 0.01666666667 | BN8: 0.01666666667 | BO8: 1
B9: Engenheiro Ambiental | C9: =PFP!K10 -> 1656900 | D9: =D10*$C$9 -> 0 | E9: =E10*$C$9 -> 0 | F9: 0 | G9: 27615 | H9: 27615 | I9: 27615 | J9: 27615 | K9: 27615 | L9: 27615 | M9: 27615 | N9: 27615 | O9: 27615 | P9: 27615 | Q9: 27615 | R9: 27615 | S9: 27615 | T9: 27615 | U9: 27615 | V9: 27615 | W9: 27615 | X9: 27615 | Y9: 27615 | Z9: 27615 | AA9: 27615 | AB9: 27615 | AC9: 27615 | AD9: 27615 | AE9: 27615 | AF9: 27615 | AG9: 27615 | AH9: 27615 | AI9: 27615 | AJ9: 27615 | AK9: 27615 | AL9: 27615 | AM9: 27615 | AN9: 27615 | AO9: 27615 | AP9: 27615 | AQ9: 27615 | AR9: 27615 | AS9: 27615 | AT9: 27615 | AU9: 27615 | AV9: 27615 | AW9: 27615 | AX9: 27615 | AY9: 27615 | AZ9: 27615 | BA9: 27615 | BB9: 27615 | BC9: 27615 | BD9: 27615 | BE9: 27615 | BF9: 27615 | BG9: 27615 | BH9: 27615 | BI9: 27615 | BJ9: 27615 | BK9: 27615 | BL9: 27615 | BM9: 27615 | BN9: 27615 | BO9: 1656900
G10: =100/60/100 -> 0.01666666667 | H10: =100/60/100 -> 0.01666666667 | I10: 0.01666666667 | J10: 0.01666666667 | K10: 0.01666666667 | L10: 0.01666666667 | M10: 0.01666666667 | N10: 0.01666666667 | O10: 0.01666666667 | P10: 0.01666666667 | Q10: 0.01666666667 | R10: 0.01666666667 | S10: 0.01666666667 | T10: 0.01666666667 | U10: 0.01666666667 | V10: 0.01666666667 | W10: 0.01666666667 | X10: 0.01666666667 | Y10: 0.01666666667 | Z10: 0.01666666667 | AA10: 0.01666666667 | AB10: 0.01666666667 | AC10: 0.01666666667 | AD10: 0.01666666667 | AE10: 0.01666666667 | AF10: 0.01666666667 | AG10: 0.01666666667 | AH10: 0.01666666667 | AI10: 0.01666666667 | AJ10: 0.01666666667 | AK10: 0.01666666667 | AL10: 0.01666666667 | AM10: 0.01666666667 | AN10: 0.01666666667 | AO10: 0.01666666667 | AP10: 0.01666666667 | AQ10: 0.01666666667 | AR10: 0.01666666667 | AS10: 0.01666666667 | AT10: 0.01666666667 | AU10: 0.01666666667 | AV10: 0.01666666667 | AW10: 0.01666666667 | AX10: 0.01666666667 | AY10: 0.01666666667 | AZ10: 0.01666666667 | BA10: 0.01666666667 | BB10: 0.01666666667 | BC10: 0.01666666667 | BD10: 0.01666666667 | BE10: 0.01666666667 | BF10: 0.01666666667 | BG10: 0.01666666667 | BH10: 0.01666666667 | BI10: 0.01666666667 | BJ10: 0.01666666667 | BK10: 0.01666666667 | BL10: 0.01666666667 | BM10: 0.01666666667 | BN10: 0.01666666667 | BO10: 1
B11: Auxiliar Administrativo | C11: =PFP!K11 -> 496060.8 | D11: =D12*$C$11 -> 0 | E11: =E12*$C$11 -> 0 | F11: 0 | G11: =G12*$C$11 -> 8267.68 | H11: =H12*$C$11 -> 8267.68 | I11: 8267.68 | J11: 8267.68 | K11: 8267.68 | L11: 8267.68 | M11: 8267.68 | N11: 8267.68 | O11: 8267.68 | P11: 8267.68 | Q11: 8267.68 | R11: 8267.68 | S11: 8267.68 | T11: 8267.68 | U11: 8267.68 | V11: 8267.68 | W11: 8267.68 | X11: 8267.68 | Y11: 8267.68 | Z11: 8267.68 | AA11: 8267.68 | AB11: 8267.68 | AC11: 8267.68 | AD11: 8267.68 | AE11: 8267.68 | AF11: 8267.68 | AG11: 8267.68 | AH11: 8267.68 | AI11: 8267.68 | AJ11: 8267.68 | AK11: 8267.68 | AL11: 8267.68 | AM11: 8267.68 | AN11: 8267.68 | AO11: 8267.68 | AP11: 8267.68 | AQ11: 8267.68 | AR11: 8267.68 | AS11: 8267.68 | AT11: 8267.68 | AU11: 8267.68 | AV11: 8267.68 | AW11: 8267.68 | AX11: 8267.68 | AY11: 8267.68 | AZ11: 8267.68 | BA11: 8267.68 | BB11: 8267.68 | BC11: 8267.68 | BD11: 8267.68 | BE11: 8267.68 | BF11: 8267.68 | BG11: 8267.68 | BH11: 8267.68 | BI11: 8267.68 | BJ11: 8267.68 | BK11: 8267.68 | BL11: 8267.68 | BM11: 8267.68 | BN11: 8267.68 | BO11: 496060.8
G12: =100/120/100+100/120/100 -> 0.01666666667 | H12: =100/120/100+100/120/100 -> 0.01666666667 | I12: 0.01666666667 | J12: 0.01666666667 | K12: 0.01666666667 | L12: 0.01666666667 | M12: 0.01666666667 | N12: 0.01666666667 | O12: 0.01666666667 | P12: 0.01666666667 | Q12: 0.01666666667 | R12: 0.01666666667 | S12: 0.01666666667 | T12: 0.01666666667 | U12: 0.01666666667 | V12: 0.01666666667 | W12: 0.01666666667 | X12: 0.01666666667 | Y12: 0.01666666667 | Z12: 0.01666666667 | AA12: 0.01666666667 | AB12: 0.01666666667 | AC12: 0.01666666667 | AD12: 0.01666666667 | AE12: 0.01666666667 | AF12: 0.01666666667 | AG12: 0.01666666667 | AH12: 0.01666666667 | AI12: 0.01666666667 | AJ12: 0.01666666667 | AK12: 0.01666666667 | AL12: 0.01666666667 | AM12: 0.01666666667 | AN12: 0.01666666667 | AO12: 0.01666666667 | AP12: 0.01666666667 | AQ12: 0.01666666667 | AR12: 0.01666666667 | AS12: 0.01666666667 | AT12: 0.01666666667 | AU12: 0.01666666667 | AV12: 0.01666666667 | AW12: 0.01666666667 | AX12: 0.01666666667 | AY12: 0.01666666667 | AZ12: 0.01666666667 | BA12: 0.01666666667 | BB12: 0.01666666667 | BC12: 0.01666666667 | BD12: 0.01666666667 | BE12: 0.01666666667 | BF12: 0.01666666667 | BG12: 0.01666666667 | BH12: 0.01666666667 | BI12: 0.01666666667 | BJ12: 0.01666666667 | BK12: 0.01666666667 | BL12: 0.01666666667 | BM12: 0.01666666667 | BN12: 0.01666666667 | BO12: 1
B13: Técnico - Profissional Especial | C13: =PFP!K12 -> 1154260.8 | D13: =D14*$C$13 -> 0 | E13: =E14*$C$13 -> 0 | F13: 0 | G13: =G14*$C$13 -> 20986.56 | H13: =H14*$C$13 -> 20986.56 | I13: =I14*$C$13 -> 20986.56 | J13: =J14*$C$13 -> 20986.56 | K13: =K14*$C$13 -> 20986.56 | L13: 20986.56 | M13: 20986.56 | N13: 20986.56 | O13: 20986.56 | P13: 20986.56 | Q13: 20986.56 | R13: 20986.56 | S13: 20986.56 | T13: 20986.56 | U13: 20986.56 | V13: 20986.56 | W13: 20986.56 | X13: 20986.56 | Y13: 20986.56 | Z13: 20986.56 | AA13: 20986.56 | AB13: 20986.56 | AC13: 20986.56 | AD13: 20986.56 | AE13: 20986.56 | AF13: 20986.56 | AG13: 20986.56 | AH13: 20986.56 | AI13: 20986.56 | AJ13: 20986.56 | AK13: 20986.56 | AL13: 20986.56 | AM13: 20986.56 | AN13: 20986.56 | AO13: 20986.56 | AP13: 20986.56 | AQ13: 20986.56 | AR13: 20986.56 | AS13: 20986.56 | AT13: 20986.56 | AU13: 20986.56 | AV13: 20986.56 | AW13: 20986.56 | AX13: 20986.56 | AY13: 20986.56 | AZ13: 20986.56 | BA13: 20986.56 | BB13: 20986.56 | BC13: 20986.56 | BD13: 20986.56 | BE13: 20986.56 | BF13: 20986.56 | BG13: 20986.56 | BH13: 20986.56 | BI13: 20986.56 | BJ13: 0 | BK13: 0 | BL13: 0 | BM13: =BM14*$C$13 -> 0 | BN13: =BN14*$C$13 -> 0 | BO13: 1154260.8
G14: =100/165/100+100/165/100+100/165/100 -> 0.01818181818 | H14: 0.01818181818 | I14: 0.01818181818 | J14: 0.01818181818 | K14: 0.01818181818 | L14: 0.01818181818 | M14: =100/165/100+100/165/100+100/165/100 -> 0.01818181818 | N14: 0.01818181818 | O14: 0.01818181818 | P14: 0.01818181818 | Q14: 0.01818181818 | R14: 0.01818181818 | S14: 0.01818181818 | T14: 0.01818181818 | U14: 0.01818181818 | V14: 0.01818181818 | W14: 0.01818181818 | X14: 0.01818181818 | Y14: 0.01818181818 | Z14: 0.01818181818 | AA14: 0.01818181818 | AB14: 0.01818181818 | AC14: 0.01818181818 | AD14: 0.01818181818 | AE14: 0.01818181818 | AF14: 0.01818181818 | AG14: 0.01818181818 | AH14: 0.01818181818 | AI14: 0.01818181818 | AJ14: 0.01818181818 | AK14: 0.01818181818 | AL14: 0.01818181818 | AM14: 0.01818181818 | AN14: 0.01818181818 | AO14: 0.01818181818 | AP14: 0.01818181818 | AQ14: 0.01818181818 | AR14: 0.01818181818 | AS14: 0.01818181818 | AT14: 0.01818181818 | AU14: 0.01818181818 | AV14: 0.01818181818 | AW14: 0.01818181818 | AX14: 0.01818181818 | AY14: 0.01818181818 | AZ14: 0.01818181818 | BA14: 0.01818181818 | BB14: 0.01818181818 | BC14: 0.01818181818 | BD14: 0.01818181818 | BE14: 0.01818181818 | BF14: 0.01818181818 | BG14: 0.01818181818 | BH14: 0.01818181818 | BI14: 0.01818181818 | BO14: 1
B15: Técnico Mecânico | C15: =PFP!K13 -> 314798.4 | D15: =D16*$C$15 -> 0 | E15: =E16*$C$15 -> 0 | F15: 0 | G15: =G16*$C$15 -> 0 | H15: =H16*$C$15 -> 0 | I15: =I16*$C$15 -> 0 | J15: =J16*$C$15 -> 0 | K15: =K16*$C$15 -> 0 | L15: 0 | M15: 0 | N15: 0 | O15: 0 | P15: 0 | Q15: 0 | R15: 0 | S15: 0 | T15: 0 | U15: 0 | V15: 6995.52 | W15: 6995.52 | X15: 6995.52 | Y15: 6995.52 | Z15: 6995.52 | AA15: 6995.52 | AB15: 6995.52 | AC15: 6995.52 | AD15: 6995.52 | AE15: 6995.52 | AF15: 6995.52 | AG15: 6995.52 | AH15: 6995.52 | AI15: 6995.52 | AJ15: 6995.52 | AK15: 6995.52 | AL15: 6995.52 | AM15: 6995.52 | AN15: 6995.52 | AO15: 6995.52 | AP15: 6995.52 | AQ15: 6995.52 | AR15: 6995.52 | AS15: 6995.52 | AT15: 6995.52 | AU15: 6995.52 | AV15: 6995.52 | AW15: 6995.52 | AX15: 6995.52 | AY15: 6995.52 | AZ15: 6995.52 | BA15: 6995.52 | BB15: 6995.52 | BC15: 6995.52 | BD15: 6995.52 | BE15: 6995.52 | BF15: 6995.52 | BG15: 6995.52 | BH15: 6995.52 | BI15: 6995.52 | BJ15: 6995.52 | BK15: 6995.52 | BL15: 6995.52 | BM15: =BM16*$C$15 -> 6995.52 | BN15: 6995.52 | BO15: 314798.4
V16: =100/45/100 -> 0.02222222222 | W16: 0.02222222222 | X16: 0.02222222222 | Y16: 0.02222222222 | Z16: 0.02222222222 | AA16: 0.02222222222 | AB16: 0.02222222222 | AC16: 0.02222222222 | AD16: 0.02222222222 | AE16: 0.02222222222 | AF16: 0.02222222222 | AG16: 0.02222222222 | AH16: 0.02222222222 | AI16: 0.02222222222 | AJ16: 0.02222222222 | AK16: 0.02222222222 | AL16: 0.02222222222 | AM16: 0.02222222222 | AN16: 0.02222222222 | AO16: 0.02222222222 | AP16: 0.02222222222 | AQ16: 0.02222222222 | AR16: 0.02222222222 | AS16: 0.02222222222 | AT16: 0.02222222222 | AU16: 0.02222222222 | AV16: 0.02222222222 | AW16: 0.02222222222 | AX16: 0.02222222222 | AY16: 0.02222222222 | AZ16: 0.02222222222 | BA16: 0.02222222222 | BB16: 0.02222222222 | BC16: 0.02222222222 | BD16: 0.02222222222 | BE16: 0.02222222222 | BF16: 0.02222222222 | BG16: 0.02222222222 | BH16: 0.02222222222 | BI16: 0.02222222222 | BJ16: 0.02222222222 | BK16: 0.02222222222 | BL16: 0.02222222222 | BM16: 0.02222222222 | BN16: 0.02222222222 | BO16: 1
B17: Técnico Eletrotécnico | C17: =PFP!K14 -> 314798.4 | D17: =D18*$C$17 -> 0 | E17: =E18*$C$17 -> 0 | F17: 0 | G17: =G18*$C$17 -> 0 | H17: 0 | I17: 0 | J17: 0 | K17: 0 | L17: 0 | M17: 0 | N17: 0 | O17: 0 | P17: 0 | Q17: 0 | R17: 0 | S17: 0 | T17: 0 | U17: 0 | V17: 6995.52 | W17: =W18*$C$17 -> 6995.52 | X17: 6995.52 | Y17: 6995.52 | Z17: 6995.52 | AA17: 6995.52 | AB17: 6995.52 | AC17: 6995.52 | AD17: 6995.52 | AE17: 6995.52 | AF17: 6995.52 | AG17: 6995.52 | AH17: 6995.52 | AI17: 6995.52 | AJ17: 6995.52 | AK17: 6995.52 | AL17: 6995.52 | AM17: 6995.52 | AN17: 6995.52 | AO17: 6995.52 | AP17: 6995.52 | AQ17: 6995.52 | AR17: 6995.52 | AS17: 6995.52 | AT17: 6995.52 | AU17: 6995.52 | AV17: 6995.52 | AW17: 6995.52 | AX17: 6995.52 | AY17: 6995.52 | AZ17: 6995.52 | BA17: 6995.52 | BB17: 6995.52 | BC17: 6995.52 | BD17: 6995.52 | BE17: 6995.52 | BF17: 6995.52 | BG17: 6995.52 | BH17: 6995.52 | BI17: 6995.52 | BJ17: 6995.52 | BK17: 6995.52 | BL17: 6995.52 | BM17: =BM18*$C$17 -> 6995.52 | BN17: 6995.52 | BO17: 314798.4
V18: =100/45/100 -> 0.02222222222 | W18: 0.02222222222 | X18: 0.02222222222 | Y18: 0.02222222222 | Z18: 0.02222222222 | AA18: 0.02222222222 | AB18: 0.02222222222 | AC18: 0.02222222222 | AD18: 0.02222222222 | AE18: 0.02222222222 | AF18: 0.02222222222 | AG18: 0.02222222222 | AH18: 0.02222222222 | AI18: 0.02222222222 | AJ18: 0.02222222222 | AK18: 0.02222222222 | AL18: 0.02222222222 | AM18: 0.02222222222 | AN18: 0.02222222222 | AO18: 0.02222222222 | AP18: 0.02222222222 | AQ18: 0.02222222222 | AR18: 0.02222222222 | AS18: 0.02222222222 | AT18: 0.02222222222 | AU18: 0.02222222222 | AV18: 0.02222222222 | AW18: 0.02222222222 | AX18: 0.02222222222 | AY18: 0.02222222222 | AZ18: 0.02222222222 | BA18: 0.02222222222 | BB18: 0.02222222222 | BC18: 0.02222222222 | BD18: 0.02222222222 | BE18: 0.02222222222 | BF18: 0.02222222222 | BG18: 0.02222222222 | BH18: 0.02222222222 | BI18: 0.02222222222 | BJ18: 0.02222222222 | BK18: 0.02222222222 | BL18: 0.02222222222 | BM18: 0.02222222222 | BN18: 0.02222222222 | BO18: 1
B19: Topógrafo | C19: =PFP!K15 -> 656984.4 | D19: =D20*$C$19 -> 0 | E19: =E20*$C$19 -> 0 | F19: 0 | G19: =G20*$C$19 -> 10949.74 | H19: =H20*$C$19 -> 10949.74 | I19: 10949.74 | J19: 10949.74 | K19: 10949.74 | L19: 10949.74 | M19: 10949.74 | N19: 10949.74 | O19: 10949.74 | P19: 10949.74 | Q19: 10949.74 | R19: 10949.74 | S19: 10949.74 | T19: 10949.74 | U19: 10949.74 | V19: 10949.74 | W19: 10949.74 | X19: 10949.74 | Y19: 10949.74 | Z19: 10949.74 | AA19: 10949.74 | AB19: 10949.74 | AC19: 10949.74 | AD19: 10949.74 | AE19: 10949.74 | AF19: 10949.74 | AG19: 10949.74 | AH19: 10949.74 | AI19: 10949.74 | AJ19: 10949.74 | AK19: 10949.74 | AL19: 10949.74 | AM19: 10949.74 | AN19: 10949.74 | AO19: 10949.74 | AP19: 10949.74 | AQ19: 10949.74 | AR19: 10949.74 | AS19: 10949.74 | AT19: 10949.74 | AU19: 10949.74 | AV19: 10949.74 | AW19: 10949.74 | AX19: 10949.74 | AY19: 10949.74 | AZ19: 10949.74 | BA19: 10949.74 | BB19: 10949.74 | BC19: 10949.74 | BD19: 10949.74 | BE19: 10949.74 | BF19: 10949.74 | BG19: 10949.74 | BH19: 10949.74 | BI19: 10949.74 | BJ19: 10949.74 | BK19: 10949.74 | BL19: 10949.74 | BM19: 10949.74 | BN19: 10949.74 | BO19: 656984.4
G20: =100/120/100+100/120/100 -> 0.01666666667 | H20: =100/120/100+100/120/100 -> 0.01666666667 | I20: 0.01666666667 | J20: 0.01666666667 | K20: 0.01666666667 | L20: 0.01666666667 | M20: 0.01666666667 | N20: 0.01666666667 | O20: 0.01666666667 | P20: 0.01666666667 | Q20: 0.01666666667 | R20: 0.01666666667 | S20: 0.01666666667 | T20: 0.01666666667 | U20: 0.01666666667 | V20: 0.01666666667 | W20: 0.01666666667 | X20: 0.01666666667 | Y20: 0.01666666667 | Z20: 0.01666666667 | AA20: 0.01666666667 | AB20: 0.01666666667 | AC20: 0.01666666667 | AD20: 0.01666666667 | AE20: 0.01666666667 | AF20: 0.01666666667 | AG20: 0.01666666667 | AH20: 0.01666666667 | AI20: 0.01666666667 | AJ20: 0.01666666667 | AK20: 0.01666666667 | AL20: 0.01666666667 | AM20: 0.01666666667 | AN20: 0.01666666667 | AO20: 0.01666666667 | AP20: 0.01666666667 | AQ20: 0.01666666667 | AR20: 0.01666666667 | AS20: 0.01666666667 | AT20: 0.01666666667 | AU20: 0.01666666667 | AV20: 0.01666666667 | AW20: 0.01666666667 | AX20: 0.01666666667 | AY20: 0.01666666667 | AZ20: 0.01666666667 | BA20: 0.01666666667 | BB20: 0.01666666667 | BC20: 0.01666666667 | BD20: 0.01666666667 | BE20: 0.01666666667 | BF20: 0.01666666667 | BG20: 0.01666666667 | BH20: 0.01666666667 | BI20: 0.01666666667 | BJ20: 0.01666666667 | BK20: 0.01666666667 | BL20: 0.01666666667 | BM20: 0.01666666667 | BN20: 0.01666666667 | BO20: 1
B21: Auxiliar topografo | C21: =PFP!K16 -> 427683.6 | D21: =D22*$C$21 -> 0 | E21: =E22*$C$21 -> 0 | F21: 0 | G21: =G22*$C$21 -> 7128.06 | H21: =H22*$C$21 -> 7128.06 | I21: 7128.06 | J21: 7128.06 | K21: 7128.06 | L21: 7128.06 | M21: 7128.06 | N21: 7128.06 | O21: 7128.06 | P21: 7128.06 | Q21: 7128.06 | R21: 7128.06 | S21: 7128.06 | T21: 7128.06 | U21: 7128.06 | V21: 7128.06 | W21: 7128.06 | X21: 7128.06 | Y21: 7128.06 | Z21: 7128.06 | AA21: 7128.06 | AB21: 7128.06 | AC21: 7128.06 | AD21: 7128.06 | AE21: 7128.06 | AF21: 7128.06 | AG21: 7128.06 | AH21: 7128.06 | AI21: 7128.06 | AJ21: 7128.06 | AK21: 7128.06 | AL21: 7128.06 | AM21: 7128.06 | AN21: 7128.06 | AO21: 7128.06 | AP21: 7128.06 | AQ21: 7128.06 | AR21: 7128.06 | AS21: 7128.06 | AT21: 7128.06 | AU21: 7128.06 | AV21: 7128.06 | AW21: 7128.06 | AX21: 7128.06 | AY21: 7128.06 | AZ21: 7128.06 | BA21: 7128.06 | BB21: 7128.06 | BC21: 7128.06 | BD21: 7128.06 | BE21: 7128.06 | BF21: 7128.06 | BG21: 7128.06 | BH21: 7128.06 | BI21: 7128.06 | BJ21: 7128.06 | BK21: 7128.06 | BL21: 7128.06 | BM21: 7128.06 | BN21: 7128.06 | BO21: =SUM(D21:BN21) -> 427683.6
G22: =100/120/100+100/120/100 -> 0.01666666667 | H22: =100/120/100+100/120/100 -> 0.01666666667 | I22: 0.01666666667 | J22: 0.01666666667 | K22: 0.01666666667 | L22: 0.01666666667 | M22: 0.01666666667 | N22: 0.01666666667 | O22: 0.01666666667 | P22: 0.01666666667 | Q22: 0.01666666667 | R22: 0.01666666667 | S22: 0.01666666667 | T22: 0.01666666667 | U22: 0.01666666667 | V22: 0.01666666667 | W22: 0.01666666667 | X22: 0.01666666667 | Y22: 0.01666666667 | Z22: 0.01666666667 | AA22: 0.01666666667 | AB22: 0.01666666667 | AC22: 0.01666666667 | AD22: 0.01666666667 | AE22: 0.01666666667 | AF22: 0.01666666667 | AG22: 0.01666666667 | AH22: 0.01666666667 | AI22: 0.01666666667 | AJ22: 0.01666666667 | AK22: 0.01666666667 | AL22: 0.01666666667 | AM22: 0.01666666667 | AN22: 0.01666666667 | AO22: 0.01666666667 | AP22: 0.01666666667 | AQ22: 0.01666666667 | AR22: 0.01666666667 | AS22: 0.01666666667 | AT22: 0.01666666667 | AU22: 0.01666666667 | AV22: 0.01666666667 | AW22: 0.01666666667 | AX22: 0.01666666667 | AY22: 0.01666666667 | AZ22: 0.01666666667 | BA22: 0.01666666667 | BB22: 0.01666666667 | BC22: 0.01666666667 | BD22: 0.01666666667 | BE22: 0.01666666667 | BF22: 0.01666666667 | BG22: 0.01666666667 | BH22: 0.01666666667 | BI22: 0.01666666667 | BJ22: 0.01666666667 | BK22: 0.01666666667 | BL22: 0.01666666667 | BM22: 0.01666666667 | BN22: 0.01666666667 | BO22: 1
B23: Técnico de Edificações | C23: =PFP!K17 -> 769507.2 | D23: =D24*$C$23 -> 0 | E23: =E24*$C$23 -> 0 | F23: 0 | G23: =G24*$C$23 -> 13991.04 | H23: =H24*$C$23 -> 13991.04 | I23: 13991.04 | J23: 13991.04 | K23: 13991.04 | L23: 13991.04 | M23: 13991.04 | N23: 13991.04 | O23: 13991.04 | P23: 13991.04 | Q23: 13991.04 | R23: 13991.04 | S23: 13991.04 | T23: 13991.04 | U23: 13991.04 | V23: 13991.04 | W23: 13991.04 | X23: 13991.04 | Y23: 13991.04 | Z23: 13991.04 | AA23: 13991.04 | AB23: 13991.04 | AC23: 13991.04 | AD23: 13991.04 | AE23: 13991.04 | AF23: 13991.04 | AG23: 13991.04 | AH23: 13991.04 | AI23: 13991.04 | AJ23: 13991.04 | AK23: 13991.04 | AL23: 13991.04 | AM23: 13991.04 | AN23: 13991.04 | AO23: 13991.04 | AP23: 13991.04 | AQ23: 13991.04 | AR23: 13991.04 | AS23: 13991.04 | AT23: 13991.04 | AU23: 13991.04 | AV23: 13991.04 | AW23: 13991.04 | AX23: 13991.04 | AY23: 13991.04 | AZ23: 13991.04 | BA23: 13991.04 | BB23: 13991.04 | BC23: 13991.04 | BD23: 13991.04 | BE23: 13991.04 | BF23: 13991.04 | BG23: 13991.04 | BH23: 13991.04 | BI23: 13991.04 | BJ23: 0 | BK23: 0 | BL23: 0 | BM23: 0 | BN23: 0 | BO23: =SUM(D23:BN23) -> 769507.2
G24: =100/110/100+100/110/100 -> 0.01818181818 | H24: 0.01818181818 | I24: 0.01818181818 | J24: 0.01818181818 | K24: 0.01818181818 | L24: 0.01818181818 | M24: 0.01818181818 | N24: 0.01818181818 | O24: 0.01818181818 | P24: 0.01818181818 | Q24: 0.01818181818 | R24: 0.01818181818 | S24: =100/110/100+100/110/100 -> 0.01818181818 | T24: =100/110/100+100/110/100 -> 0.01818181818 | U24: 0.01818181818 | V24: 0.01818181818 | W24: 0.01818181818 | X24: 0.01818181818 | Y24: 0.01818181818 | Z24: 0.01818181818 | AA24: 0.01818181818 | AB24: 0.01818181818 | AC24: 0.01818181818 | AD24: 0.01818181818 | AE24: 0.01818181818 | AF24: 0.01818181818 | AG24: 0.01818181818 | AH24: 0.01818181818 | AI24: 0.01818181818 | AJ24: 0.01818181818 | AK24: 0.01818181818 | AL24: 0.01818181818 | AM24: 0.01818181818 | AN24: 0.01818181818 | AO24: 0.01818181818 | AP24: 0.01818181818 | AQ24: 0.01818181818 | AR24: 0.01818181818 | AS24: 0.01818181818 | AT24: 0.01818181818 | AU24: 0.01818181818 | AV24: 0.01818181818 | AW24: 0.01818181818 | AX24: 0.01818181818 | AY24: 0.01818181818 | AZ24: 0.01818181818 | BA24: 0.01818181818 | BB24: 0.01818181818 | BC24: 0.01818181818 | BD24: 0.01818181818 | BE24: 0.01818181818 | BF24: 0.01818181818 | BG24: 0.01818181818 | BH24: 0.01818181818 | BI24: 0.01818181818 | BO24: 1
B25: Técnico de Edificações (Cadista) | C25: =PFP!K18 -> 419731.2 | D25: =D26*$C$25 -> 0 | E25: =E26*$C$25 -> 0 | F25: 0 | G25: =G26*$C$25 -> 6995.52 | H25: =H26*$C$25 -> 6995.52 | I25: 6995.52 | J25: 6995.52 | K25: 6995.52 | L25: 6995.52 | M25: 6995.52 | N25: 6995.52 | O25: 6995.52 | P25: 6995.52 | Q25: 6995.52 | R25: 6995.52 | S25: 6995.52 | T25: 6995.52 | U25: 6995.52 | V25: 6995.52 | W25: 6995.52 | X25: 6995.52 | Y25: 6995.52 | Z25: 6995.52 | AA25: 6995.52 | AB25: 6995.52 | AC25: 6995.52 | AD25: 6995.52 | AE25: 6995.52 | AF25: 6995.52 | AG25: 6995.52 | AH25: 6995.52 | AI25: 6995.52 | AJ25: 6995.52 | AK25: 6995.52 | AL25: 6995.52 | AM25: 6995.52 | AN25: 6995.52 | AO25: 6995.52 | AP25: 6995.52 | AQ25: 6995.52 | AR25: 6995.52 | AS25: 6995.52 | AT25: 6995.52 | AU25: 6995.52 | AV25: 6995.52 | AW25: 6995.52 | AX25: 6995.52 | AY25: 6995.52 | AZ25: 6995.52 | BA25: 6995.52 | BB25: 6995.52 | BC25: 6995.52 | BD25: 6995.52 | BE25: 6995.52 | BF25: 6995.52 | BG25: 6995.52 | BH25: 6995.52 | BI25: 6995.52 | BJ25: 6995.52 | BK25: 6995.52 | BL25: 6995.52 | BM25: 6995.52 | BN25: 6995.52 | BO25: 419731.2
G26: =100/60/100 -> 0.01666666667 | H26: =100/60/100 -> 0.01666666667 | I26: 0.01666666667 | J26: 0.01666666667 | K26: 0.01666666667 | L26: 0.01666666667 | M26: 0.01666666667 | N26: 0.01666666667 | O26: 0.01666666667 | P26: 0.01666666667 | Q26: 0.01666666667 | R26: 0.01666666667 | S26: 0.01666666667 | T26: 0.01666666667 | U26: 0.01666666667 | V26: 0.01666666667 | W26: 0.01666666667 | X26: 0.01666666667 | Y26: 0.01666666667 | Z26: 0.01666666667 | AA26: 0.01666666667 | AB26: 0.01666666667 | AC26: 0.01666666667 | AD26: 0.01666666667 | AE26: 0.01666666667 | AF26: 0.01666666667 | AG26: 0.01666666667 | AH26: 0.01666666667 | AI26: 0.01666666667 | AJ26: 0.01666666667 | AK26: 0.01666666667 | AL26: 0.01666666667 | AM26: 0.01666666667 | AN26: 0.01666666667 | AO26: 0.01666666667 | AP26: 0.01666666667 | AQ26: 0.01666666667 | AR26: 0.01666666667 | AS26: 0.01666666667 | AT26: 0.01666666667 | AU26: 0.01666666667 | AV26: 0.01666666667 | AW26: 0.01666666667 | AX26: 0.01666666667 | AY26: 0.01666666667 | AZ26: 0.01666666667 | BA26: 0.01666666667 | BB26: 0.01666666667 | BC26: 0.01666666667 | BD26: 0.01666666667 | BE26: 0.01666666667 | BF26: 0.01666666667 | BG26: 0.01666666667 | BH26: 0.01666666667 | BI26: 0.01666666667 | BJ26: 0.01666666667 | BK26: 0.01666666667 | BL26: 0.01666666667 | BM26: 0.01666666667 | BN26: 0.01666666667 | BO26: 1
B27: Assistente Social | C27: =PFP!K19 -> 973323 | D27: =D28*$C$27 -> 0 | E27: =E28*$C$27 -> 0 | F27: 0 | G27: =G28*$C$27 -> 16222.05 | H27: =H28*$C$27 -> 16222.05 | I27: 16222.05 | J27: 16222.05 | K27: 16222.05 | L27: 16222.05 | M27: 16222.05 | N27: 16222.05 | O27: 16222.05 | P27: 16222.05 | Q27: 16222.05 | R27: 16222.05 | S27: 16222.05 | T27: 16222.05 | U27: 16222.05 | V27: 16222.05 | W27: 16222.05 | X27: 16222.05 | Y27: 16222.05 | Z27: 16222.05 | AA27: 16222.05 | AB27: 16222.05 | AC27: 16222.05 | AD27: 16222.05 | AE27: 16222.05 | AF27: 16222.05 | AG27: 16222.05 | AH27: 16222.05 | AI27: 16222.05 | AJ27: 16222.05 | AK27: 16222.05 | AL27: 16222.05 | AM27: 16222.05 | AN27: 16222.05 | AO27: 16222.05 | AP27: 16222.05 | AQ27: 16222.05 | AR27: 16222.05 | AS27: 16222.05 | AT27: 16222.05 | AU27: 16222.05 | AV27: 16222.05 | AW27: 16222.05 | AX27: 16222.05 | AY27: 16222.05 | AZ27: 16222.05 | BA27: 16222.05 | BB27: 16222.05 | BC27: 16222.05 | BD27: 16222.05 | BE27: 16222.05 | BF27: 16222.05 | BG27: 16222.05 | BH27: 16222.05 | BI27: 16222.05 | BJ27: 16222.05 | BK27: 16222.05 | BL27: 16222.05 | BM27: 16222.05 | BN27: 16222.05 | BO27: 973323
G28: =100/60/100 -> 0.01666666667 | H28: 0.01666666667 | I28: 0.01666666667 | J28: 0.01666666667 | K28: 0.01666666667 | L28: 0.01666666667 | M28: 0.01666666667 | N28: 0.01666666667 | O28: 0.01666666667 | P28: 0.01666666667 | Q28: 0.01666666667 | R28: 0.01666666667 | S28: 0.01666666667 | T28: 0.01666666667 | U28: 0.01666666667 | V28: 0.01666666667 | W28: 0.01666666667 | X28: 0.01666666667 | Y28: 0.01666666667 | Z28: 0.01666666667 | AA28: 0.01666666667 | AB28: 0.01666666667 | AC28: 0.01666666667 | AD28: 0.01666666667 | AE28: 0.01666666667 | AF28: 0.01666666667 | AG28: 0.01666666667 | AH28: 0.01666666667 | AI28: 0.01666666667 | AJ28: 0.01666666667 | AK28: 0.01666666667 | AL28: 0.01666666667 | AM28: 0.01666666667 | AN28: 0.01666666667 | AO28: 0.01666666667 | AP28: 0.01666666667 | AQ28: 0.01666666667 | AR28: 0.01666666667 | AS28: 0.01666666667 | AT28: 0.01666666667 | AU28: 0.01666666667 | AV28: 0.01666666667 | AW28: 0.01666666667 | AX28: 0.01666666667 | AY28: 0.01666666667 | AZ28: 0.01666666667 | BA28: 0.01666666667 | BB28: 0.01666666667 | BC28: 0.01666666667 | BD28: 0.01666666667 | BE28: 0.01666666667 | BF28: 0.01666666667 | BG28: 0.01666666667 | BH28: 0.01666666667 | BI28: 0.01666666667 | BJ28: 0.01666666667 | BK28: 0.01666666667 | BL28: 0.01666666667 | BM28: 0.01666666667 | BN28: 0.01666666667 | BO28: 1
B29: Técnico Auxiliar (Laboratorista) | C29: =PFP!K20 -> 629041.2 | D29: =D30*$C$29 -> 0 | E29: =E30*$C$29 -> 0 | F29: 0 | G29: =G30*$C$29 -> 10484.02 | H29: =H30*$C$29 -> 10484.02 | I29: 10484.02 | J29: 10484.02 | K29: 10484.02 | L29: 10484.02 | M29: 10484.02 | N29: 10484.02 | O29: 10484.02 | P29: 10484.02 | Q29: 10484.02 | R29: 10484.02 | S29: 10484.02 | T29: 10484.02 | U29: 10484.02 | V29: 10484.02 | W29: 10484.02 | X29: 10484.02 | Y29: 10484.02 | Z29: 10484.02 | AA29: 10484.02 | AB29: 10484.02 | AC29: 10484.02 | AD29: 10484.02 | AE29: 10484.02 | AF29: 10484.02 | AG29: 10484.02 | AH29: 10484.02 | AI29: 10484.02 | AJ29: 10484.02 | AK29: 10484.02 | AL29: 10484.02 | AM29: 10484.02 | AN29: 10484.02 | AO29: 10484.02 | AP29: 10484.02 | AQ29: 10484.02 | AR29: 10484.02 | AS29: 10484.02 | AT29: 10484.02 | AU29: 10484.02 | AV29: 10484.02 | AW29: 10484.02 | AX29: 10484.02 | AY29: 10484.02 | AZ29: 10484.02 | BA29: 10484.02 | BB29: 10484.02 | BC29: 10484.02 | BD29: 10484.02 | BE29: 10484.02 | BF29: 10484.02 | BG29: 10484.02 | BH29: 10484.02 | BI29: 10484.02 | BJ29: 10484.02 | BK29: 10484.02 | BL29: 10484.02 | BM29: 10484.02 | BN29: 10484.02 | BO29: 629041.2
G30: =100/120/100+100/120/100 -> 0.01666666667 | H30: =100/120/100+100/120/100 -> 0.01666666667 | I30: 0.01666666667 | J30: 0.01666666667 | K30: 0.01666666667 | L30: 0.01666666667 | M30: 0.01666666667 | N30: 0.01666666667 | O30: 0.01666666667 | P30: 0.01666666667 | Q30: 0.01666666667 | R30: 0.01666666667 | S30: 0.01666666667 | T30: 0.01666666667 | U30: 0.01666666667 | V30: 0.01666666667 | W30: 0.01666666667 | X30: 0.01666666667 | Y30: 0.01666666667 | Z30: 0.01666666667 | AA30: 0.01666666667 | AB30: 0.01666666667 | AC30: 0.01666666667 | AD30: 0.01666666667 | AE30: 0.01666666667 | AF30: 0.01666666667 | AG30: 0.01666666667 | AH30: 0.01666666667 | AI30: 0.01666666667 | AJ30: 0.01666666667 | AK30: 0.01666666667 | AL30: 0.01666666667 | AM30: 0.01666666667 | AN30: 0.01666666667 | AO30: 0.01666666667 | AP30: 0.01666666667 | AQ30: 0.01666666667 | AR30: 0.01666666667 | AS30: 0.01666666667 | AT30: 0.01666666667 | AU30: 0.01666666667 | AV30: 0.01666666667 | AW30: 0.01666666667 | AX30: 0.01666666667 | AY30: 0.01666666667 | AZ30: 0.01666666667 | BA30: 0.01666666667 | BB30: 0.01666666667 | BC30: 0.01666666667 | BD30: 0.01666666667 | BE30: 0.01666666667 | BF30: 0.01666666667 | BG30: 0.01666666667 | BH30: 0.01666666667 | BI30: 0.01666666667 | BJ30: 0.01666666667 | BK30: 0.01666666667 | BL30: 0.01666666667 | BM30: 0.01666666667 | BN30: 0.01666666667 | BO30: 1
B31: Servente Contínuo (Auxiliar de Laboratório) | C31: =PFP!K21 -> 471783.6 | D31: =D32*$C$31 -> 0 | E31: =E32*$C$31 -> 0 | F31: 0 | G31: =G32*$C$31 -> 7863.06 | H31: =H32*$C$31 -> 7863.06 | I31: 7863.06 | J31: 7863.06 | K31: 7863.06 | L31: 7863.06 | M31: 7863.06 | N31: 7863.06 | O31: 7863.06 | P31: 7863.06 | Q31: 7863.06 | R31: 7863.06 | S31: 7863.06 | T31: 7863.06 | U31: 7863.06 | V31: 7863.06 | W31: 7863.06 | X31: 7863.06 | Y31: 7863.06 | Z31: 7863.06 | AA31: 7863.06 | AB31: 7863.06 | AC31: 7863.06 | AD31: 7863.06 | AE31: 7863.06 | AF31: 7863.06 | AG31: 7863.06 | AH31: 7863.06 | AI31: 7863.06 | AJ31: 7863.06 | AK31: 7863.06 | AL31: 7863.06 | AM31: 7863.06 | AN31: 7863.06 | AO31: 7863.06 | AP31: 7863.06 | AQ31: 7863.06 | AR31: 7863.06 | AS31: 7863.06 | AT31: 7863.06 | AU31: 7863.06 | AV31: 7863.06 | AW31: 7863.06 | AX31: 7863.06 | AY31: 7863.06 | AZ31: 7863.06 | BA31: 7863.06 | BB31: 7863.06 | BC31: 7863.06 | BD31: 7863.06 | BE31: 7863.06 | BF31: 7863.06 | BG31: 7863.06 | BH31: 7863.06 | BI31: 7863.06 | BJ31: 7863.06 | BK31: 7863.06 | BL31: 7863.06 | BM31: 7863.06 | BN31: 7863.06 | BO31: 471783.6
G32: =100/120/100+100/120/100 -> 0.01666666667 | H32: =100/120/100+100/120/100 -> 0.01666666667 | I32: 0.01666666667 | J32: 0.01666666667 | K32: 0.01666666667 | L32: 0.01666666667 | M32: 0.01666666667 | N32: 0.01666666667 | O32: 0.01666666667 | P32: 0.01666666667 | Q32: 0.01666666667 | R32: 0.01666666667 | S32: 0.01666666667 | T32: 0.01666666667 | U32: 0.01666666667 | V32: 0.01666666667 | W32: 0.01666666667 | X32: 0.01666666667 | Y32: 0.01666666667 | Z32: 0.01666666667 | AA32: 0.01666666667 | AB32: 0.01666666667 | AC32: 0.01666666667 | AD32: 0.01666666667 | AE32: 0.01666666667 | AF32: 0.01666666667 | AG32: 0.01666666667 | AH32: 0.01666666667 | AI32: 0.01666666667 | AJ32: 0.01666666667 | AK32: 0.01666666667 | AL32: 0.01666666667 | AM32: 0.01666666667 | AN32: 0.01666666667 | AO32: 0.01666666667 | AP32: 0.01666666667 | AQ32: 0.01666666667 | AR32: 0.01666666667 | AS32: 0.01666666667 | AT32: 0.01666666667 | AU32: 0.01666666667 | AV32: 0.01666666667 | AW32: 0.01666666667 | AX32: 0.01666666667 | AY32: 0.01666666667 | AZ32: 0.01666666667 | BA32: 0.01666666667 | BB32: 0.01666666667 | BC32: 0.01666666667 | BD32: 0.01666666667 | BE32: 0.01666666667 | BF32: 0.01666666667 | BG32: 0.01666666667 | BH32: 0.01666666667 | BI32: 0.01666666667 | BJ32: 0.01666666667 | BK32: 0.01666666667 | BL32: 0.01666666667 | BM32: 0.01666666667 | BN32: 0.01666666667 | BO32: 1
B33: Técnico Ambiental | C33: =PFP!K22 -> 383590.8 | D33: =D34*$C$33 -> 0 | E33: =E34*$C$33 -> 0 | F33: 0 | G33: =G34*$C$33 -> 6393.18 | H33: =H34*$C$33 -> 6393.18 | I33: 6393.18 | J33: 6393.18 | K33: 6393.18 | L33: 6393.18 | M33: 6393.18 | N33: 6393.18 | O33: 6393.18 | P33: 6393.18 | Q33: 6393.18 | R33: 6393.18 | S33: 6393.18 | T33: 6393.18 | U33: 6393.18 | V33: 6393.18 | W33: 6393.18 | X33: 6393.18 | Y33: 6393.18 | Z33: 6393.18 | AA33: 6393.18 | AB33: 6393.18 | AC33: 6393.18 | AD33: 6393.18 | AE33: 6393.18 | AF33: 6393.18 | AG33: 6393.18 | AH33: 6393.18 | AI33: 6393.18 | AJ33: 6393.18 | AK33: 6393.18 | AL33: 6393.18 | AM33: 6393.18 | AN33: 6393.18 | AO33: 6393.18 | AP33: 6393.18 | AQ33: 6393.18 | AR33: 6393.18 | AS33: 6393.18 | AT33: 6393.18 | AU33: 6393.18 | AV33: 6393.18 | AW33: 6393.18 | AX33: 6393.18 | AY33: 6393.18 | AZ33: 6393.18 | BA33: 6393.18 | BB33: 6393.18 | BC33: 6393.18 | BD33: 6393.18 | BE33: 6393.18 | BF33: 6393.18 | BG33: 6393.18 | BH33: 6393.18 | BI33: 6393.18 | BJ33: 6393.18 | BK33: 6393.18 | BL33: 6393.18 | BM33: 6393.18 | BN33: 6393.18 | BO33: 383590.8
G34: =100/60/100 -> 0.01666666667 | H34: =100/60/100 -> 0.01666666667 | I34: 0.01666666667 | J34: 0.01666666667 | K34: 0.01666666667 | L34: 0.01666666667 | M34: 0.01666666667 | N34: 0.01666666667 | O34: 0.01666666667 | P34: 0.01666666667 | Q34: 0.01666666667 | R34: 0.01666666667 | S34: 0.01666666667 | T34: 0.01666666667 | U34: 0.01666666667 | V34: 0.01666666667 | W34: 0.01666666667 | X34: 0.01666666667 | Y34: 0.01666666667 | Z34: 0.01666666667 | AA34: 0.01666666667 | AB34: 0.01666666667 | AC34: 0.01666666667 | AD34: 0.01666666667 | AE34: 0.01666666667 | AF34: 0.01666666667 | AG34: 0.01666666667 | AH34: 0.01666666667 | AI34: 0.01666666667 | AJ34: 0.01666666667 | AK34: 0.01666666667 | AL34: 0.01666666667 | AM34: 0.01666666667 | AN34: 0.01666666667 | AO34: 0.01666666667 | AP34: 0.01666666667 | AQ34: 0.01666666667 | AR34: 0.01666666667 | AS34: 0.01666666667 | AT34: 0.01666666667 | AU34: 0.01666666667 | AV34: 0.01666666667 | AW34: 0.01666666667 | AX34: 0.01666666667 | AY34: 0.01666666667 | AZ34: 0.01666666667 | BA34: 0.01666666667 | BB34: 0.01666666667 | BC34: 0.01666666667 | BD34: 0.01666666667 | BE34: 0.01666666667 | BF34: 0.01666666667 | BG34: 0.01666666667 | BH34: 0.01666666667 | BI34: 0.01666666667 | BJ34: 0.01666666667 | BK34: 0.01666666667 | BL34: 0.01666666667 | BM34: 0.01666666667 | BN34: 0.01666666667 | BO34: 1
B35: Tecnico Segurança do Trabalho | C35: =PFP!K23 -> 590930.4 | D35: =D36*$C$35 -> 0 | E35: =E36*$C$35 -> 0 | F35: 0 | G35: =G36*$C$35 -> 9848.84 | H35: =H36*$C$35 -> 9848.84 | I35: 9848.84 | J35: 9848.84 | K35: 9848.84 | L35: 9848.84 | M35: 9848.84 | N35: 9848.84 | O35: 9848.84 | P35: 9848.84 | Q35: 9848.84 | R35: 9848.84 | S35: 9848.84 | T35: 9848.84 | U35: 9848.84 | V35: 9848.84 | W35: 9848.84 | X35: 9848.84 | Y35: 9848.84 | Z35: 9848.84 | AA35: 9848.84 | AB35: 9848.84 | AC35: 9848.84 | AD35: 9848.84 | AE35: 9848.84 | AF35: 9848.84 | AG35: 9848.84 | AH35: 9848.84 | AI35: 9848.84 | AJ35: 9848.84 | AK35: 9848.84 | AL35: 9848.84 | AM35: 9848.84 | AN35: 9848.84 | AO35: 9848.84 | AP35: 9848.84 | AQ35: 9848.84 | AR35: 9848.84 | AS35: 9848.84 | AT35: 9848.84 | AU35: 9848.84 | AV35: 9848.84 | AW35: 9848.84 | AX35: 9848.84 | AY35: 9848.84 | AZ35: 9848.84 | BA35: 9848.84 | BB35: 9848.84 | BC35: 9848.84 | BD35: 9848.84 | BE35: 9848.84 | BF35: 9848.84 | BG35: 9848.84 | BH35: 9848.84 | BI35: 9848.84 | BJ35: 9848.84 | BK35: 9848.84 | BL35: 9848.84 | BM35: 9848.84 | BN35: 9848.84 | BO35: 590930.4
G36: =100/60/100 -> 0.01666666667 | H36: =100/60/100 -> 0.01666666667 | I36: 0.01666666667 | J36: 0.01666666667 | K36: 0.01666666667 | L36: 0.01666666667 | M36: 0.01666666667 | N36: 0.01666666667 | O36: 0.01666666667 | P36: 0.01666666667 | Q36: 0.01666666667 | R36: 0.01666666667 | S36: 0.01666666667 | T36: 0.01666666667 | U36: 0.01666666667 | V36: 0.01666666667 | W36: 0.01666666667 | X36: 0.01666666667 | Y36: 0.01666666667 | Z36: 0.01666666667 | AA36: 0.01666666667 | AB36: 0.01666666667 | AC36: 0.01666666667 | AD36: 0.01666666667 | AE36: 0.01666666667 | AF36: 0.01666666667 | AG36: 0.01666666667 | AH36: 0.01666666667 | AI36: 0.01666666667 | AJ36: 0.01666666667 | AK36: 0.01666666667 | AL36: 0.01666666667 | AM36: 0.01666666667 | AN36: 0.01666666667 | AO36: 0.01666666667 | AP36: 0.01666666667 | AQ36: 0.01666666667 | AR36: 0.01666666667 | AS36: 0.01666666667 | AT36: 0.01666666667 | AU36: 0.01666666667 | AV36: 0.01666666667 | AW36: 0.01666666667 | AX36: 0.01666666667 | AY36: 0.01666666667 | AZ36: 0.01666666667 | BA36: 0.01666666667 | BB36: 0.01666666667 | BC36: 0.01666666667 | BD36: 0.01666666667 | BE36: 0.01666666667 | BF36: 0.01666666667 | BG36: 0.01666666667 | BH36: 0.01666666667 | BI36: 0.01666666667 | BJ36: 0.01666666667 | BK36: 0.01666666667 | BL36: 0.01666666667 | BM36: 0.01666666667 | BN36: 0.01666666667 | BO36: 1
B37: Consultoria Engenheiro Consultor - Concreto Armado | C37: =PFP!K24 -> 79644.45 | D37: =D38*$C$37 -> 0 | E37: =E38*$C$37 -> 31857.78 | F37: 0 | G37: 0 | H37: 0 | I37: 0 | J37: 0 | K37: 0 | L37: 0 | M37: 0 | N37: 0 | O37: 0 | P37: 15928.89 | Q37: 0 | R37: 0 | S37: 0 | T37: 0 | U37: 0 | V37: 0 | W37: 0 | X37: 0 | Y37: 0 | Z37: 15928.89 | AA37: 0 | AB37: 0 | AC37: 0 | AD37: 0 | AE37: 0 | AF37: 0 | AG37: 0 | AH37: 0 | AI37: 0 | AJ37: 0 | AK37: 0 | AL37: 0 | AM37: 0 | AN37: 0 | AO37: 0 | AP37: 0 | AQ37: 0 | AR37: 15928.89 | AS37: 0 | AT37: 0 | AU37: 0 | AV37: 0 | AW37: 0 | AX37: 0 | AY37: 0 | AZ37: 0 | BA37: 0 | BB37: 0 | BC37: 0 | BD37: 0 | BE37: 0 | BF37: 0 | BG37: 0 | BH37: 0 | BI37: 0 | BJ37: 0 | BK37: 0 | BL37: 0 | BM37: 0 | BN37: 0 | BO37: =SUM(D37:BN37) -> 79644.45
E38: =0.2+0.2 -> 0.4 | P38: =0.2 -> 0.2 | Z38: =0.2 -> 0.2 | AR38: =0.2 -> 0.2 | BO38: =SUM(D38:BN38) -> 1
B39: Consultoria Engenheiro Consultor - Transiente Hidráulico | C39: =PFP!K25 -> 79644.45 | D39: =D40*$C$39 -> 0 | E39: =E40*$C$39 -> 31857.78 | F39: 0 | G39: 0 | H39: 0 | I39: 0 | J39: 0 | K39: 0 | L39: 0 | M39: 0 | N39: 0 | O39: 15928.89 | P39: 0 | Q39: 0 | R39: 0 | S39: 0 | T39: 0 | U39: 0 | V39: 0 | W39: 0 | X39: 0 | Y39: 0 | Z39: 0 | AA39: 15928.89 | AB39: 0 | AC39: 0 | AD39: 0 | AE39: 0 | AF39: 0 | AG39: 0 | AH39: 0 | AI39: 0 | AJ39: 0 | AK39: 0 | AL39: 0 | AM39: 0 | AN39: 0 | AO39: 0 | AP39: 15928.89 | AQ39: 0 | AR39: 0 | AS39: 0 | AT39: 0 | AU39: 0 | AV39: 0 | AW39: 0 | AX39: 0 | AY39: 0 | AZ39: 0 | BA39: 0 | BB39: 0 | BC39: 0 | BD39: 0 | BE39: 0 | BF39: 0 | BG39: 0 | BH39: 0 | BI39: 0 | BJ39: 0 | BK39: 0 | BL39: 0 | BM39: 0 | BN39: 0 | BO39: =SUM(D39:BN39) -> 79644.45
E40: =0.2+0.2 -> 0.4 | O40: =0.2 -> 0.2 | AA40: =0.2 -> 0.2 | AP40: =0.2 -> 0.2 | BO40: =SUM(D38:BN38) -> 1
B41: Consultoria Geólogo | C41: =PFP!K26 -> 79644.45 | D41: =D42*$C$41 -> 0 | E41: =E42*$C$41 -> 31857.78 | F41: 0 | G41: 0 | H41: 0 | I41: 0 | J41: 0 | K41: 0 | L41: 0 | M41: 15928.89 | N41: 0 | O41: 0 | P41: 0 | Q41: 0 | R41: 0 | S41: 0 | T41: 0 | U41: 0 | V41: 0 | W41: 0 | X41: 15928.89 | Y41: 0 | Z41: 0 | AA41: 0 | AB41: 0 | AC41: 0 | AD41: 0 | AE41: 0 | AF41: 0 | AG41: 0 | AH41: 0 | AI41: 0 | AJ41: 0 | AK41: 0 | AL41: 0 | AM41: 0 | AN41: 15928.89 | AO41: 0 | AP41: 0 | AQ41: 0 | AR41: 0 | AS41: 0 | AT41: 0 | AU41: 0 | AV41: 0 | AW41: 0 | AX41: 0 | AY41: 0 | AZ41: 0 | BA41: 0 | BB41: 0 | BC41: 0 | BD41: 0 | BE41: 0 | BF41: 0 | BG41: 0 | BH41: 0 | BI41: 0 | BJ41: 0 | BK41: 0 | BL41: 0 | BM41: 0 | BN41: 0 | BO41: =SUM(D41:BN41) -> 79644.45
E42: =0.2+0.2 -> 0.4 | M42: =0.2 -> 0.2 | X42: =0.2 -> 0.2 | AN42: =0.2 -> 0.2 | BO42: =SUM(D42:BN42) -> 1
B43: Cesta de Instalações Topografia | C43: =PFP!K27 -> 747880.8 | D43: =D44*$C$43 -> 0 | E43: =E44*$C$43 -> 0 | F43: 0 | G43: 12464.68 | H43: 12464.68 | I43: 12464.68 | J43: 12464.68 | K43: 12464.68 | L43: 12464.68 | M43: 12464.68 | N43: 12464.68 | O43: 12464.68 | P43: 12464.68 | Q43: 12464.68 | R43: 12464.68 | S43: 12464.68 | T43: 12464.68 | U43: 12464.68 | V43: 12464.68 | W43: 12464.68 | X43: 12464.68 | Y43: 12464.68 | Z43: 12464.68 | AA43: 12464.68 | AB43: 12464.68 | AC43: 12464.68 | AD43: 12464.68 | AE43: 12464.68 | AF43: 12464.68 | AG43: 12464.68 | AH43: 12464.68 | AI43: 12464.68 | AJ43: 12464.68 | AK43: 12464.68 | AL43: 12464.68 | AM43: 12464.68 | AN43: 12464.68 | AO43: 12464.68 | AP43: 12464.68 | AQ43: 12464.68 | AR43: 12464.68 | AS43: 12464.68 | AT43: 12464.68 | AU43: 12464.68 | AV43: 12464.68 | AW43: 12464.68 | AX43: 12464.68 | AY43: 12464.68 | AZ43: 12464.68 | BA43: 12464.68 | BB43: 12464.68 | BC43: 12464.68 | BD43: 12464.68 | BE43: 12464.68 | BF43: 12464.68 | BG43: 12464.68 | BH43: 12464.68 | BI43: 12464.68 | BJ43: 12464.68 | BK43: 12464.68 | BL43: 12464.68 | BM43: 12464.68 | BN43: 12464.68 | BO43: =SUM(D43:BN43) -> 747880.8
G44: =100/60/100 -> 0.01666666667 | H44: 0.01666666667 | I44: 0.01666666667 | J44: 0.01666666667 | K44: 0.01666666667 | L44: 0.01666666667 | M44: 0.01666666667 | N44: 0.01666666667 | O44: 0.01666666667 | P44: 0.01666666667 | Q44: 0.01666666667 | R44: 0.01666666667 | S44: 0.01666666667 | T44: 0.01666666667 | U44: 0.01666666667 | V44: 0.01666666667 | W44: 0.01666666667 | X44: 0.01666666667 | Y44: 0.01666666667 | Z44: 0.01666666667 | AA44: =100/60/100 -> 0.01666666667 | AB44: 0.01666666667 | AC44: 0.01666666667 | AD44: 0.01666666667 | AE44: 0.01666666667 | AF44: 0.01666666667 | AG44: 0.01666666667 | AH44: 0.01666666667 | AI44: 0.01666666667 | AJ44: 0.01666666667 | AK44: 0.01666666667 | AL44: 0.01666666667 | AM44: 0.01666666667 | AN44: 0.01666666667 | AO44: 0.01666666667 | AP44: 0.01666666667 | AQ44: 0.01666666667 | AR44: 0.01666666667 | AS44: 0.01666666667 | AT44: 0.01666666667 | AU44: 0.01666666667 | AV44: 0.01666666667 | AW44: 0.01666666667 | AX44: 0.01666666667 | AY44: 0.01666666667 | AZ44: 0.01666666667 | BA44: 0.01666666667 | BB44: 0.01666666667 | BC44: 0.01666666667 | BD44: 0.01666666667 | BE44: 0.01666666667 | BF44: 0.01666666667 | BG44: 0.01666666667 | BH44: 0.01666666667 | BI44: 0.01666666667 | BJ44: 0.01666666667 | BK44: 0.01666666667 | BL44: 0.01666666667 | BM44: 0.01666666667 | BN44: 0.01666666667 | BO44: =SUM(G44:BN44) -> 1
B45: PICK-UP - CD 4X4 Diesel | C45: =PFP!K28 -> 586792.8 | D45: =D46*$C$45 -> 0 | E45: =E46*$C$45 -> 0 | F45: 0 | G45: 9779.88 | H45: 9779.88 | I45: 9779.88 | J45: 9779.88 | K45: 9779.88 | L45: 9779.88 | M45: 9779.88 | N45: 9779.88 | O45: 9779.88 | P45: 9779.88 | Q45: 9779.88 | R45: 9779.88 | S45: 9779.88 | T45: 9779.88 | U45: 9779.88 | V45: 9779.88 | W45: 9779.88 | X45: 9779.88 | Y45: 9779.88 | Z45: 9779.88 | AA45: 9779.88 | AB45: 9779.88 | AC45: 9779.88 | AD45: 9779.88 | AE45: 9779.88 | AF45: 9779.88 | AG45: 9779.88 | AH45: 9779.88 | AI45: 9779.88 | AJ45: 9779.88 | AK45: 9779.88 | AL45: 9779.88 | AM45: 9779.88 | AN45: 9779.88 | AO45: 9779.88 | AP45: 9779.88 | AQ45: 9779.88 | AR45: 9779.88 | AS45: 9779.88 | AT45: 9779.88 | AU45: 9779.88 | AV45: 9779.88 | AW45: 9779.88 | AX45: 9779.88 | AY45: 9779.88 | AZ45: 9779.88 | BA45: 9779.88 | BB45: 9779.88 | BC45: 9779.88 | BD45: 9779.88 | BE45: 9779.88 | BF45: 9779.88 | BG45: 9779.88 | BH45: 9779.88 | BI45: 9779.88 | BJ45: 9779.88 | BK45: 9779.88 | BL45: 9779.88 | BM45: 9779.88 | BN45: 9779.88 | BO45: =SUM(D45:BN45) -> 586792.8
G46: =100/60/100 -> 0.01666666667 | H46: =100/60/100 -> 0.01666666667 | I46: 0.01666666667 | J46: 0.01666666667 | K46: 0.01666666667 | L46: 0.01666666667 | M46: 0.01666666667 | N46: 0.01666666667 | O46: 0.01666666667 | P46: 0.01666666667 | Q46: 0.01666666667 | R46: 0.01666666667 | S46: 0.01666666667 | T46: 0.01666666667 | U46: 0.01666666667 | V46: 0.01666666667 | W46: 0.01666666667 | X46: 0.01666666667 | Y46: 0.01666666667 | Z46: 0.01666666667 | AA46: 0.01666666667 | AB46: 0.01666666667 | AC46: 0.01666666667 | AD46: 0.01666666667 | AE46: 0.01666666667 | AF46: 0.01666666667 | AG46: 0.01666666667 | AH46: 0.01666666667 | AI46: 0.01666666667 | AJ46: 0.01666666667 | AK46: 0.01666666667 | AL46: 0.01666666667 | AM46: 0.01666666667 | AN46: 0.01666666667 | AO46: 0.01666666667 | AP46: 0.01666666667 | AQ46: 0.01666666667 | AR46: 0.01666666667 | AS46: 0.01666666667 | AT46: 0.01666666667 | AU46: 0.01666666667 | AV46: 0.01666666667 | AW46: 0.01666666667 | AX46: 0.01666666667 | AY46: 0.01666666667 | AZ46: 0.01666666667 | BA46: 0.01666666667 | BB46: 0.01666666667 | BC46: 0.01666666667 | BD46: 0.01666666667 | BE46: 0.01666666667 | BF46: 0.01666666667 | BG46: 0.01666666667 | BH46: 0.01666666667 | BI46: 0.01666666667 | BJ46: 0.01666666667 | BK46: 0.01666666667 | BL46: 0.01666666667 | BM46: 0.01666666667 | BN46: 0.01666666667 | BO46: =SUM(G46:BN46) -> 1
B47: Veículo leve - 71 a 115 CV | C47: =PFP!K29 -> 519924.9 | D47: =D48*$C$47 -> 8252.77619 | E47: =E48*$C$47 -> 8252.77619 | F47: 8252.77619 | G47: 8252.77619 | H47: 8252.77619 | I47: 8252.77619 | J47: 8252.77619 | K47: 8252.77619 | L47: 8252.77619 | M47: 8252.77619 | N47: 8252.77619 | O47: 8252.77619 | P47: 8252.77619 | Q47: 8252.77619 | R47: 8252.77619 | S47: 8252.77619 | T47: 8252.77619 | U47: 8252.77619 | V47: 8252.77619 | W47: 8252.77619 | X47: 8252.77619 | Y47: 8252.77619 | Z47: 8252.77619 | AA47: 8252.77619 | AB47: 8252.77619 | AC47: 8252.77619 | AD47: 8252.77619 | AE47: 8252.77619 | AF47: 8252.77619 | AG47: 8252.77619 | AH47: 8252.77619 | AI47: 8252.77619 | AJ47: 8252.77619 | AK47: 8252.77619 | AL47: 8252.77619 | AM47: 8252.77619 | AN47: 8252.77619 | AO47: 8252.77619 | AP47: 8252.77619 | AQ47: 8252.77619 | AR47: 8252.77619 | AS47: 8252.77619 | AT47: 8252.77619 | AU47: 8252.77619 | AV47: 8252.77619 | AW47: 8252.77619 | AX47: 8252.77619 | AY47: 8252.77619 | AZ47: 8252.77619 | BA47: 8252.77619 | BB47: 8252.77619 | BC47: 8252.77619 | BD47: 8252.77619 | BE47: 8252.77619 | BF47: 8252.77619 | BG47: 8252.77619 | BH47: 8252.77619 | BI47: 8252.77619 | BJ47: 8252.77619 | BK47: 8252.77619 | BL47: 8252.77619 | BM47: 8252.77619 | BN47: 8252.77619 | BO47: =SUM(D47:BN47) -> 519924.9
D48: =100/63/100 -> 0.01587301587 | E48: =100/63/100 -> 0.01587301587 | F48: 0.01587301587 | G48: 0.01587301587 | H48: 0.01587301587 | I48: 0.01587301587 | J48: 0.01587301587 | K48: 0.01587301587 | L48: 0.01587301587 | M48: 0.01587301587 | N48: 0.01587301587 | O48: 0.01587301587 | P48: 0.01587301587 | Q48: 0.01587301587 | R48: 0.01587301587 | S48: 0.01587301587 | T48: 0.01587301587 | U48: 0.01587301587 | V48: 0.01587301587 | W48: 0.01587301587 | X48: 0.01587301587 | Y48: 0.01587301587 | Z48: 0.01587301587 | AA48: 0.01587301587 | AB48: 0.01587301587 | AC48: 0.01587301587 | AD48: 0.01587301587 | AE48: 0.01587301587 | AF48: 0.01587301587 | AG48: 0.01587301587 | AH48: 0.01587301587 | AI48: 0.01587301587 | AJ48: 0.01587301587 | AK48: 0.01587301587 | AL48: 0.01587301587 | AM48: 0.01587301587 | AN48: 0.01587301587 | AO48: 0.01587301587 | AP48: 0.01587301587 | AQ48: 0.01587301587 | AR48: 0.01587301587 | AS48: 0.01587301587 | AT48: 0.01587301587 | AU48: 0.01587301587 | AV48: 0.01587301587 | AW48: 0.01587301587 | AX48: 0.01587301587 | AY48: 0.01587301587 | AZ48: 0.01587301587 | BA48: 0.01587301587 | BB48: 0.01587301587 | BC48: 0.01587301587 | BD48: 0.01587301587 | BE48: 0.01587301587 | BF48: 0.01587301587 | BG48: 0.01587301587 | BH48: 0.01587301587 | BI48: 0.01587301587 | BJ48: 0.01587301587 | BK48: 0.01587301587 | BL48: 0.01587301587 | BM48: 0.01587301587 | BN48: 0.01587301587 | BO48: 1
B49: Aquisição de GPS | C49: =PFP!K30 -> 4708.37 | D49: =D50*$C$49 -> 0 | E49: =E50*$C$49 -> 0 | F49: 0 | G49: 0 | H49: 0 | I49: 0 | J49: 0 | K49: 0 | L49: 4708.37 | M49: 0 | N49: 0 | O49: 0 | P49: 0 | Q49: 0 | R49: 0 | S49: 0 | T49: 0 | U49: 0 | V49: 0 | W49: 0 | X49: 0 | Y49: 0 | Z49: 0 | AA49: 0 | AB49: 0 | AC49: 0 | AD49: 0 | AE49: 0 | AF49: 0 | AG49: 0 | AH49: 0 | AI49: 0 | AJ49: 0 | AK49: 0 | AL49: 0 | AM49: 0 | AN49: 0 | AO49: 0 | AP49: 0 | AQ49: 0 | AR49: 0 | AS49: 0 | AT49: 0 | AU49: 0 | AV49: 0 | AW49: 0 | AX49: 0 | AY49: 0 | AZ49: 0 | BA49: 0 | BB49: 0 | BC49: 0 | BD49: 0 | BE49: 0 | BF49: 0 | BG49: 0 | BH49: 0 | BI49: 0 | BJ49: 0 | BK49: 0 | BL49: 0 | BM49: 0 | BN49: 0 | BO49: 4708.37
L50: 1 | BO50: 1
B51: Passagem ida e volta | C51: =PFP!K31 -> 33058.71 | D51: =D52*$C$51 -> 0 | E51: =E52*$C$51 -> 11667.78 | F51: 0 | G51: 0 | H51: 0 | I51: 1944.63 | J51: 0 | K51: 0 | L51: 0 | M51: 1944.63 | N51: 0 | O51: 1944.63 | P51: 1944.63 | Q51: 0 | R51: 0 | S51: 0 | T51: 0 | U51: 0 | V51: 0 | W51: 0 | X51: 1944.63 | Y51: 0 | Z51: 1944.63 | AA51: 1944.63 | AB51: 0 | AC51: 0 | AD51: 0 | AE51: 0 | AF51: 0 | AG51: 0 | AH51: 0 | AI51: 0 | AJ51: 0 | AK51: 0 | AL51: 0 | AM51: 0 | AN51: 1944.63 | AO51: 0 | AP51: 1944.63 | AQ51: 0 | AR51: 1944.63 | AS51: 0 | AT51: 0 | AU51: 0 | AV51: 0 | AW51: 0 | AX51: 0 | AY51: 0 | AZ51: 0 | BA51: 0 | BB51: 0 | BC51: 0 | BD51: 0 | BE51: 0 | BF51: 0 | BG51: 0 | BH51: =BH52*$C$51 -> 1944.63 | BI51: 0 | BJ51: 0 | BK51: 0 | BL51: 0 | BM51: 0 | BN51: 0 | BO51: 33058.71
E52: =(100/17)/100*6 -> 0.3529411765 | I52: =(100/17)/100 -> 0.05882352941 | M52: =(100/17)/100 -> 0.05882352941 | O52: =(100/17)/100 -> 0.05882352941 | P52: =(100/17)/100 -> 0.05882352941 | X52: =(100/17)/100 -> 0.05882352941 | Z52: =(100/17)/100 -> 0.05882352941 | AA52: =(100/17)/100 -> 0.05882352941 | AN52: =(100/17)/100 -> 0.05882352941 | AP52: =(100/17)/100 -> 0.05882352941 | AR52: =(100/17)/100 -> 0.05882352941 | BH52: =(100/17)/100 -> 0.05882352941 | BO52: 1
B53: Diaria | C53: =PFP!K32 -> 13236.2 | D53: =D54*$C$53 -> 0 | E53: =E54*$C$53 -> 4671.6 | F53: 0 | G53: 0 | H53: 0 | I53: 778.6 | J53: 0 | K53: 0 | L53: 0 | M53: 778.6 | N53: 0 | O53: 778.6 | P53: 778.6 | Q53: 0 | R53: 0 | S53: 0 | T53: 0 | U53: 0 | V53: 0 | W53: 0 | X53: 778.6 | Y53: 0 | Z53: 778.6 | AA53: 778.6 | AB53: 0 | AC53: 0 | AD53: 0 | AE53: 0 | AF53: 0 | AG53: 0 | AH53: 0 | AI53: 0 | AJ53: 0 | AK53: 0 | AL53: 0 | AM53: 0 | AN53: 778.6 | AO53: 0 | AP53: 778.6 | AQ53: 0 | AR53: 778.6 | AS53: 0 | AT53: 0 | AU53: 0 | AV53: 0 | AW53: 0 | AX53: 0 | AY53: 0 | AZ53: 0 | BA53: 0 | BB53: 0 | BC53: 0 | BD53: 0 | BE53: 0 | BF53: 0 | BG53: 0 | BH53: 778.6 | BI53: 0 | BJ53: 0 | BK53: 0 | BL53: 0 | BM53: 0 | BN53: 0 | BO53: 13236.2
E54: =(100/17)/100*6 -> 0.3529411765 | I54: =(100/17)/100 -> 0.05882352941 | M54: =(100/17)/100 -> 0.05882352941 | O54: =(100/17)/100 -> 0.05882352941 | P54: =(100/17)/100 -> 0.05882352941 | X54: =(100/17)/100 -> 0.05882352941 | Z54: =(100/17)/100 -> 0.05882352941 | AA54: =(100/17)/100 -> 0.05882352941 | AN54: =(100/17)/100 -> 0.05882352941 | AP54: =(100/17)/100 -> 0.05882352941 | AR54: =(100/17)/100 -> 0.05882352941 | BH54: =(100/17)/100 -> 0.05882352941 | BO54: 1
B55: Infraestrutura e Equipamentos de Escritório | C55: =PFP!K33 -> 663312.41 | D55: =D56*$C$55 -> 0 | E55: =E56*$C$55 -> 0 | F55: 0 | G55: 11055.20683 | H55: 11055.20683 | I55: 11055.20683 | J55: 11055.20683 | K55: 11055.20683 | L55: 11055.20683 | M55: 11055.20683 | N55: 11055.20683 | O55: 11055.20683 | P55: 11055.20683 | Q55: 11055.20683 | R55: 11055.20683 | S55: 11055.20683 | T55: 11055.20683 | U55: 11055.20683 | V55: 11055.20683 | W55: 11055.20683 | X55: 11055.20683 | Y55: 11055.20683 | Z55: 11055.20683 | AA55: 11055.20683 | AB55: 11055.20683 | AC55: 11055.20683 | AD55: 11055.20683 | AE55: 11055.20683 | AF55: 11055.20683 | AG55: 11055.20683 | AH55: 11055.20683 | AI55: 11055.20683 | AJ55: 11055.20683 | AK55: 11055.20683 | AL55: 11055.20683 | AM55: 11055.20683 | AN55: 11055.20683 | AO55: 11055.20683 | AP55: 11055.20683 | AQ55: 11055.20683 | AR55: 11055.20683 | AS55: 11055.20683 | AT55: 11055.20683 | AU55: 11055.20683 | AV55: 11055.20683 | AW55: 11055.20683 | AX55: 11055.20683 | AY55: 11055.20683 | AZ55: 11055.20683 | BA55: 11055.20683 | BB55: 11055.20683 | BC55: 11055.20683 | BD55: 11055.20683 | BE55: 11055.20683 | BF55: 11055.20683 | BG55: 11055.20683 | BH55: 11055.20683 | BI55: 11055.20683 | BJ55: 11055.20683 | BK55: 11055.20683 | BL55: 11055.20683 | BM55: 11055.20683 | BN55: 11055.20683 | BO55: 663312.41
G56: =100/60/100 -> 0.01666666667 | H56: =100/60/100 -> 0.01666666667 | I56: 0.01666666667 | J56: 0.01666666667 | K56: 0.01666666667 | L56: 0.01666666667 | M56: 0.01666666667 | N56: 0.01666666667 | O56: 0.01666666667 | P56: 0.01666666667 | Q56: 0.01666666667 | R56: 0.01666666667 | S56: 0.01666666667 | T56: 0.01666666667 | U56: 0.01666666667 | V56: 0.01666666667 | W56: 0.01666666667 | X56: 0.01666666667 | Y56: 0.01666666667 | Z56: 0.01666666667 | AA56: 0.01666666667 | AB56: 0.01666666667 | AC56: 0.01666666667 | AD56: 0.01666666667 | AE56: 0.01666666667 | AF56: 0.01666666667 | AG56: 0.01666666667 | AH56: 0.01666666667 | AI56: 0.01666666667 | AJ56: 0.01666666667 | AK56: 0.01666666667 | AL56: 0.01666666667 | AM56: 0.01666666667 | AN56: 0.01666666667 | AO56: 0.01666666667 | AP56: 0.01666666667 | AQ56: 0.01666666667 | AR56: 0.01666666667 | AS56: 0.01666666667 | AT56: 0.01666666667 | AU56: 0.01666666667 | AV56: 0.01666666667 | AW56: 0.01666666667 | AX56: 0.01666666667 | AY56: 0.01666666667 | AZ56: 0.01666666667 | BA56: 0.01666666667 | BB56: 0.01666666667 | BC56: 0.01666666667 | BD56: 0.01666666667 | BE56: 0.01666666667 | BF56: 0.01666666667 | BG56: 0.01666666667 | BH56: 0.01666666667 | BI56: 0.01666666667 | BJ56: 0.01666666667 | BK56: 0.01666666667 | BL56: 0.01666666667 | BM56: 0.01666666667 | BN56: 0.01666666667 | BO56: =SUM(G56:BN56) -> 1
B57: Encargos Complementares Adicionais | C57: =PFP!K34 -> 2106065.32 | D57: =D58*$C$57 -> 33429.60825 | E57: =E58*$C$57 -> 33429.60825 | F57: 33429.60825 | G57: 33429.60825 | H57: 33429.60825 | I57: 33429.60825 | J57: 33429.60825 | K57: 33429.60825 | L57: 33429.60825 | M57: 33429.60825 | N57: 33429.60825 | O57: 33429.60825 | P57: 33429.60825 | Q57: 33429.60825 | R57: 33429.60825 | S57: 33429.60825 | T57: 33429.60825 | U57: 33429.60825 | V57: 33429.60825 | W57: 33429.60825 | X57: 33429.60825 | Y57: 33429.60825 | Z57: 33429.60825 | AA57: 33429.60825 | AB57: 33429.60825 | AC57: 33429.60825 | AD57: 33429.60825 | AE57: 33429.60825 | AF57: 33429.60825 | AG57: 33429.60825 | AH57: 33429.60825 | AI57: 33429.60825 | AJ57: 33429.60825 | AK57: 33429.60825 | AL57: 33429.60825 | AM57: 33429.60825 | AN57: 33429.60825 | AO57: 33429.60825 | AP57: 33429.60825 | AQ57: 33429.60825 | AR57: 33429.60825 | AS57: 33429.60825 | AT57: 33429.60825 | AU57: 33429.60825 | AV57: 33429.60825 | AW57: 33429.60825 | AX57: 33429.60825 | AY57: 33429.60825 | AZ57: 33429.60825 | BA57: 33429.60825 | BB57: 33429.60825 | BC57: 33429.60825 | BD57: 33429.60825 | BE57: 33429.60825 | BF57: 33429.60825 | BG57: 33429.60825 | BH57: 33429.60825 | BI57: 33429.60825 | BJ57: 33429.60825 | BK57: 33429.60825 | BL57: 33429.60825 | BM57: 33429.60825 | BN57: 33429.60825 | BO57: =SUM(D57:BN57) -> 2106065.32
D58: =100/63/100 -> 0.01587301587 | E58: =100/63/100 -> 0.01587301587 | F58: 0.01587301587 | G58: 0.01587301587 | H58: 0.01587301587 | I58: 0.01587301587 | J58: 0.01587301587 | K58: 0.01587301587 | L58: 0.01587301587 | M58: 0.01587301587 | N58: 0.01587301587 | O58: 0.01587301587 | P58: 0.01587301587 | Q58: 0.01587301587 | R58: 0.01587301587 | S58: 0.01587301587 | T58: 0.01587301587 | U58: 0.01587301587 | V58: 0.01587301587 | W58: 0.01587301587 | X58: 0.01587301587 | Y58: 0.01587301587 | Z58: 0.01587301587 | AA58: 0.01587301587 | AB58: 0.01587301587 | AC58: 0.01587301587 | AD58: 0.01587301587 | AE58: 0.01587301587 | AF58: 0.01587301587 | AG58: 0.01587301587 | AH58: 0.01587301587 | AI58: 0.01587301587 | AJ58: 0.01587301587 | AK58: 0.01587301587 | AL58: 0.01587301587 | AM58: 0.01587301587 | AN58: 0.01587301587 | AO58: 0.01587301587 | AP58: 0.01587301587 | AQ58: 0.01587301587 | AR58: 0.01587301587 | AS58: 0.01587301587 | AT58: 0.01587301587 | AU58: 0.01587301587 | AV58: 0.01587301587 | AW58: 0.01587301587 | AX58: 0.01587301587 | AY58: 0.01587301587 | AZ58: 0.01587301587 | BA58: 0.01587301587 | BB58: 0.01587301587 | BC58: 0.01587301587 | BD58: 0.01587301587 | BE58: 0.01587301587 | BF58: 0.01587301587 | BG58: 0.01587301587 | BH58: 0.01587301587 | BI58: 0.01587301587 | BJ58: 0.01587301587 | BK58: 0.01587301587 | BL58: 0.01587301587 | BM58: 0.01587301587 | BN58: 0.01587301587 | BO58: =SUM(D58:BN58) -> 1
C59: =SUM(C5:C58) -> 21131468.92 | D59: 0 | E59: 0 | F59: 0 | G59: 0 | H59: 0 | I59: 0 | J59: 0 | K59: =K60*$C$17 -> 0 | L59: 0 | M59: 0 | N59: 0 | O59: 0 | P59: 0 | Q59: 0 | R59: 0 | S59: 0 | T59: 0 | U59: 0 | V59: 0 | W59: 0 | X59: 0 | Y59: 0 | Z59: 0 | AA59: 0 | AB59: 0 | AC59: 0 | AD59: 0 | AE59: 0 | AF59: 0 | AG59: 0 | AH59: 0 | AI59: 0 | AJ59: 0 | AK59: 0 | AL59: 0 | AM59: 0 | AN59: 0 | AO59: 0 | AP59: 0 | AQ59: 0 | AR59: 0 | AS59: 0 | AT59: 0 | AU59: 0 | AV59: 0 | AW59: 0 | AX59: 0 | AY59: 0 | AZ59: 0 | BA59: 0 | BB59: 0 | BC59: 0 | BD59: 0 | BE59: 0 | BF59: 0 | BG59: 0 | BH59: 0 | BI59: 0 | BJ59: 0 | BK59: 0 | BL59: 0 | BM59: =BM60*$C$17 -> 0 | BN59: 0 | BO59: 0
BO60: 0
B62: NO MÊS | D62: =D5+D7+D9+D11+D13+D15+D17+D19+D21+D23+D25+D27+D29+D31+D35+D59+D33+D57+D55+D53+D51+D49+D47+D45+D43+D41+D39+D37 -> 73229.40444 | E62: =E5+E7+E9+E11+E13+E15+E17+E19+E21+E23+E25+E27+E29+E31+E35+E59+E33+E57+E55+E53+E51+E49+E47+E45+E43+E41+E39+E37 -> 185142.1244 | F62: 73229.40444 | G62: 336118.9213 | H62: 336118.9213 | I62: 338842.1513 | J62: 336118.9213 | K62: 336118.9213 | L62: 340827.2913 | M62: 354771.0413 | N62: 336118.9213 | O62: 354771.0413 | P62: 354771.0413 | Q62: 336118.9213 | R62: 336118.9213 | S62: 336118.9213 | T62: 336118.9213 | U62: 336118.9213 | V62: 350109.9613 | W62: 350109.9613 | X62: 368762.0813 | Y62: 350109.9613 | Z62: 368762.0813 | AA62: 368762.0813 | AB62: 350109.9613 | AC62: 350109.9613 | AD62: 350109.9613 | AE62: 350109.9613 | AF62: 350109.9613 | AG62: 350109.9613 | AH62: 350109.9613 | AI62: 350109.9613 | AJ62: 350109.9613 | AK62: 350109.9613 | AL62: 350109.9613 | AM62: 350109.9613 | AN62: 368762.0813 | AO62: 350109.9613 | AP62: 368762.0813 | AQ62: 350109.9613 | AR62: 368762.0813 | AS62: 350109.9613 | AT62: 350109.9613 | AU62: 350109.9613 | AV62: 350109.9613 | AW62: 350109.9613 | AX62: 350109.9613 | AY62: 350109.9613 | AZ62: 350109.9613 | BA62: 350109.9613 | BB62: 350109.9613 | BC62: 350109.9613 | BD62: 350109.9613 | BE62: 350109.9613 | BF62: 350109.9613 | BG62: 350109.9613 | BH62: 352833.1913 | BI62: 350109.9613 | BJ62: 315132.3613 | BK62: 315132.3613 | BL62: 315132.3613 | BM62: 315132.3613 | BN62: 315132.3613 | BO62: =SUM(D62:BN62) -> 21131468.92
D63: =D62/SUM($C$5:$C$58) -> 0.003465419499 | E63: =E62/SUM($C$5:$C$58) -> 0.008761441296 | F63: 0.003465419499 | G63: 0.01590608408 | H63: 0.01590608408 | I63: 0.01603495491 | J63: 0.01590608408 | K63: 0.01590608408 | L63: 0.01612889727 | M63: 0.01678875437 | N63: 0.01590608408 | O63: 0.01678875437 | P63: 0.01678875437 | Q63: 0.01590608408 | R63: 0.01590608408 | S63: 0.01590608408 | T63: 0.01590608408 | U63: 0.01590608408 | V63: 0.01656817908 | W63: 0.01656817908 | X63: 0.01745084938 | Y63: 0.01656817908 | Z63: 0.01745084938 | AA63: 0.01745084938 | AB63: 0.01656817908 | AC63: 0.01656817908 | AD63: 0.01656817908 | AE63: 0.01656817908 | AF63: 0.01656817908 | AG63: 0.01656817908 | AH63: 0.01656817908 | AI63: 0.01656817908 | AJ63: 0.01656817908 | AK63: 0.01656817908 | AL63: 0.01656817908 | AM63: 0.01656817908 | AN63: 0.01745084938 | AO63: 0.01656817908 | AP63: 0.01745084938 | AQ63: 0.01656817908 | AR63: 0.01745084938 | AS63: 0.01656817908 | AT63: 0.01656817908 | AU63: 0.01656817908 | AV63: 0.01656817908 | AW63: 0.01656817908 | AX63: 0.01656817908 | AY63: 0.01656817908 | AZ63: 0.01656817908 | BA63: 0.01656817908 | BB63: 0.01656817908 | BC63: 0.01656817908 | BD63: 0.01656817908 | BE63: 0.01656817908 | BF63: 0.01656817908 | BG63: 0.01656817908 | BH63: 0.01669704991 | BI63: 0.01656817908 | BJ63: 0.01491294157 | BK63: 0.01491294157 | BL63: 0.01491294157 | BM63: 0.01491294157 | BN63: 0.01491294157 | BO63: =SUM(D63:BN63) -> 1
C64: DESEMBOLSO (80% do Subproduto) | D64: =D62*0.8 -> 58583.52356 | E64: =E62*0.8 -> 148113.6996 | F64: =F62*0.8 -> 58583.52356 | G64: 268895.137 | H64: 268895.137 | I64: 271073.721 | J64: 268895.137 | K64: 268895.137 | L64: 272661.833 | M64: 283816.833 | N64: 268895.137 | O64: 283816.833 | P64: 283816.833 | Q64: 268895.137 | R64: 268895.137 | S64: 268895.137 | T64: 268895.137 | U64: 268895.137 | V64: 280087.969 | W64: 280087.969 | X64: 295009.665 | Y64: 280087.969 | Z64: 295009.665 | AA64: 295009.665 | AB64: 280087.969 | AC64: 280087.969 | AD64: 280087.969 | AE64: 280087.969 | AF64: 280087.969 | AG64: 280087.969 | AH64: 280087.969 | AI64: 280087.969 | AJ64: 280087.969 | AK64: 280087.969 | AL64: 280087.969 | AM64: 280087.969 | AN64: 295009.665 | AO64: 280087.969 | AP64: 295009.665 | AQ64: 280087.969 | AR64: 295009.665 | AS64: 280087.969 | AT64: 280087.969 | AU64: 280087.969 | AV64: 280087.969 | AW64: 280087.969 | AX64: 280087.969 | AY64: 280087.969 | AZ64: 280087.969 | BA64: 280087.969 | BB64: 280087.969 | BC64: 280087.969 | BD64: 280087.969 | BE64: 280087.969 | BF64: 280087.969 | BG64: 280087.969 | BH64: 282266.553 | BI64: 280087.969 | BJ64: 252105.889 | BK64: 252105.889 | BL64: 252105.889 | BM64: =BM62*0.8 -> 252105.889 | BN64: =BO62-SUM(D64:BM64) -> 4478399.673 | BO64: =SUM(D64:BN64) -> 21131468.92
D65: =D64/SUM($C$5:$C$58) -> 0.002772335599 | E65: =E64/SUM($C$5:$C$58) -> 0.007009153037 | F65: 0.002772335599 | G65: 0.01272486726 | H65: 0.01272486726 | I65: 0.01282796393 | J65: 0.01272486726 | K65: 0.01272486726 | L65: 0.01290311781 | M65: 0.0134310035 | N65: 0.01272486726 | O65: 0.0134310035 | P65: 0.0134310035 | Q65: 0.01272486726 | R65: 0.01272486726 | S65: 0.01272486726 | T65: 0.01272486726 | U65: 0.01272486726 | V65: 0.01325454326 | W65: 0.01325454326 | X65: 0.0139606795 | Y65: 0.01325454326 | Z65: 0.0139606795 | AA65: 0.0139606795 | AB65: 0.01325454326 | AC65: 0.01325454326 | AD65: 0.01325454326 | AE65: 0.01325454326 | AF65: 0.01325454326 | AG65: 0.01325454326 | AH65: 0.01325454326 | AI65: 0.01325454326 | AJ65: 0.01325454326 | AK65: 0.01325454326 | AL65: 0.01325454326 | AM65: 0.01325454326 | AN65: 0.0139606795 | AO65: 0.01325454326 | AP65: 0.0139606795 | AQ65: 0.01325454326 | AR65: 0.0139606795 | AS65: 0.01325454326 | AT65: 0.01325454326 | AU65: 0.01325454326 | AV65: 0.01325454326 | AW65: 0.01325454326 | AX65: 0.01325454326 | AY65: 0.01325454326 | AZ65: 0.01325454326 | BA65: 0.01325454326 | BB65: 0.01325454326 | BC65: 0.01325454326 | BD65: 0.01325454326 | BE65: 0.01325454326 | BF65: 0.01325454326 | BG65: 0.01325454326 | BH65: 0.01335763993 | BI65: 0.01325454326 | BJ65: 0.01193035326 | BK65: 0.01193035326 | BL65: 0.01193035326 | BM65: 0.01193035326 | BN65: 0.2119303533 | BO65: =SUM(D65:BN65) -> 1
B66: ACUMULADO | D66: =D62 -> 73229.40444 | E66: =D66+E62 -> 258371.5289 | F66: =E66+F62 -> 331600.9333 | G66: =F66+G62 -> 667719.8546 | H66: =G66+H62 -> 1003838.776 | I66: 1342680.927 | J66: 1678799.848 | K66: =J66+K62 -> 2014918.77 | L66: =K66+L62 -> 2355746.061 | M66: =L66+M62 -> 2710517.102 | N66: =M66+N62 -> 3046636.024 | O66: =N66+O62 -> 3401407.065 | P66: =O66+P62 -> 3756178.106 | Q66: =P66+Q62 -> 4092297.027 | R66: =Q66+R62 -> 4428415.949 | S66: =R66+S62 -> 4764534.87 | T66: =S66+T62 -> 5100653.791 | U66: =T66+U62 -> 5436772.713 | V66: =U66+V62 -> 5786882.674 | W66: =V66+W62 -> 6136992.635 | X66: =W66+X62 -> 6505754.716 | Y66: =X66+Y62 -> 6855864.678 | Z66: =Y66+Z62 -> 7224626.759 | AA66: =Z66+AA62 -> 7593388.84 | AB66: =AA66+AB62 -> 7943498.801 | AC66: =AB66+AC62 -> 8293608.763 | AD66: =AC66+AD62 -> 8643718.724 | AE66: =AD66+AE62 -> 8993828.685 | AF66: =AE66+AF62 -> 9343938.647 | AG66: =AF66+AG62 -> 9694048.608 | AH66: =AG66+AH62 -> 10044158.57 | AI66: =AH66+AI62 -> 10394268.53 | AJ66: =AI66+AJ62 -> 10744378.49 | AK66: =AJ66+AK62 -> 11094488.45 | AL66: =AK66+AL62 -> 11444598.41 | AM66: =AL66+AM62 -> 11794708.38 | AN66: =AM66+AN62 -> 12163470.46 | AO66: =AN66+AO62 -> 12513580.42 | AP66: =AO66+AP62 -> 12882342.5 | AQ66: =AP66+AQ62 -> 13232452.46 | AR66: =AQ66+AR62 -> 13601214.54 | AS66: =AR66+AS62 -> 13951324.5 | AT66: =AS66+AT62 -> 14301434.46 | AU66: =AT66+AU62 -> 14651544.43 | AV66: =AU66+AV62 -> 15001654.39 | AW66: =AV66+AW62 -> 15351764.35 | AX66: =AW66+AX62 -> 15701874.31 | AY66: =AX66+AY62 -> 16051984.27 | AZ66: =AY66+AZ62 -> 16402094.23 | BA66: =AZ66+BA62 -> 16752204.19 | BB66: =BA66+BB62 -> 17102314.15 | BC66: =BB66+BC62 -> 17452424.12 | BD66: =BC66+BD62 -> 17802534.08 | BE66: =BD66+BE62 -> 18152644.04 | BF66: =BE66+BF62 -> 18502754 | BG66: =BF66+BG62 -> 18852863.96 | BH66: =BG66+BH62 -> 19205697.15 | BI66: =BH66+BI62 -> 19555807.11 | BJ66: =BI66+BJ62 -> 19870939.47 | BK66: =BJ66+BK62 -> 20186071.84 | BL66: =BK66+BL62 -> 20501204.2 | BM66: =BL66+BM62 -> 20816336.56 | BN66: =BM66+BN62 -> 21131468.92
D67: =D63 -> 0.003465419499 | E67: =D67+E63 -> 0.0122268608 | F67: 0.01569228029 | G67: 0.03159836437 | H67: =G67+H63 -> 0.04750444845 | I67: 0.06353940335 | J67: 0.07944548743 | K67: 0.0953515715 | L67: 0.1114804688 | M67: 0.1282692231 | N67: 0.1441753072 | O67: 0.1609640616 | P67: 0.177752816 | Q67: 0.1936589 | R67: 0.2095649841 | S67: 0.2254710682 | T67: 0.2413771523 | U67: 0.2572832363 | V67: 0.2738514154 | W67: 0.2904195945 | X67: 0.3078704439 | Y67: 0.324438623 | Z67: 0.3418894723 | AA67: 0.3593403217 | AB67: 0.3759085008 | AC67: 0.3924766799 | AD67: 0.409044859 | AE67: 0.425613038 | AF67: 0.4421812171 | AG67: 0.4587493962 | AH67: 0.4753175753 | AI67: 0.4918857544 | AJ67: 0.5084539334 | AK67: 0.5250221125 | AL67: 0.5415902916 | AM67: 0.5581584707 | AN67: 0.5756093201 | AO67: 0.5921774991 | AP67: 0.6096283485 | AQ67: 0.6261965276 | AR67: 0.643647377 | AS67: 0.660215556 | AT67: 0.6767837351 | AU67: 0.6933519142 | AV67: 0.7099200933 | AW67: 0.7264882724 | AX67: 0.7430564514 | AY67: 0.7596246305 | AZ67: 0.7761928096 | BA67: 0.7927609887 | BB67: =BA67+BB63 -> 0.8093291678 | BC67: 0.8258973468 | BD67: 0.8424655259 | BE67: 0.859033705 | BF67: 0.8756018841 | BG67: 0.8921700632 | BH67: 0.9088671131 | BI67: 0.9254352922 | BJ67: =BI67+BJ63 -> 0.9403482337 | BK67: =BJ67+BK63 -> 0.9552611753 | BL67: =BK67+BL63 -> 0.9701741169 | BM67: =BL67+BM63 -> 0.9850870584 | BN67: =BM67+BN63 -> 1

Sheet CPU ESCRIT. CONTAINER
B2: Engenharia Consultiva da Codevasf
B3: CPU - HOSPEDAGEM EQUIPE DE CAMPO (15 PESSOAS/MÊS) | D3: Código/Referencia
B4: ALUGUEL CONTAINER ESCRITÓRIO C/ BANHEIRO | C4: =1600*4 -> 6400 | D4: 4298/ORSE
B5: Aquisição de Mobiliário | C5: ='AUX - MOBILIÁRIO'!F10 -> 171.27 | D5: B8954/DNIT
B6: Material de limpeza e diarista | C6: =129.46+(123*8) -> 1113.46 | D6: 10563/ORSE - E200300131/EMBASA
B7: Energia | C7: 180 | D7: 10555/ORSE
B8: Mobilização e Desmonilização | C8: =1200*2/60 -> 40 | D8: 89.50.20/89.50.21/SUDECAP-MG
B9: Água | C9: 394.99 | D9: 10554/ORSE
B10: telefone/Internet | C10: =154.99+89 -> 243.99 | D10: 10557/10558/ORSE
B14: Custo Mensal: | C14: =SUM(C4:C13) -> 8543.71
B15: Custo Mensal por pessoa: | C15: =C14/C17 -> 569.5806667
B16: Custo diário por pessoa: | C16: =C15/22 -> 25.8900303
B17: número de pessoas: | C17: 15

Sheet Cotação Voos
A1: COTAÇÕES - IDA DIA 06/10/2025 E VOLTA DIA 10/10/2025
A2: Localidade: | B2: Natal/RN
A4: Origem | B4: Destino
A5: BSB | B5: =B2 -> Natal/RN | C5: Cia 1 | D5: Cia 2 | E5: Cia 3 | F5: Média
C6: 1518 | D6: 1518 | E6: 1671 | F6: =AVERAGE(C6:E6) -> 1569
A31: SP | B31: =B2 -> Natal/RN | C31: Cia 1 | D31: Cia 2 | E31: Cia 3 | F31: Média
C32: 1369 | D32: 1518 | E32: 1948 | F32: =AVERAGE(C32:E32) -> 1611.666667
A57: Curitiba | B57: =B2 -> Natal/RN | C57: Cia 1 | D57: Cia 2 | E57: Cia 3 | F57: Média
C58: 1000 | D58: 1146 | E58: 1649 | F58: =AVERAGE(C58:E58) -> 1265
A82: Recife | B82: =B2 -> Natal/RN | C82: Cia 1 | D82: Cia 2 | E82: Cia 3 | F82: Média
C83: 1654 | D83: 1654 | E83: 2639 | F83: =AVERAGE(C83:E83) -> 1982.333333
A106: VALOR ADOTADO: | C106: =AVERAGE(F6:F83) -> 1607

Sheet CPU-VEICULO_Leve
A2: Composição de Preços de Locação de Veículos | G2: CV | H2: Média | I2: Mediana
B3: 2023-08-23 | C3: Data de atualização: | D3: 2025-01-22 | G3: =_xlfn.STDEV.S(G8:J8)/AVERAGE(G8:J8) -> 0.1466333998 | H3: =AVERAGE(G8:J8) -> 75224.5 | I3: =MEDIAN(G8:J8) -> 74407.5 | M3: CV | N3: Média | O3: Mediana | Y3: CV | Z3: Média | AA3: Mediana
A4: CODEVASF | G4: =_xlfn.STDEV.S(G9:J9)/AVERAGE(G9:J9) -> 0.1479429789 | H4: =AVERAGE(G9:J9) -> 51513.25 | I4: =MEDIAN(G9:J9) -> 55216.5 | M4: =_xlfn.STDEV.S(N6:V6)/AVERAGE(N6:V6) -> 0.1572234728 | N4: =AVERAGE(N6:V6) -> 26.76888889 | O4: =MEDIAN(N6:V6) -> 27.12 | Y4: =_xlfn.STDEV.S(Z6:AH6)/AVERAGE(Z6:AH6) -> 0.1621894985 | Z4: =AVERAGE(Z6:AH6) -> 329.1444444 | AA4: =MEDIAN(Z6:AH6) -> 334.75
A5: OBS: Preço sem BDI e sem motorista BDI= | L5: PRODUTO | M5: MENOR | N5: COT. 1 | O5: COT. 2 | P5: COT. 3 | Q5: COT. 4 | R5: COT. 5 | S5: COT. 6 | T5: COT. 7 | U5: COT. 8 | V5: COT. 9 | X5: PRODUTO | Y5: MENOR | Z5: COT. 1 | AA5: COT. 2 | AB5: COT. 3 | AC5: COT. 4 | AD5: COT. 5 | AE5: COT. 6 | AF5: COT. 7 | AG5: COT. 8 | AH5: COT. 9
A6: Veículo Leve 1.0 T. Flex 12V 5p | G6: Preço FIPE | L6: LUBRIFICANTE 15W40 | M6: =SMALL(N4:O4,1) -> 26.76888889 | N6: 27.12 | O6: 19.01 | P6: 28.9 | Q6: 23.9 | R6: 28.76 | S6: 33.9 | T6: 29.44 | U6: 24.9 | V6: 24.99 | X6: Pneu 185/65 R14 | Y6: =SMALL(Z4:AA4,1) -> 329.1444444 | Z6: 289.9 | AA6: =1255.8/4 -> 313.95 | AB6: 289 | AC6: =1339/4 -> 334.75 | AD6: =1519.6/4 -> 379.9 | AE6: 231 | AF6: 364.9 | AG6: =718/2 -> 359 | AH6: =799.8/2 -> 399.9
C7: Custo Mensal (R$): | D7: =D48 -> 1183.62029 | G7: Renault Kwid Zen 1.0 | H7: Hyndai HB20 Sense 1.0 | I7: ONIX HATCH LT 1.0 12V Flex 5p Mec. | J7: MOBI TREKKING 1.0 Flex 5p.
C8: Custo Diário (R$): | D8: =D7/30 -> 39.45400966 | F8: 0 km | G8: 63868 | H8: 80150 | I8: 88215 | J8: 68665
C9: Custo Horário (R$): | D9: =D7/176 -> 6.725115283 | F9: 5 anos de uso | G9: 40085 | H9: 55344 | I9: 55535 | J9: 55089
A10: A | C10: Depreciação mensal do equipamento
A11: A1 | C11: Preço de Aquisição | D11: =SMALL(H3:I3,1) -> 74407.5
A12: A2 | C12: Tempo previsto de vida útil (meses) | D12: 72
A13: A3 | C13: Previsão de recup. Na venda do bem usado | D13: 0.6
A14: A4 | C14: Custo mensal [A1-(A3xA1)]/A2 | D14: =(D11-(D13*D11))/D12 -> 413.375
A15: B | C15: Juros pelo Capital empregado
A16: B1 | C16: Taxa mensal de Juros * | D16: =POWER(1+D53,1/12)-1 -> 0.01171491692
A17: B2 | C17: Juros s/depreciação/aluguel (B1xA4) | D17: =D16*D14 -> 4.842653782
A18: C | C18: Conservação e manutenção ** | D18: 0.55
A19: C1 | C19: Taxa de gastos s/a deprec. Inc. seguros (%) | D19: =D18 -> 0.55
A20: C2 | C20: Incidência mensal (C1xA4) | D20: =D19*D14 -> 227.35625
A21: D | C21: Combustível
A22: D1 | C22: Média mensal de quilômetro por veículo | D22: =50*22 -> 1100
A23: D2 | C23: Preço do litro de combustível | D23: =G82 -> 6.14
A24: D3 | C24: Quilômetros rodados com um litro combustivel | D24: =(12.8+13.3+15.3+15)/4 -> 14.1
A25: D4 | C25: Combustivel (D1/D3)*D2 | D25: =(D22/D24)*D23 -> 479.0070922
A26: E | C26: Lubrificantes
A27: E1 | C27: Quilometragem do Contrato (D1*12) | D27: =D22*60 -> 66000
A28: E2 | C28: Franquia por troca de óleo (km) | D28: 10000
A29: E3 | C29: Preço do litro de óleo | D29: =M6 -> 26.76888889
A30: E4 | C30: Quantidade de litros de óleo por troca | D30: 4
A31: E5 | C31: Quantidade de dias do Contrato | D31: =365*3 -> 1095
A32: E6 | C32: Lubrificantes E = (E1*E3*E4*30)/E2*E5 | D32: =(D27*D29*D30*30)/(D28*D31) -> 19.36160731
A33: F | C33: Pneus
A34: F1 | C34: Quilometragem do Contrato | D34: =D27 -> 66000
A35: F2 | C35: Vida do Pneu em quilômetros | D35: 60000
A36: F3 | C36: Quantidade de pneus | D36: 4
A37: F4 | C37: Preço do Pneu | D37: =Y6 -> 329.1444444
A38: F5 | C38: Quantidade de dias do contrato | D38: =D31 -> 1095
A39: F6 | C39: Pneus = (F1*F3*F4*30)/(F2*F5) | D39: =(D34*D36*D37*30)/(D35*D38) -> 39.67768645
A40: G | C40: Motorista
A41: G1 | C41: Salário com encargos sociais | D41: 0
A42: H | C42: Custo Mensal | L42: https://www.google.com/search?q=lubrificante+15w40+1l&sa=X&biw=1600&bih=757&tbm=shop&sxsrf=AJOqlzUezMM_9i0M4NKjKqAMycLuOygp_g%3A1677158931166&ei=E2r3Y5e2CcH31sQPsK67CA&ved=0ahUKEwjXi8vy36v9AhXBu5UCHTDXDgEQ4dUDCAg&uact=5&oq=lubrificante+15w40+1l&gs_lcp=Cgtwcm9kdWN0cy1jYxADMgsIABAWEB4Q8QQQGDoICAAQgAQQsAM6CQgAEAcQHhCwAzoJCAAQCBAeELADOgkIABAeELADEBg6DggAEAUQHhDxBBCwAxAYOgUIABCABDoGCAAQFhAeOggIABAWEB4QGEoECEEYAVDeBFi3DWD0D2gBcAB4AIABpQWIAZAIkgEHMy0xLjAuMZgBAKABAcgBCsABAQ&sclient=products-cc
C43: Sem Motorista (A4+B2+C2+D4+E6+F6) | D43: =D14+D17+D20+D25+D32+D39 -> 1183.62029
C44: Com Motorista (A4+B2+C2+D4+E6+F6+G1) | D44: =D14+D17+D20+D25+D32+D39+D41 -> 1183.62029
A45: I | C45: Custo Direto p/ km Rodado
C46: Sem Motorista | D46: =D43/D22 -> 1.076018445 | W46: https://www.google.com/search?q=Pneu+185%2F65+R14&sa=X&hl=pt-BR&biw=1600&bih=757&tbm=shop&sxsrf=AJOqlzVJW-LYM1ZPHImwhsD-4UwyAvTluQ%3A1677158863331&ei=z2n3Y-uxE-zT1sQP0r-OmAs&ved=0ahUKEwir1Z7S36v9AhXsqZUCHdKfA7MQ4dUDCAg&uact=5&oq=Pneu+185%2F65+R14&gs_lcp=Cgtwcm9kdWN0cy1jYxADMgsIABCABBCxAxCDATIFCAAQgAQyBQgAEIAEMgUIABCABDIFCAAQgAQyBQgAEIAEMgUIABCABDIFCAAQgAQyBQgAEIAEMgUIABCABEoECEEYAFD5A1jGCWC1EGgAcAB4AIABrQmIAdcbkgEHNS0yLjAuMpgBAKABAcABAQ&sclient=products-cc
C47: Com Motorista | D47: =D44/D22 -> 1.076018445
A48: J | C48: Preço cobrado sem BDI | D48: =D43*(1+D5) -> 1183.62029
A49: J1 | C49: Sem Motorista | D49: =D48 -> 1183.62029
A50: J2 | C50: Com Motorista | D50: =D44 -> 1183.62029
A53: * | C53: Calculado com base na taxa SELIC JANEIRO/2025: | D53: 0.15
A55: ** | C55: Conservação e manutenção - é calculado com o uso de um coeficiente multiplicador "k", conforme tabela abaixo, sobre a
C56: depreciação mensal do equipamento (Item A da planilha de composição de preços). Os valores de K são fornecidos por
C57: fabricantes.
C58: Metodologia conforme a bibliografia "Como Preparar Orçamentos de Obras", 3 edição, Aldo Dórea Mattos, 2019.
F82: PREÇO DA GASOLINA | G82: 6.14
F84: https://precos.petrobras.com.br/sele%C3%A7%C3%A3o-de-estados-gasolina

Sheet CPU-VEICULO_PickUp
A5: Composição de Preços de Locação de Veículo tipo pick-up
B6: Data de atualização: | C6: 2025-01-22 | F6: CV | G6: Média | H6: Mediana | L6: CV | M6: Média | N6: Mediana | W6: CV | X6: Média | Y6: Mediana
A7: CODEVASF | E7: 0 km | F7: =_xlfn.STDEV.S(F11:I11)/AVERAGE(F11:I11) -> 0.09461804749 | G7: =AVERAGE(F11:I11) -> 200477 | H7: =MEDIAN(F11:I11) -> 205565.5 | L7: =_xlfn.STDEV.S(M9:T9)/AVERAGE(M9:T9) -> 0.2049193683 | M7: =AVERAGE(M9:T9) -> 34.54857143 | N7: =MEDIAN(M9:T9) -> 30.91 | W7: =_xlfn.STDEV.S(X9:AE9)/AVERAGE(X9:AE9) -> 0.1241023561 | X7: =AVERAGE(X9:AE9) -> 499.0190625 | Y7: =MEDIAN(X9:AE9) -> 499.45
A8: OBS: Preço sem BDI e sem motorista BDI= | E8: 5 anos de uso | F8: =_xlfn.STDEV.S(F12:I12)/AVERAGE(F12:I12) -> 0.06305297001 | G8: =AVERAGE(F12:I12) -> 117798 | H8: =MEDIAN(F12:I12) -> 119744 | K8: PRODUTO | L8: MENOR (MÉDIA, MEDIANA) | M8: COT. 1 | N8: COT. 2 | O8: COT. 3 | P8: COT. 4 | Q8: COT. 5 | R8: COT. 6 | S8: COT. 7 | T8: COT. 8 | V8: PRODUTO | W8: MENOR (MÉDIA, MEDIANA) | X8: COT. 1 | Y8: COT. 2 | Z8: COT. 3 | AA8: COT. 4 | AB8: COT. 5 | AC8: COT. 6 | AD8: COT. 7 | AE8: COT. 8
A9: Veículo tipo pick-up, cabine dupla - 2.0 16V 4x4 diesel Aut. | F9: Preço FIPE | K9: LUBRIFICANTE 5W30 | L9: =SMALL(M7:N7,1) -> 30.91 | M9: 33.33 | N9: 26.9 | O9: 30.9 | P9: 30.9 | Q9: 30.91 | R9: 46 | S9: 42.9 | V9: Pneu 225/65 R17 | W9: =SMALL(X7:Y7,1) -> 499.0190625 | X9: 499 | Y9: 479.9 | Z9: 565.25 | AA9: 393.38 | AB9: 449.9 | AC9: =2059.44/4 -> 514.86 | AD9: =2359.85/4 -> 589.9625 | AE9: 499.9
B10: Custo Mensal (R$): | C10: =C51 -> 2693.957296 | F10: Toro Ultra 2.0 16V 4x4 TB Diesel Aut. | G10: Toro Freedom 2.0 16V 4x4 TB Diesel Aut. | H10: Toro Volcano 2.0 16V 4x4 TB Diesel Aut. | I10: Toro Ranch 2.0 16V 4x4 TB Diesel Aut.
B11: Custo Diária (R$): | C11: =C10/22 -> 122.4526044 | E11: 0km | F11: 215525 | G11: 175252 | H11: 196485 | I11: 214646
B12: Custo Horário (R$): | C12: =C10/176 -> 15.30657555 | E12: 5 anos de uso | F12: 124305 | G12: 107399 | H12: 117814 | I12: 121674
A13: A | B13: Depreciação mensal do equipamento
A14: A1 | B14: Preço de Aquisição | C14: =SMALL(G7:H7,1) -> 200477
A15: A2 | B15: Tempo previsto de vida útil (meses) | C15: 72
A16: A3 | B16: Previsão de recup. Na venda do bem usado | C16: =MIN(G8:H8)/C14 -> 0.5875886012
A17: A4 | B17: Custo mensal [A1-(A3xA1)]/A2 | C17: =(C14-(C16*C14))/C15 -> 1148.319444
A18: B | B18: Juros pelo Capital empregado
A19: B1 | B19: Taxa mensal de Juros * | C19: =POWER(1+C56,1/12)-1 -> 0.01171491692
A20: B2 | B20: Juros s/depreciação/aluguel (B1xA4) | C20: =C19*C17 -> 13.45246689
A21: C | B21: Conservação e manutenção ** | C21: 0.55
A22: C1 | B22: Taxa de gastos s/a deprec. Inc. seguros (%) | C22: =C21 -> 0.55 | AG22: PREÇO DO DIESEL | AH22: 6.1
A23: C2 | B23: Incidência mensal (C1xA4) | C23: =C22*C17 -> 631.5756944 | AG23: https://precos.petrobras.com.br/sele%C3%A7%C3%A3o-de-estados-diesel
A24: D | B24: Combustível
A25: D1 | B25: Média mensal de quilômetro por veículo | C25: =60*22 -> 1320
A26: D2 | B26: Preço do litro de combustível | C26: =AH22 -> 6.1
A27: D3 | B27: Quilômetros rodados com um litro combustivel | C27: 10
A28: D4 | B28: Combustivel (D1/D3)*D2 | C28: =(C25/C27)*C26 -> 805.2
A29: E | B29: Lubrificantes
A30: E1 | B30: Quilometragem do Contrato (D1*12) | C30: =C25*60 -> 79200
A31: E2 | B31: Franquia por troca de óleo (km) | C31: 10000
A32: E3 | B32: Preço do litro de óleo | C32: =L9 -> 30.91
A33: E4 | B33: Quantidade de litros de óleo por troca | C33: 5
A34: E5 | B34: Quantidade de dias do Contrato | C34: =365*3 -> 1095
A35: E6 | B35: Lubrificantes E = (E1*E3*E4*30)/E2*E5 | C35: =(C30*C32*C33*30)/(C31*C34) -> 33.53523288
A36: F | B36: Pneus
A37: F1 | B37: Quilometragem do Contrato | C37: =C30 -> 79200
A38: F2 | B38: Vida do Pneu em quilômetros | C38: 70000
A39: F3 | B39: Quantidade de pneus | C39: 4
A40: F4 | B40: Preço do Pneu | C40: =W9 -> 499.0190625
A41: F5 | B41: Quantidade de dias do contrato | C41: =C34 -> 1095
A42: F6 | B42: Pneus = (F1*F3*F4*30)/(F2*F5) | C42: =(C37*C39*C40*30)/(C38*C41) -> 61.87445753
A43: G | B43: Motorista
A44: G1 | B44: Salário com encargos sociais | C44: 0
A45: H | B45: Custo Mensal
B46: Sem Motorista (A4+B2+C2+D4+E6+F6) | C46: =C17+C20+C23+C28+C35+C42 -> 2693.957296
B47: Com Motorista (A4+B2+C2+D4+E6+F6+G1) | C47: =C17+C20+C23+C28+C35+C42+C44 -> 2693.957296
A48: I | B48: Custo Direto p/ km Rodado
B49: Sem Motorista | C49: =C46/C25 -> 2.04087674
B50: Com Motorista | C50: =C47/C25 -> 2.04087674
A51: J | B51: Preço cobrado sem BDI | C51: =C46*(1+C8) -> 2693.957296
A52: J1 | B52: Sem Motorista | C52: =C51 -> 2693.957296
A53: J2 | B53: Com Motorista | C53: =C47 -> 2693.957296 | J53: https://www.google.com/search?q=lubrificante+5w30+1l&sa=X&sca_esv=c77f5342bf7e367a&tbm=shop&ei=e0uKZ-DcDNKp5OUPkOKj6QY&ved=0ahUKEwighoOy3_yKAxXSFLkGHRDxKG0Q4dUDCAg&uact=5&oq=lubrificante+5w30+1l&gs_lp=Egtwcm9kdWN0cy1jYyIUbHVicmlmaWNhbnRlIDV3MzAgMWxIgQ9Q4AlY8Q1wAHgAkAEAmAFroAGgA6oBAzEuM7gBA8gBAPgBAZgCAqAC0gHCAgUQABiABMICBhAAGAcYHsICBhAAGAgYHsICBhAAGBYYHpgDAIgGAZIHAzEuMaAHxQU&sclient=products-cc | U53: https://www.google.com/search?q=pneu+225%2F65+R17&sa=X&biw=1600&bih=757&tbm=shop&sxsrf=AJOqlzWsb-d4PS1_OUOEhKmRc2RbtSg3RQ%3A1677092596279&ei=9Gb2Y9K5ENTa5OUPvLykGA&ved=0ahUKEwjSg9Pj6Kn9AhVULbkGHTweCQMQ4dUDCAg&uact=5&oq=pneu+225%2F65+R17&gs_lcp=Cgtwcm9kdWN0cy1jYxADMgsIABCABBCxAxCDATIFCAAQgAQyBwgAEIAEEAoyBwgAEIAEEAoyBwgAEIAEEAoyBwgAEIAEEAoyBwgAEIAEEAoyBQgAEIAEMgcIABCABBAKMgcIABCABBAKOgQIIxAnOgQIABBDSgQIQRgAUABYoTJgqUBoAHAAeACAAdIFiAGUKZIBDTAuMi42LjIuMi4yLjGYAQCgAQHAAQE&sclient=products-cc
B55: OBSERVAÇÕES:
A56: * | B56: Calculado com base na taxa SELIC JANEIRO/2025: | C56: 0.15
B57: Taxa de Juros Selic — Português (Brasil) (www.gov.br)
A58: ** | B58: Conservação e manutenção - é calculado com o uso de um coeficiente multiplicador "k", conforme tabela abaixo, sobre a
B59: depreciação mensal do equipamento (Item A da planilha de composição de preços). Os valores de K são fornecidos por
B60: fabricantes.
B61: Metodologia conforme a bibliografia "Como Preparar Orçamentos de Obras", 3 edição, Aldo Dórea Mattos, 2019.

Sheet CPU HOSPEDAGEM
B2: Engenharia Consultiva da Codevasf
B3: CPU - HOSPEDAGEM EQUIPE DE CAMPO (4 PESSOAS/MÊS) | D3: Código/Referencia
B4: ALUGUEL | C4: 3074.56 | D4: F020003334/EMBASA insumo
B5: Aquisição de Mobiliário | C5: =42.11*C16 -> 168.44 | D5: B8954/DNIT
B6: Material de limpeza e diarista | C6: =129.46+(123*8) -> 1113.46 | D6: 10563/ORSE - E200300131/EMBASA
B7: manutenção da casa alugada - Serviços Gerais/Vigia | C7: 2.659,21 | D7: 41096/SINAPI
B8: Energia | C8: 180 | D8: 10555/ORSE
B9: Água | C9: 394.99 | D9: 10554/ORSE
B10: telefone/Internet | C10: =154.99+89 -> 243.99 | D10: 10557/10558/ORSE
B11: IPTU (mês) | C11: =(C4*0.5)/12 -> 128.1066667
B13: Custo Mensal: | C13: =SUM(C4:C12) -> 5303.546667
B14: Custo Mensal por pessoa: | C14: =C13/C16 -> 1325.886667
B15: Custo diário por pessoa: | C15: =C14/22 -> 60.26757576
B16: número de pessoas: | C16: 4
B17: Alimentação: | C17: 100.59 | D17: Tabela Diária Codevasf 2024
B19: Diária Total (alimentação + hospedagem): | C19: =C15+C17 -> 160.8575758

Sheet MDO - DNIT
A1: Código | B1: Categoria | C1: Unid. | D1: Salário | E1: Encargos Sociais | G1: Encargos Complementares | Q1: Encargos Adicionais | W1: Encargos Totais | Y1: Valor Total
G2: Alimentação | I2: EPI | K2: Ferramenta | M2: Transporte | O2: Exame Ocupacional | Q2: Cesta Básica | S2: Assistência Médica | U2: Seguro de Vida
D3: R$ | E3: % | F3: R$ | G3: % | H3: R$ | I3: % | J3: R$ | K3: % | L3: R$ | M3: % | N3: R$ | O3: % | P3: R$ | Q3: % | R3: R$ | S3: % | T3: R$ | U3: % | V3: R$ | W3: % | X3: R$ | Y3: R$
A4: P8001 | B4: Advogado júnior | C4: mês | D4: 4939.72 | E4: 79.39 | F4: 3921.65 | G4: 14.91 | H4: 736.74 | I4: 0.55 | J4: 27.13 | K4: 0 | L4: 0 | M4: 0 | N4: 0 | O4: 0.06 | P4: 3.02 | Q4: 0 | R4: 0 | S4: 6.36 | T4: 314.2 | U4: 0.2 | V4: 9.98 | W4: 101.48 | X4: 5012.72 | Y4: 9952.44 | Z4: =Y4-F4-D4 -> 1091.07
A5: P8002 | B5: Advogado pleno | C5: mês | D5: 6586.3 | E5: 79.39 | F5: 5228.86 | G5: 11.19 | H5: 736.74 | I5: 0.41 | J5: 27.13 | K5: 0 | L5: 0 | M5: 0 | N5: 0 | O5: 0.05 | P5: 3.02 | Q5: 0 | R5: 0 | S5: 4.77 | T5: 314.2 | U5: 0.15 | V5: 9.98 | W5: 95.96 | X5: 6319.94 | Y5: 12906.23 | Z5: =Y5-F5-D5 -> 1091.07
A6: P8003 | B6: Advogado sênior | C6: mês | D6: 12088.9 | E6: 79.39 | F6: 9597.38 | G6: 6.09 | H6: 736.74 | I6: 0.22 | J6: 27.13 | K6: 0 | L6: 0 | M6: 0 | N6: 0 | O6: 0.02 | P6: 3.02 | Q6: 0 | R6: 0 | S6: 2.6 | T6: 314.2 | U6: 0.08 | V6: 9.98 | W6: 88.42 | X6: 10688.45 | Y6: 22777.35 | Z6: 1091.07
A7: P8007 | B7: Analista de desenvolvimento de sistemas júnior | C7: mês | D7: 4251.21 | E7: 79.59 | F7: 3383.54 | G7: 17.33 | H7: 736.74 | I7: 0 | J7: 0 | K7: 0 | L7: 0 | M7: 0 | N7: 0 | O7: 0.08 | P7: 3.27 | Q7: 0 | R7: 0 | S7: 7.39 | T7: 314.2 | U7: 0.23 | V7: 9.98 | W7: 104.62 | X7: 4447.73 | Y7: 8698.95 | Z7: 1064.2
A8: P8008 | B8: Analista de desenvolvimento de sistemas pleno | C8: mês | D8: 5668.29 | E8: 79.59 | F8: 4511.39 | G8: 13 | H8: 736.74 | I8: 0 | J8: 0 | K8: 0 | L8: 0 | M8: 0 | N8: 0 | O8: 0.06 | P8: 3.27 | Q8: 0 | R8: 0 | S8: 5.54 | T8: 314.2 | U8: 0.18 | V8: 9.98 | W8: 98.36 | X8: 5575.58 | Y8: 11243.87 | Z8: 1064.19
A9: P8009 | B9: Analista de desenvolvimento de sistemas sênior | C9: mês | D9: 10092 | E9: 79.59 | F9: 8032.22 | G9: 7.3 | H9: 736.74 | I9: 0 | J9: 0 | K9: 0 | L9: 0 | M9: 0 | N9: 0 | O9: 0.03 | P9: 3.27 | Q9: 0 | R9: 0 | S9: 3.11 | T9: 314.2 | U9: 0.1 | V9: 9.98 | W9: 90.13 | X9: 9096.41 | Y9: 19188.41 | Z9: 1064.19
A10: P8013 | B10: Arquiteto júnior | C10: mês | D10: 12903 | E10: 79.43 | F10: 10248.85 | G10: 5.71 | H10: 736.74 | I10: 0.21 | J10: 27.13 | K10: 0 | L10: 0 | M10: 0 | N10: 0 | O10: 0.02 | P10: 2.8 | Q10: 0 | R10: 0 | S10: 2.44 | T10: 314.2 | U10: 0.08 | V10: 9.98 | W10: 87.88 | X10: 11339.71 | Y10: 24242.71 | Z10: 1090.86
A11: P8014 | B11: Arquiteto pleno | C11: mês | D11: 14712.81 | E11: 79.43 | F11: 11686.39 | G11: 5.01 | H11: 736.74 | I11: 0.18 | J11: 27.13 | K11: 0 | L11: 0 | M11: 0 | N11: 0 | O11: 0.02 | P11: 2.8 | Q11: 0 | R11: 0 | S11: 2.14 | T11: 314.2 | U11: 0.07 | V11: 9.98 | W11: 86.84 | X11: 12777.24 | Y11: 27490.05 | Z11: 1090.85
A12: P8015 | B12: Arquiteto sênior | C12: mês | D12: 16522.62 | E12: 79.43 | F12: 13123.92 | G12: 4.46 | H12: 736.74 | I12: 0.16 | J12: 27.13 | K12: 0 | L12: 0 | M12: 0 | N12: 0 | O12: 0.02 | P12: 2.8 | Q12: 0 | R12: 0 | S12: 1.9 | T12: 314.2 | U12: 0.06 | V12: 9.98 | W12: 86.03 | X12: 14214.77 | Y12: 30737.39 | Z12: 1090.85
A13: P8019 | B13: Assistente social júnior | C13: mês | D13: 3362.83 | E13: 80.12 | F13: 2694.3 | G13: 21.91 | H13: 736.74 | I13: 0.81 | J13: 27.13 | K13: 0 | L13: 0 | M13: 1.4 | N13: 47.13 | O13: 0.13 | P13: 4.22 | Q13: 0 | R13: 0 | S13: 9.34 | T13: 314.2 | U13: 0.3 | V13: 9.98 | W13: 114 | X13: 3833.7 | Y13: 7196.53 | Z13: 1139.4
A14: P8020 | B14: Assistente social pleno | C14: mês | D14: 4483.77 | E14: 80.12 | F14: 3592.4 | G14: 16.43 | H14: 736.74 | I14: 0.61 | J14: 27.13 | K14: 0 | L14: 0 | M14: 0 | N14: 0 | O14: 0.09 | P14: 4.22 | Q14: 0 | R14: 0 | S14: 7.01 | T14: 314.2 | U14: 0.22 | V14: 9.98 | W14: 104.48 | X14: 4684.67 | Y14: 9168.44 | Z14: 1092.27
A15: P8021 | B15: Assistente social sênior | C15: mês | D15: 7579.69 | E15: 80.12 | F15: 6072.85 | G15: 9.72 | H15: 736.74 | I15: 0.36 | J15: 27.13 | K15: 0 | L15: 0 | M15: 0 | N15: 0 | O15: 0.06 | P15: 4.22 | Q15: 0 | R15: 0 | S15: 4.15 | T15: 314.2 | U15: 0.13 | V15: 9.98 | W15: 94.53 | X15: 7165.12 | Y15: 14744.81 | Z15: 1092.27
A16: P8025 | B16: Auxiliar | C16: mês | D16: 1665.28 | E16: 81.72 | F16: 1360.86 | G16: 44.24 | H16: 736.74 | I16: 1.98 | J16: 33.03 | K16: 0.1 | L16: 1.69 | M16: 8.95 | N16: 148.98 | O16: 0.34 | P16: 5.64 | Q16: 0 | R16: 0 | S16: 18.87 | T16: 314.2 | U16: 0.6 | V16: 9.98 | W16: 156.8 | X16: 2611.13 | Y16: 4276.41 | Z16: 1250.27
A17: P8026 | B17: Auxiliar administrativo | C17: mês | D17: 1931.52 | E17: 80.33 | F17: 1551.59 | G17: 38.14 | H17: 736.74 | I17: 0 | J17: 0 | K17: 0 | L17: 0 | M17: 6.89 | N17: 133.01 | O17: 0.24 | P17: 4.65 | Q17: 0 | R17: 0 | S17: 16.27 | T17: 314.2 | U17: 0.52 | V17: 9.98 | W17: 142.38 | X17: 2750.17 | Y17: 4681.69 | Z17: 1198.58
A18: P8027 | B18: Auxiliar de laboratório | C18: mês | D18: 1836.99 | E18: 80.41 | F18: 1477.12 | G18: 40.11 | H18: 736.74 | I18: 1.8 | J18: 33.03 | K18: 0.19 | L18: 3.49 | M18: 7.55 | N18: 138.68 | O18: 0.21 | P18: 3.86 | Q18: 0 | R18: 0 | S18: 17.1 | T18: 314.2 | U18: 0.54 | V18: 9.98 | W18: 147.91 | X18: 2717.1 | Y18: 4554.09 | Z18: 1239.98
A19: P8028 | B19: Auxiliar de topografia | C19: mês | D19: 1665.28 | E19: 80.6 | F19: 1342.21 | G19: 44.24 | H19: 736.74 | I19: 1.98 | J19: 33.03 | K19: 0.09 | L19: 1.47 | M19: 8.95 | N19: 148.98 | O19: 0.24 | P19: 4.06 | Q19: 0 | R19: 0 | S19: 18.87 | T19: 314.2 | U19: 0.6 | V19: 9.98 | W19: 155.57 | X19: 2590.68 | Y19: 4255.96 | Z19: 1248.47
A20: P8032 | B20: Biólogo júnior | C20: mês | D20: 3225.03 | E20: 79.75 | F20: 2571.96 | G20: 22.84 | H20: 736.74 | I20: 0.84 | J20: 27.13 | K20: 0 | L20: 0 | M20: 1.72 | N20: 55.4 | O20: 0.11 | P20: 3.47 | Q20: 0 | R20: 0 | S20: 9.74 | T20: 314.2 | U20: 0.31 | V20: 9.98 | W20: 115.31 | X20: 3718.88 | Y20: 6943.91 | Z20: 1146.92
A21: P8033 | B21: Biólogo pleno | C21: mês | D21: 4300.04 | E21: 79.75 | F21: 3429.28 | G21: 17.13 | H21: 736.74 | I21: 0.63 | J21: 27.13 | K21: 0 | L21: 0 | M21: 0 | N21: 0 | O21: 0.08 | P21: 3.47 | Q21: 0 | R21: 0 | S21: 7.31 | T21: 314.2 | U21: 0.23 | V21: 9.98 | W21: 105.13 | X21: 4520.81 | Y21: 8820.85 | Z21: 1091.53
A22: P8034 | B22: Biólogo sênior | C22: mês | D22: 7780.45 | E22: 79.75 | F22: 6204.91 | G22: 9.47 | H22: 736.74 | I22: 0.35 | J22: 27.13 | K22: 0 | L22: 0 | M22: 0 | N22: 0 | O22: 0.04 | P22: 3.47 | Q22: 0 | R22: 0 | S22: 4.04 | T22: 314.2 | U22: 0.13 | V22: 9.98 | W22: 93.78 | X22: 7296.43 | Y22: 15076.89 | Z22: 1091.53
A23: P8038 | B23: Chefe de escritório | C23: mês | D23: 3574.77 | E23: 79.5 | F23: 2841.94 | G23: 20.61 | H23: 736.74 | I23: 0 | J23: 0 | K23: 0 | L23: 0 | M23: 0.96 | N23: 34.41 | O23: 0.07 | P23: 2.55 | Q23: 0 | R23: 0 | S23: 8.79 | T23: 314.2 | U23: 0.28 | V23: 9.98 | W23: 110.21 | X23: 3939.83 | Y23: 7514.6 | Z23: 1097.89
A24: P8040 | B24: Contador júnior | C24: mês | D24: 4357.59 | E24: 79.5 | F24: 3464.28 | G24: 16.91 | H24: 736.74 | I24: 0 | J24: 0 | K24: 0 | L24: 0 | M24: 0 | N24: 0 | O24: 0.06 | P24: 2.6 | Q24: 0 | R24: 0 | S24: 7.21 | T24: 314.2 | U24: 0.23 | V24: 9.98 | W24: 103.91 | X24: 4527.8 | Y24: 8885.39 | Z24: 1063.52
A25: P8041 | B25: Contador pleno | C25: mês | D25: 5810.11 | E25: 79.5 | F25: 4619.04 | G25: 12.68 | H25: 736.74 | I25: 0 | J25: 0 | K25: 0 | L25: 0 | M25: 0 | N25: 0 | O25: 0.04 | P25: 2.6 | Q25: 0 | R25: 0 | S25: 5.41 | T25: 314.2 | U25: 0.17 | V25: 9.98 | W25: 97.8 | X25: 5682.56 | Y25: 11492.68 | Z25: 1063.53
A26: P8042 | B26: Contador sênior | C26: mês | D26: 11135.61 | E26: 79.5 | F26: 8852.81 | G26: 6.62 | H26: 736.74 | I26: 0 | J26: 0 | K26: 0 | L26: 0 | M26: 0 | N26: 0 | O26: 0.02 | P26: 2.6 | Q26: 0 | R26: 0 | S26: 2.82 | T26: 314.2 | U26: 0.09 | V26: 9.98 | W26: 89.05 | X26: 9916.34 | Y26: 21051.95 | Z26: 1063.53
A27: P8044 | B27: Coordenador ambiental | C27: mês | D27: 18152.96 | E27: 79.92 | F27: 14507.85 | G27: 4.06 | H27: 736.74 | I27: 0.14 | J27: 24.78 | K27: 0 | L27: 0 | M27: 0 | N27: 0 | O27: 0.02 | P27: 4.08 | Q27: 0 | R27: 0 | S27: 1.73 | T27: 314.2 | U27: 0.05 | V27: 9.98 | W27: 85.92 | X27: 15597.62 | Y27: 33750.59 | Z27: 1089.78
A28: P8045 | B28: Economista júnior | C28: mês | D28: 4833.48 | E28: 78.7 | F28: 3803.95 | G28: 15.24 | H28: 736.74 | I28: 0 | J28: 0 | K28: 0 | L28: 0 | M28: 0 | N28: 0 | O28: 0.04 | P28: 1.84 | Q28: 0 | R28: 0 | S28: 6.5 | T28: 314.2 | U28: 0.21 | V28: 9.98 | W28: 100.69 | X28: 4866.71 | Y28: 9700.18 | Z28: 1062.75
A29: P8046 | B29: Economista pleno | C29: mês | D29: 6444.64 | E29: 78.7 | F29: 5071.93 | G29: 11.43 | H29: 736.74 | I29: 0 | J29: 0 | K29: 0 | L29: 0 | M29: 0 | N29: 0 | O29: 0.03 | P29: 1.84 | Q29: 0 | R29: 0 | S29: 4.88 | T29: 314.2 | U29: 0.15 | V29: 9.98 | W29: 95.19 | X29: 6134.69 | Y29: 12579.32 | Z29: 1062.75
A30: P8047 | B30: Economista sênior | C30: mês | D30: 9829.99 | E30: 78.7 | F30: 7736.2 | G30: 7.49 | H30: 736.74 | I30: 0 | J30: 0 | K30: 0 | L30: 0 | M30: 0 | N30: 0 | O30: 0.02 | P30: 1.84 | Q30: 0 | R30: 0 | S30: 3.2 | T30: 314.2 | U30: 0.1 | V30: 9.98 | W30: 89.51 | X30: 8798.96 | Y30: 18628.95 | Z30: 1062.76
A31: P8054 | B31: Engenheiro agrônomo júnior | C31: mês | D31: 12903 | E31: 79.36 | F31: 10239.82 | G31: 5.71 | H31: 736.74 | I31: 0.21 | J31: 27.13 | K31: 0 | L31: 0 | M31: 0 | N31: 0 | O31: 0.02 | P31: 3.02 | Q31: 0 | R31: 0 | S31: 2.44 | T31: 314.2 | U31: 0.08 | V31: 9.98 | W31: 87.82 | X31: 11330.9 | Y31: 24233.9 | Z31: 1091.08
A32: P8055 | B32: Engenheiro agrônomo pleno | C32: mês | D32: 13740.95 | E32: 79.36 | F32: 10904.81 | G32: 5.36 | H32: 736.74 | I32: 0.2 | J32: 27.13 | K32: 0 | L32: 0 | M32: 0 | N32: 0 | O32: 0.02 | P32: 3.02 | Q32: 0 | R32: 0 | S32: 2.29 | T32: 314.2 | U32: 0.07 | V32: 9.98 | W32: 87.3 | X32: 11995.89 | Y32: 25736.84 | Z32: 1091.08
A33: P8056 | B33: Engenheiro agrônomo sênior | C33: mês | D33: 14578.89 | E33: 79.36 | F33: 11569.81 | G33: 5.05 | H33: 736.74 | I33: 0.19 | J33: 27.13 | K33: 0 | L33: 0 | M33: 0 | N33: 0 | O33: 0.02 | P33: 3.02 | Q33: 0 | R33: 0 | S33: 2.16 | T33: 314.2 | U33: 0.07 | V33: 9.98 | W33: 86.84 | X33: 12660.88 | Y33: 27239.78 | Z33: 1091.08
A34: P8057 | B34: Engenheiro ambiental júnior | C34: mês | D34: 12903 | E34: 80.28 | F34: 10358.53 | G34: 5.71 | H34: 736.74 | I34: 0.21 | J34: 27.13 | K34: 0 | L34: 0 | M34: 0 | N34: 0 | O34: 0.04 | P34: 4.63 | Q34: 0 | R34: 0 | S34: 2.44 | T34: 314.2 | U34: 0.08 | V34: 9.98 | W34: 88.75 | X34: 11451.21 | Y34: 24354.21 | Z34: 1092.68
A35: P8058 | B35: Engenheiro ambiental pleno | C35: mês | D35: 14125.9 | E35: 80.28 | F35: 11340.28 | G35: 5.22 | H35: 736.74 | I35: 0.19 | J35: 27.13 | K35: 0 | L35: 0 | M35: 0 | N35: 0 | O35: 0.03 | P35: 4.63 | Q35: 0 | R35: 0 | S35: 2.22 | T35: 314.2 | U35: 0.07 | V35: 9.98 | W35: 88.02 | X35: 12432.96 | Y35: 26558.86 | Z35: 1092.68
A36: P8059 | B36: Engenheiro ambiental sênior | C36: mês | D36: 15348.81 | E36: 80.28 | F36: 12322.02 | G36: 4.8 | H36: 736.74 | I36: 0.18 | J36: 27.13 | K36: 0 | L36: 0 | M36: 0 | N36: 0 | O36: 0.03 | P36: 4.63 | Q36: 0 | R36: 0 | S36: 2.05 | T36: 314.2 | U36: 0.07 | V36: 9.98 | W36: 87.4 | X36: 13414.7 | Y36: 28763.51 | Z36: 1092.68
A37: P8060 | B37: Engenheiro consultor especial | C37: mês | D37: 22750.26 | E37: 79.78 | F37: 18150.16 | G37: 3.24 | H37: 736.74 | I37: 0.11 | J37: 24.78 | K37: 0 | L37: 0 | M37: 0 | N37: 0 | O37: 0.02 | P37: 3.75 | Q37: 0 | R37: 0 | S37: 1.38 | T37: 314.2 | U37: 0.04 | V37: 9.98 | W37: 84.57 | X37: 19239.61 | Y37: 41989.87 | Z37: 1089.45
A38: P8061 | B38: Engenheiro coordenador | C38: mês | D38: 18958.55 | E38: 79.78 | F38: 15125.13 | G38: 3.89 | H38: 736.74 | I38: 0.13 | J38: 24.78 | K38: 0 | L38: 0 | M38: 0 | N38: 0 | O38: 0.02 | P38: 3.75 | Q38: 0 | R38: 0 | S38: 1.66 | T38: 314.2 | U38: 0.05 | V38: 9.98 | W38: 85.53 | X38: 16214.58 | Y38: 35173.13 | Z38: 1089.45
A39: P8062 | B39: Engenheiro de pesca júnior | C39: mês | D39: 12903 | E39: 80.15 | F39: 10341.75 | G39: 5.71 | H39: 736.74 | I39: 0.21 | J39: 27.13 | K39: 0 | L39: 0 | M39: 0 | N39: 0 | O39: 0.03 | P39: 3.5 | Q39: 0 | R39: 0 | S39: 2.44 | T39: 314.2 | U39: 0.08 | V39: 9.98 | W39: 88.61 | X39: 11433.3 | Y39: 24336.3 | Z39: 1091.55
A40: P8063 | B40: Engenheiro de pesca pleno | C40: mês | D40: 13978.87 | E40: 80.15 | F40: 11204.06 | G40: 5.27 | H40: 736.74 | I40: 0.19 | J40: 27.13 | K40: 0 | L40: 0 | M40: 0 | N40: 0 | O40: 0.03 | P40: 3.5 | Q40: 0 | R40: 0 | S40: 2.25 | T40: 314.2 | U40: 0.07 | V40: 9.98 | W40: 87.96 | X40: 12295.61 | Y40: 26274.48 | Z40: 1091.55
A41: P8064 | B41: Engenheiro de pesca sênior | C41: mês | D41: 15054.74 | E41: 80.15 | F41: 12066.37 | G41: 4.89 | H41: 736.74 | I41: 0.18 | J41: 27.13 | K41: 0 | L41: 0 | M41: 0 | N41: 0 | O41: 0.02 | P41: 3.5 | Q41: 0 | R41: 0 | S41: 2.09 | T41: 314.2 | U41: 0.07 | V41: 9.98 | W41: 87.4 | X41: 13157.92 | Y41: 28212.66 | Z41: 1091.55
A42: P8065 | B42: Engenheiro de projetos júnior | C42: mês | D42: 12903 | E42: 79.78 | F42: 10294.01 | G42: 5.71 | H42: 736.74 | I42: 0.21 | J42: 27.13 | K42: 0 | L42: 0 | M42: 0 | N42: 0 | O42: 0.03 | P42: 3.75 | Q42: 0 | R42: 0 | S42: 2.44 | T42: 314.2 | U42: 0.08 | V42: 9.98 | W42: 88.24 | X42: 11385.81 | Y42: 24288.81 | Z42: 1091.8
A43: P8066 | B43: Engenheiro de projetos pleno | C43: mês | D43: 14740.22 | E43: 79.78 | F43: 11759.75 | G43: 5 | H43: 736.74 | I43: 0.18 | J43: 27.13 | K43: 0 | L43: 0 | M43: 0 | N43: 0 | O43: 0.03 | P43: 3.75 | Q43: 0 | R43: 0 | S43: 2.13 | T43: 314.2 | U43: 0.07 | V43: 9.98 | W43: 87.19 | X43: 12851.55 | Y43: 27591.76 | Z43: 1091.79
A44: P8067 | B44: Engenheiro de projetos sênior | C44: mês | D44: 16577.43 | E44: 79.78 | F44: 13225.48 | G44: 4.44 | H44: 736.74 | I44: 0.16 | J44: 27.13 | K44: 0 | L44: 0 | M44: 0 | N44: 0 | O44: 0.02 | P44: 3.75 | Q44: 0 | R44: 0 | S44: 1.9 | T44: 314.2 | U44: 0.06 | V44: 9.98 | W44: 86.37 | X44: 14317.28 | Y44: 30894.71 | Z44: 1091.8
A45: P8068 | B45: Engenheiro florestal júnior | C45: mês | D45: 12903 | E45: 80.15 | F45: 10341.75 | G45: 5.71 | H45: 736.74 | I45: 0.21 | J45: 27.13 | K45: 0 | L45: 0 | M45: 0 | N45: 0 | O45: 0.03 | P45: 3.5 | Q45: 0 | R45: 0 | S45: 2.44 | T45: 314.2 | U45: 0.08 | V45: 9.98 | W45: 88.61 | X45: 11433.3 | Y45: 24336.3 | Z45: 1091.55
A46: P8069 | B46: Engenheiro florestal pleno | C46: mês | D46: 13978.87 | E46: 80.15 | F46: 11204.06 | G46: 5.27 | H46: 736.74 | I46: 0.19 | J46: 27.13 | K46: 0 | L46: 0 | M46: 0 | N46: 0 | O46: 0.03 | P46: 3.5 | Q46: 0 | R46: 0 | S46: 2.25 | T46: 314.2 | U46: 0.07 | V46: 9.98 | W46: 87.96 | X46: 12295.61 | Y46: 26274.48 | Z46: 1091.55
A47: P8070 | B47: Engenheiro florestal sênior | C47: mês | D47: 15054.74 | E47: 80.15 | F47: 12066.37 | G47: 4.89 | H47: 736.74 | I47: 0.18 | J47: 27.13 | K47: 0 | L47: 0 | M47: 0 | N47: 0 | O47: 0.02 | P47: 3.5 | Q47: 0 | R47: 0 | S47: 2.09 | T47: 314.2 | U47: 0.07 | V47: 9.98 | W47: 87.4 | X47: 13157.92 | Y47: 28212.66 | Z47: 1091.55
A48: P8080 | B48: Geólogo júnior | C48: mês | D48: 12903 | E48: 80.24 | F48: 10353.37 | G48: 5.5 | H48: 709.66 | I48: 0.21 | J48: 27.13 | K48: 0 | L48: 0 | M48: 0 | N48: 0 | O48: 0.03 | P48: 3.76 | Q48: 0 | R48: 0 | S48: 2.44 | T48: 314.2 | U48: 0.08 | V48: 9.98 | W48: 88.49 | X48: 11418.09 | Y48: 24321.09 | Z48: 1064.72
A49: P8081 | B49: Geólogo pleno | C49: mês | D49: 13712.52 | E49: 80.24 | F49: 11002.93 | G49: 5.18 | H49: 709.66 | I49: 0.2 | J49: 27.13 | K49: 0 | L49: 0 | M49: 0 | N49: 0 | O49: 0.03 | P49: 3.76 | Q49: 0 | R49: 0 | S49: 2.29 | T49: 314.2 | U49: 0.07 | V49: 9.98 | W49: 88 | X49: 12067.66 | Y49: 25780.18 | Z49: 1064.73
A50: P8082 | B50: Geólogo sênior | C50: mês | D50: 14522.05 | E50: 80.24 | F50: 11652.49 | G50: 4.89 | H50: 709.66 | I50: 0.19 | J50: 27.13 | K50: 0 | L50: 0 | M50: 0 | N50: 0 | O50: 0.03 | P50: 3.76 | Q50: 0 | R50: 0 | S50: 2.16 | T50: 314.2 | U50: 0.07 | V50: 9.98 | W50: 87.57 | X50: 12717.22 | Y50: 27239.27 | Z50: 1064.73
A51: P8092 | B51: Jornalista júnior | C51: mês | D51: 3280.26 | E51: 79.6 | F51: 2611.09 | G51: 22.46 | H51: 736.74 | I51: 0.83 | J51: 27.13 | K51: 0 | L51: 0 | M51: 1.59 | N51: 52.08 | O51: 0.08 | P51: 2.49 | Q51: 0 | R51: 0 | S51: 9.58 | T51: 314.2 | U51: 0.3 | V51: 9.98 | W51: 114.43 | X51: 3753.72 | Y51: 7033.98 | Z51: 1142.63
A52: P8093 | B52: Jornalista pleno | C52: mês | D52: 4373.69 | E52: 79.6 | F52: 3481.45 | G52: 16.84 | H52: 736.74 | I52: 0.62 | J52: 27.13 | K52: 0 | L52: 0 | M52: 0 | N52: 0 | O52: 0.06 | P52: 2.49 | Q52: 0 | R52: 0 | S52: 7.18 | T52: 314.2 | U52: 0.23 | V52: 9.98 | W52: 104.53 | X52: 4572 | Y52: 8945.68 | Z52: 1090.54
A53: P8094 | B53: Jornalista sênior | C53: mês | D53: 8312.62 | E53: 79.6 | F53: 6616.84 | G53: 8.86 | H53: 736.74 | I53: 0.33 | J53: 27.13 | K53: 0 | L53: 0 | M53: 0 | N53: 0 | O53: 0.03 | P53: 2.49 | Q53: 0 | R53: 0 | S53: 3.78 | T53: 314.2 | U53: 0.12 | V53: 9.98 | W53: 92.72 | X53: 7707.39 | Y53: 16020 | Z53: 1090.54
A54: P8098 | B54: Laboratorista | C54: mês | D54: 2449.31 | E54: 80.41 | F54: 1969.49 | G54: 30.08 | H54: 736.74 | I54: 1.24 | J54: 30.41 | K54: 0 | L54: 0 | M54: 4.16 | N54: 101.94 | O54: 0.16 | P54: 3.86 | Q54: 0 | R54: 0 | S54: 12.83 | T54: 314.2 | U54: 0.41 | V54: 9.98 | W54: 129.29 | X54: 3166.63 | Y54: 5615.95 | Z54: 1197.15
A55: P8102 | B55: Médico veterinário | C55: mês | D55: 12903 | E55: 79.12 | F55: 10208.85 | G55: 5.71 | H55: 736.74 | I55: 0.21 | J55: 27.13 | K55: 0 | L55: 0 | M55: 0 | N55: 0 | O55: 0.02 | P55: 2.68 | Q55: 0 | R55: 0 | S55: 2.44 | T55: 314.2 | U55: 0.08 | V55: 9.98 | W55: 87.57 | X55: 11299.58 | Y55: 24202.58 | Z55: 1090.73
A56: P8106 | B56: Meteorologista júnior | C56: mês | D56: 5337.05 | E56: 79.75 | F56: 4256.3 | G56: 13.8 | H56: 736.74 | I56: 0.51 | J56: 27.13 | K56: 0 | L56: 0 | M56: 0 | N56: 0 | O56: 0.05 | P56: 2.68 | Q56: 0 | R56: 0 | S56: 5.89 | T56: 314.2 | U56: 0.19 | V56: 9.98 | W56: 100.19 | X56: 5347.03 | Y56: 10684.08 | Z56: 1090.73
A57: P8107 | B57: Meteorologista pleno | C57: mês | D57: 7116.07 | E57: 79.75 | F57: 5675.07 | G57: 10.35 | H57: 736.74 | I57: 0.38 | J57: 27.13 | K57: 0 | L57: 0 | M57: 0 | N57: 0 | O57: 0.04 | P57: 2.68 | Q57: 0 | R57: 0 | S57: 4.42 | T57: 314.2 | U57: 0.14 | V57: 9.98 | W57: 95.08 | X57: 6765.8 | Y57: 13881.87 | Z57: 1090.73
A58: P8108 | B58: Meteorologista sênior | C58: mês | D58: 11704.98 | E58: 79.75 | F58: 9334.72 | G58: 6.29 | H58: 736.74 | I58: 0.23 | J58: 27.13 | K58: 0 | L58: 0 | M58: 0 | N58: 0 | O58: 0.02 | P58: 2.68 | Q58: 0 | R58: 0 | S58: 2.68 | T58: 314.2 | U58: 0.09 | V58: 9.98 | W58: 89.07 | X58: 10425.45 | Y58: 22130.43 | Z58: 1090.73
A59: P8112 | B59: Motorista de caminhão | C59: mês | D59: 2472.47 | E59: 80.57 | F59: 1992.07 | G59: 29.8 | H59: 736.74 | I59: 1.34 | J59: 33.03 | K59: 0 | L59: 0 | M59: 4.07 | N59: 100.55 | O59: 0.16 | P59: 3.97 | Q59: 0 | R59: 0 | S59: 12.71 | T59: 314.2 | U59: 0.4 | V59: 9.98 | W59: 129.04 | X59: 3190.54 | Y59: 5663 | Z59: 1198.46
A60: P8113 | B60: Motorista de veículo leve | C60: mês | D60: 2160.31 | E60: 80.11 | F60: 1730.63 | G60: 34.1 | H60: 736.74 | I60: 1.53 | J60: 33.03 | K60: 0 | L60: 0 | M60: 5.52 | N60: 119.28 | O60: 0.16 | P60: 3.48 | Q60: 0 | R60: 0 | S60: 14.54 | T60: 314.2 | U60: 0.46 | V60: 9.98 | W60: 136.43 | X60: 2947.34 | Y60: 5107.65 | Z60: 1216.71
A61: P8117 | B61: Oceanógrafo júnior | C61: mês | D61: 4764.92 | E61: 82.55 | F61: 3933.44 | G61: 15.46 | H61: 736.74 | I61: 0.57 | J61: 27.13 | K61: 0 | L61: 0 | M61: 0 | N61: 0 | O61: 0.12 | P61: 5.7 | Q61: 0 | R61: 0 | S61: 6.59 | T61: 314.2 | U61: 0.21 | V61: 9.98 | W61: 105.5 | X61: 5027.19 | Y61: 9792.12 | Z61: 1093.76
A62: P8118 | B62: Oceanógrafo pleno | C62: mês | D62: 6353.23 | E62: 82.55 | F62: 5244.59 | G62: 11.6 | H62: 736.74 | I62: 0.43 | J62: 27.13 | K62: 0 | L62: 0 | M62: 0 | N62: 0 | O62: 0.09 | P62: 5.7 | Q62: 0 | R62: 0 | S62: 4.95 | T62: 314.2 | U62: 0.16 | V62: 9.98 | W62: 99.77 | X62: 6338.34 | Y62: 12691.57 | Z62: 1093.75
A63: P8119 | B63: Oceanógrafo sênior | C63: mês | D63: 11634.21 | E63: 82.55 | F63: 9604.04 | G63: 6.33 | H63: 736.74 | I63: 0.23 | J63: 27.13 | K63: 0 | L63: 0 | M63: 0 | N63: 0 | O63: 0.05 | P63: 5.7 | Q63: 0 | R63: 0 | S63: 2.7 | T63: 314.2 | U63: 0.09 | V63: 9.98 | W63: 91.95 | X63: 10697.79 | Y63: 22332 | Z63: 1093.75
A64: P8129 | B64: Pedagogo júnior | C64: mês | D64: 2518.27 | E64: 97.74 | F64: 2461.35 | G64: 29.26 | H64: 736.74 | I64: 1.08 | J64: 27.13 | K64: 0 | L64: 0 | M64: 3.88 | N64: 97.8 | O64: 0.16 | P64: 4.14 | Q64: 0 | R64: 0 | S64: 12.48 | T64: 314.2 | U64: 0.4 | V64: 9.98 | W64: 144.99 | X64: 3651.35 | Y64: 6169.62 | Z64: 1190
A65: P8130 | B65: Pedagogo pleno | C65: mês | D65: 3357.69 | E65: 97.74 | F65: 3281.81 | G65: 21.94 | H65: 736.74 | I65: 0.81 | J65: 27.13 | K65: 0 | L65: 0 | M65: 1.41 | N65: 47.44 | O65: 0.12 | P65: 4.14 | Q65: 0 | R65: 0 | S65: 9.36 | T65: 314.2 | U65: 0.3 | V65: 9.98 | W65: 131.68 | X65: 4421.44 | Y65: 7779.13 | Z65: 1139.63
A66: P8131 | B66: Pedagogo sênior | C66: mês | D66: 4447.62 | E66: 97.74 | F66: 4347.11 | G66: 16.56 | H66: 736.74 | I66: 0.61 | J66: 27.13 | K66: 0 | L66: 0 | M66: 0 | N66: 0 | O66: 0.09 | P66: 4.14 | Q66: 0 | R66: 0 | S66: 7.06 | T66: 314.2 | U66: 0.22 | V66: 9.98 | W66: 122.3 | X66: 5439.3 | Y66: 9886.92 | Z66: 1092.19
A67: P8135 | B67: Secretária | C67: mês | D67: 2841.65 | E67: 80.43 | F67: 2285.54 | G67: 25.93 | H67: 736.74 | I67: 0 | J67: 0 | K67: 0 | L67: 0 | M67: 2.76 | N67: 78.4 | O67: 0.16 | P67: 4.47 | Q67: 0 | R67: 0 | S67: 11.06 | T67: 314.2 | U67: 0.35 | V67: 9.98 | W67: 120.68 | X67: 3429.33 | Y67: 6270.98 | Z67: 1143.79
A68: P8139 | B68: Sondador | C68: mês | D68: 2149.64 | E68: 80.12 | F68: 1722.29 | G68: 34.27 | H68: 736.74 | I68: 1.41 | J68: 30.41 | K68: 0 | L68: 0 | M68: 5.58 | N68: 119.92 | O68: 0.21 | P68: 4.58 | Q68: 0 | R68: 0 | S68: 14.62 | T68: 314.2 | U68: 0.46 | V68: 9.98 | W68: 136.68 | X68: 2938.13 | Y68: 5087.77 | Z68: 1215.84
A69: P8143 | B69: Técnico ambiental | C69: mês | D69: 2987.19 | E69: 80.75 | F69: 2412.15 | G69: 24.66 | H69: 736.74 | I69: 1.02 | J69: 30.41 | K69: 0 | L69: 0 | M69: 2.33 | N69: 69.67 | O69: 0.16 | P69: 4.7 | Q69: 0 | R69: 0 | S69: 10.52 | T69: 314.2 | U69: 0.33 | V69: 9.98 | W69: 119.77 | X69: 3577.85 | Y69: 6565.04 | Z69: =Y69-F69-D69 -> 1165.7
A70: P8147 | B70: Técnico de obras | C70: mês | D70: 3268.63 | E70: 80.27 | F70: 2623.73 | G70: 22.54 | H70: 736.74 | I70: 0.93 | J70: 30.41 | K70: 0 | L70: 0 | M70: 1.61 | N70: 52.78 | O70: 0.11 | P70: 3.67 | Q70: 0 | R70: 0 | S70: 9.61 | T70: 314.2 | U70: 0.31 | V70: 9.98 | W70: 115.39 | X70: 3771.51 | Y70: 7040.14 | Z70: 1147.78
A71: P8151 | B71: Técnico de segurança do trabalho | C71: mês | D71: 4601.83 | E71: 80.95 | F71: 3725.18 | G71: 16.01 | H71: 736.74 | I71: 0.66 | J71: 30.41 | K71: 0 | L71: 0 | M71: 0 | N71: 0 | O71: 0.1 | P71: 4.4 | Q71: 0 | R71: 0 | S71: 6.83 | T71: 314.2 | U71: 0.22 | V71: 9.98 | W71: 104.76 | X71: 4820.92 | Y71: 9422.75 | Z71: 1095.74
A72: P8155 | B72: Técnico em geoprocessamento | C72: mês | D72: 2908.72 | E72: 79.52 | F72: 2313.01 | G72: 25.33 | H72: 736.74 | I72: 1.05 | J72: 30.41 | K72: 0 | L72: 0 | M72: 2.56 | N72: 74.38 | O72: 0.11 | P72: 3.2 | Q72: 0 | R72: 0 | S72: 10.8 | T72: 314.2 | U72: 0.34 | V72: 9.98 | W72: 119.71 | X72: 3481.93 | Y72: 6390.65 | Z72: 1168.92
A73: P8163 | B73: Topógrafo | C73: mês | D73: 2558.11 | E73: 80.6 | F73: 2061.84 | G73: 28.8 | H73: 736.74 | I73: 1.19 | J73: 30.41 | K73: 0 | L73: 0 | M73: 3.73 | N73: 95.41 | O73: 0.16 | P73: 4.06 | Q73: 0 | R73: 0 | S73: 12.28 | T73: 314.2 | U73: 0.39 | V73: 9.98 | W73: 127.15 | X73: 3252.65 | Y73: 5810.76 | Z73: 1190.81
A74: P8167 | B74: Arquivista júnior | C74: mês | D74: 2646.43 | E74: 80.13 | F74: 2120.58 | G74: 27.84 | H74: 736.74 | I74: 0 | J74: 0 | K74: 0 | L74: 0 | M74: 3.41 | N74: 90.11 | O74: 0.15 | P74: 4.01 | Q74: 0 | R74: 0 | S74: 11.87 | T74: 314.2 | U74: 0.38 | V74: 9.98 | W74: 123.78 | X74: 3275.63 | Y74: 5922.06 | Z74: 1155.05
A75: P8168 | B75: Arquivista pleno | C75: mês | D75: 3528.57 | E75: 80.13 | F75: 2827.44 | G75: 20.88 | H75: 736.74 | I75: 0 | J75: 0 | K75: 0 | L75: 0 | M75: 1.05 | N75: 37.19 | O75: 0.11 | P75: 4.01 | Q75: 0 | R75: 0 | S75: 8.9 | T75: 314.2 | U75: 0.28 | V75: 9.98 | W75: 111.36 | X75: 3929.57 | Y75: 7458.14 | Z75: 1102.13
A76: P8169 | B76: Arquivista sênior | C76: mês | D76: 5691.23 | E76: 80.13 | F76: 4560.39 | G76: 12.95 | H76: 736.74 | I76: 0 | J76: 0 | K76: 0 | L76: 0 | M76: 0 | N76: 0 | O76: 0.07 | P76: 4.01 | Q76: 0 | R76: 0 | S76: 5.52 | T76: 314.2 | U76: 0.18 | V76: 9.98 | W76: 98.84 | X76: 5625.33 | Y76: 11316.56 | Z76: 1064.94
A77: P8173 | B77: Administrador júnior | C77: mês | D77: 3537.16 | E77: 79.7 | F77: 2819.12 | G77: 20.83 | H77: 736.74 | I77: 0 | J77: 0 | K77: 0 | L77: 0 | M77: 1.04 | N77: 36.67 | O77: 0.1 | P77: 3.42 | Q77: 0 | R77: 0 | S77: 8.88 | T77: 314.2 | U77: 0.28 | V77: 9.98 | W77: 110.83 | X77: 3920.13 | Y77: 7457.29 | Z77: 1101.01
A78: P8174 | B78: Administrador pleno | C78: mês | D78: 4716.22 | E78: 79.7 | F78: 3758.82 | G78: 15.62 | H78: 736.74 | I78: 0 | J78: 0 | K78: 0 | L78: 0 | M78: 0 | N78: 0 | O78: 0.07 | P78: 3.42 | Q78: 0 | R78: 0 | S78: 6.66 | T78: 314.2 | U78: 0.21 | V78: 9.98 | W78: 102.27 | X78: 4823.17 | Y78: 9539.38 | Z78: 1064.34
A79: P8175 | B79: Administrador sênior | C79: mês | D79: 8501.66 | E79: 79.7 | F79: 6775.82 | G79: 8.67 | H79: 736.74 | I79: 0 | J79: 0 | K79: 0 | L79: 0 | M79: 0 | N79: 0 | O79: 0.04 | P79: 3.42 | Q79: 0 | R79: 0 | S79: 3.7 | T79: 314.2 | U79: 0.12 | V79: 9.98 | W79: 92.22 | X79: 7840.17 | Y79: 16341.82 | Z79: 1064.34
A80: P8180 | B80: Engenheiro agrimensor júnior | C80: mês | D80: 12903 | E80: 80.06 | F80: 10330.14 | G80: 5.71 | H80: 736.74 | I80: 0.21 | J80: 27.13 | K80: 0 | L80: 0 | M80: 0 | N80: 0 | O80: 0.04 | P80: 4.83 | Q80: 0 | R80: 0 | S80: 2.44 | T80: 314.2 | U80: 0.08 | V80: 9.98 | W80: 88.53 | X80: 11423.03 | Y80: 24326.03 | Z80: 1092.89
A81: P8181 | B81: Engenheiro agrimensor pleno | C81: mês | D81: 13824.31 | E81: 80.06 | F81: 11067.74 | G81: 5.33 | H81: 736.74 | I81: 0.2 | J81: 27.13 | K81: 0 | L81: 0 | M81: 0 | N81: 0 | O81: 0.03 | P81: 4.83 | Q81: 0 | R81: 0 | S81: 2.27 | T81: 314.2 | U81: 0.07 | V81: 9.98 | W81: 87.97 | X81: 12160.63 | Y81: 25984.93 | Z81: 1092.88
A82: P8182 | B82: Engenheiro agrimensor sênior | C82: mês | D82: 14745.61 | E82: 80.06 | F82: 11805.34 | G82: 5 | H82: 736.74 | I82: 0.18 | J82: 27.13 | K82: 0 | L82: 0 | M82: 0 | N82: 0 | O82: 0.03 | P82: 4.83 | Q82: 0 | R82: 0 | S82: 2.13 | T82: 314.2 | U82: 0.07 | V82: 9.98 | W82: 87.47 | X82: 12898.22 | Y82: 27643.84 | Z82: 1092.89
A83: P8183 | B83: Geógrafo júnior | C83: mês | D83: 4048.9 | E83: 79.76 | F83: 3229.4 | G83: 18.2 | H83: 736.74 | I83: 0.67 | J83: 27.13 | K83: 0 | L83: 0 | M83: 0.15 | N83: 5.97 | O83: 0.09 | P83: 3.52 | Q83: 0 | R83: 0 | S83: 7.76 | T83: 314.2 | U83: 0.25 | V83: 9.98 | W83: 106.87 | X83: 4326.94 | Y83: 8375.83 | Z83: 1097.53
A84: P8184 | B84: Geógrafo pleno | C84: mês | D84: 5398.53 | E84: 79.76 | F84: 4305.87 | G84: 13.65 | H84: 736.74 | I84: 0.5 | J84: 27.13 | K84: 0 | L84: 0 | M84: 0 | N84: 0 | O84: 0.07 | P84: 3.52 | Q84: 0 | R84: 0 | S84: 5.82 | T84: 314.2 | U84: 0.18 | V84: 9.98 | W84: 99.98 | X84: 5397.44 | Y84: 10795.97 | Z84: 1091.57
A85: P8185 | B85: Geógrafo sênior | C85: mês | D85: 10648.45 | E85: 79.76 | F85: 8493.21 | G85: 6.92 | H85: 736.74 | I85: 0.25 | J85: 27.13 | K85: 0 | L85: 0 | M85: 0 | N85: 0 | O85: 0.03 | P85: 3.52 | Q85: 0 | R85: 0 | S85: 2.95 | T85: 314.2 | U85: 0.09 | V85: 9.98 | W85: 90.01 | X85: 9584.78 | Y85: 20233.23 | Z85: 1091.57
A86: P8186 | B86: Antropólogo júnior | C86: mês | D86: 3475.42 | E86: 86.23 | F86: 2996.85 | G86: 21.2 | H86: 736.74 | I86: 0.78 | J86: 27.13 | K86: 0 | L86: 0 | M86: 1.16 | N86: 40.37 | O86: 0.27 | P86: 9.4 | Q86: 0 | R86: 0 | S86: 9.04 | T86: 314.2 | U86: 0.29 | V86: 9.98 | W86: 118.97 | X86: 4134.68 | Y86: 7610.1 | Z86: 1137.83
A87: P8187 | B87: Antropólogo pleno | C87: mês | D87: 4633.89 | E87: 86.23 | F87: 3995.8 | G87: 15.9 | H87: 736.74 | I87: 0.59 | J87: 27.13 | K87: 0 | L87: 0 | M87: 0 | N87: 0 | O87: 0.2 | P87: 9.4 | Q87: 0 | R87: 0 | S87: 6.78 | T87: 314.2 | U87: 0.22 | V87: 9.98 | W87: 109.91 | X87: 5093.26 | Y87: 9727.15 | Z87: 1097.46
A88: P8188 | B88: Antropólogo sênior | C88: mês | D88: 7387.64 | E88: 86.23 | F88: 6370.36 | G88: 9.97 | H88: 736.74 | I88: 0.37 | J88: 27.13 | K88: 0 | L88: 0 | M88: 0 | N88: 0 | O88: 0.13 | P88: 9.4 | Q88: 0 | R88: 0 | S88: 4.25 | T88: 314.2 | U88: 0.14 | V88: 9.98 | W88: 101.09 | X88: 7467.81 | Y88: 14855.45 | Z88: 1097.45
A89: P8189 | B89: Arqueólogo júnior | C89: mês | D89: 2929.4 | E89: 84.6 | F89: 2478.27 | G89: 25.15 | H89: 736.74 | I89: 0.93 | J89: 27.13 | K89: 0 | L89: 0 | M89: 2.5 | N89: 73.14 | O89: 0.28 | P89: 8.16 | Q89: 0 | R89: 0 | S89: 10.73 | T89: 314.2 | U89: 0.34 | V89: 9.98 | W89: 124.52 | X89: 3647.61 | Y89: 6577.01 | Z89: 1169.34
A90: P8190 | B90: Arqueólogo pleno | C90: mês | D90: 3905.86 | E90: 84.6 | F90: 3304.36 | G90: 18.86 | H90: 736.74 | I90: 0.69 | J90: 27.13 | K90: 0 | L90: 0 | M90: 0.37 | N90: 14.55 | O90: 0.21 | P90: 8.16 | Q90: 0 | R90: 0 | S90: 8.04 | T90: 314.2 | U90: 0.26 | V90: 9.98 | W90: 113.04 | X90: 4415.12 | Y90: 8320.98 | Z90: 1110.76
A91: P8191 | B91: Arqueólogo sênior | C91: mês | D91: 5849.34 | E91: 84.6 | F91: 4948.54 | G91: 12.6 | H91: 736.74 | I91: 0.46 | J91: 27.13 | K91: 0 | L91: 0 | M91: 0 | N91: 0 | O91: 0.14 | P91: 8.16 | Q91: 0 | R91: 0 | S91: 5.37 | T91: 314.2 | U91: 0.17 | V91: 9.98 | W91: 103.34 | X91: 6044.75 | Y91: 11894.09 | Z91: 1096.21
A92: P8192 | B92: Historiador júnior | C92: mês | D92: 4159.21 | E92: 81.91 | F92: 3406.81 | G92: 17.71 | H92: 736.74 | I92: 0.65 | J92: 27.13 | K92: 0 | L92: 0 | M92: 0 | N92: 0 | O92: 0.17 | P92: 7.01 | Q92: 0 | R92: 0 | S92: 7.55 | T92: 314.2 | U92: 0.24 | V92: 9.98 | W92: 108.24 | X92: 4501.87 | Y92: 8661.08 | Z92: 1095.06
A93: P8193 | B93: Historiador pleno | C93: mês | D93: 5545.62 | E93: 81.91 | F93: 4542.41 | G93: 13.29 | H93: 736.74 | I93: 0.49 | J93: 27.13 | K93: 0 | L93: 0 | M93: 0 | N93: 0 | O93: 0.13 | P93: 7.01 | Q93: 0 | R93: 0 | S93: 5.67 | T93: 314.2 | U93: 0.18 | V93: 9.98 | W93: 101.66 | X93: 5637.47 | Y93: 11183.09 | Z93: 1095.06
A94: P8194 | B94: Historiador sênior | C94: mês | D94: 8859.16 | E94: 81.91 | F94: 7256.54 | G94: 8.32 | H94: 736.74 | I94: 0.31 | J94: 27.13 | K94: 0 | L94: 0 | M94: 0 | N94: 0 | O94: 0.08 | P94: 7.01 | Q94: 0 | R94: 0 | S94: 3.55 | T94: 314.2 | U94: 0.11 | V94: 9.98 | W94: 94.27 | X94: 8351.59 | Y94: 17210.75 | Z94: 1095.05
A95: P8195 | B95: Paleontólogo júnior | C95: mês | D95: 3475.42 | E95: 86.23 | F95: 2996.85 | G95: 21.2 | H95: 736.74 | I95: 0.78 | J95: 27.13 | K95: 0 | L95: 0 | M95: 1.16 | N95: 40.37 | O95: 0.27 | P95: 9.4 | Q95: 0 | R95: 0 | S95: 9.04 | T95: 314.2 | U95: 0.29 | V95: 9.98 | W95: 118.97 | X95: 4134.68 | Y95: 7610.1 | Z95: 1137.83
A96: P8196 | B96: Paleontólogo pleno | C96: mês | D96: 4633.89 | E96: 86.23 | F96: 3995.8 | G96: 15.9 | H96: 736.74 | I96: 0.59 | J96: 27.13 | K96: 0 | L96: 0 | M96: 0 | N96: 0 | O96: 0.2 | P96: 9.4 | Q96: 0 | R96: 0 | S96: 6.78 | T96: 314.2 | U96: 0.22 | V96: 9.98 | W96: 109.91 | X96: 5093.26 | Y96: 9727.15 | Z96: 1097.46
A97: P8197 | B97: Paleontólogo sênior | C97: mês | D97: 7387.64 | E97: 86.23 | F97: 6370.36 | G97: 9.97 | H97: 736.74 | I97: 0.37 | J97: 27.13 | K97: 0 | L97: 0 | M97: 0 | N97: 0 | O97: 0.13 | P97: 9.4 | Q97: 0 | R97: 0 | S97: 4.25 | T97: 314.2 | U97: 0.14 | V97: 9.98 | W97: 101.09 | X97: 7467.81 | Y97: 14855.45 | Z97: 1097.45
A98: P8198 | B98: Sociólogo júnior | C98: mês | D98: 4336.84 | E98: 81.89 | F98: 3551.44 | G98: 16.99 | H98: 736.74 | I98: 0.63 | J98: 27.13 | K98: 0 | L98: 0 | M98: 0 | N98: 0 | O98: 0.16 | P98: 7.01 | Q98: 0 | R98: 0 | S98: 7.24 | T98: 314.2 | U98: 0.23 | V98: 9.98 | W98: 107.14 | X98: 4646.49 | Y98: 8983.33 | Z98: 1095.05
A99: P8199 | B99: Sociólogo pleno | C99: mês | D99: 5782.45 | E99: 81.89 | F99: 4735.25 | G99: 12.74 | H99: 736.74 | I99: 0.47 | J99: 27.13 | K99: 0 | L99: 0 | M99: 0 | N99: 0 | O99: 0.12 | P99: 7.01 | Q99: 0 | R99: 0 | S99: 5.43 | T99: 314.2 | U99: 0.17 | V99: 9.98 | W99: 100.83 | X99: 5830.31 | Y99: 11612.76 | Z99: 1095.06
A100: P8200 | B100: Sociólogo sênior | C100: mês | D100: 8917.47 | E100: 81.89 | F100: 7302.52 | G100: 8.26 | H100: 736.74 | I100: 0.3 | J100: 27.13 | K100: 0 | L100: 0 | M100: 0 | N100: 0 | O100: 0.08 | P100: 7.01 | Q100: 0 | R100: 0 | S100: 3.52 | T100: 314.2 | U100: 0.11 | V100: 9.98 | W100: 94.17 | X100: 8397.57 | Y100: 17315.04 | Z100: 1095.05
A101: P8264 | B101: Motorista de veículo leve - horista | C101: h | D101: 9.82 | E101: 113.26 | F101: 11.12 | G101: 41.11 | H101: 4.04 | I101: 1.84 | J101: 0.18 | K101: 0 | L101: 0 | M101: 6.66 | N101: 0.65 | O101: 0.19 | P101: 0.02 | Q101: 0 | R101: 0 | S101: 17.53 | T101: 1.72 | U101: 0.56 | V101: 0.05 | W101: 181.16 | X101: 17.79 | Y101: 27.61 | Z101: 6.67

Sheet C.G - DNIT
B1: 2025-04-01
B2: Tabela 1 - Custos de veículos
B3: ="Tabela de Preços de Consultoria - mês de referência: "&TEXT(B1,"MMMM")&" de "&TEXT(B1,"AAAA") -> Tabela de Preços de Consultoria - mês de referência: abril de 2025
B4: Item | C4: Código | D4: Tipo | E4: Unidade | F4: Custo unitário (R$ / un) | H4: S
F5: Produtivo | G5: Improdutivo
B6: Veículos | C6: E8889 | D6: Veículo leve - 53 kW (sem motorista) | F6: 36.69 | G6: 6.57
C7: E8890 | D7: Veículo leve - 53 kW (com motorista) | F7: 64.3 | G7: 34.18
C8: E8891 | D8: Veículo leve picape 4 x 4 com capacidade de 1,10 t - 147 kW (sem motorista) | F8: 79.6 | G8: 22.89
C9: E8888 | D9: Veículo tipo van furgão com capacidade de 1,38 t - 100 kW (sem motorista) | F9: 56.35 | G9: 17.21
C10: E8887 | D10: Veículo tipo van furgão com capacidade de 1,38 t - 100 kW (com motorista) | F10: 83.96 | G10: 44.82
B11: Fonte: FGV IBRE
B13: Tabela 2 - Custos de imóveis, mobiliário, cestas de instalações e custos diversos
B14: ="Tabela de Preços de Consultoria - mês de referência: "&TEXT(B1,"MMMM")&" de "&TEXT(B1,"AAAA") -> Tabela de Preços de Consultoria - mês de referência: abril de 2025
B15: Item | C15: Código | D15: Tipo | F15: Unidade | G15: Custo unitário (R$ / un)
B16: Imóveis | C16: B8951 | D16: Comercial (2,55% do CMCC - SINAPI) | F16: m² x mês | G16: 49.4
C17: B8952 | D17: Residencial (2,45% do CMCC - SINAPI) | F17: m² x mês | G17: 47.46
B18: Mobiliário | C18: B8953 | D18: Escritório | F18: ocupante x mês | G18: 467.45
C19: B8954 | D19: Residência | F19: ocupante x mês | G19: 42.11
B20: Cesta das Instalações | C20: B8955 | D20: Laboratório de asfalto | F20: mês | G20: 5952.38
C21: B8956 | D21: Laboratório de concreto | F21: mês | G21: 4642.56
C22: B8957 | D22: Laboratório de solos | F22: mês | G22: 3520.5
C23: B8958 | D23: Topografia | F23: mês | G23: 5150.27
C24: B8961 | D24: Topografia por VANT | F24: mês | G24: 866.31
B25: Custos Diversos | C25: B8959 | D25: Escritório | F25: ocupante x mês | G25: 137.55
C26: B8960 | D26: Residência | F26: ocupante x mês | G26: 204.08
B27: Fonte: FGV IBRE

Sheet AUX - NOTEBOOK
A5: COMPOSIÇÃO DO PREÇO UNITÁRIO MENSAL PARA ALUGUEL DE NOTEBOOK
A8: AQUISIÇÃO DE EQUIPAMENTO | B8: VALOR DA DEPRECIAÇÃO | F8: MANUTENÇÃO | H8: VALOR MENSAL TOTAL (R$)
B9: Tempo de Utilização (Anos) | C9: Meses p/Ano de Uso | D9: Percentual Residual (%) | E9: Depreciação Mensal - R$ | F9: Percentual Anual (%) | G9: Valor Mensal (R$)
A10: =SUM(E13:E18) -> 2599.057143 | B10: 5 | C10: 12 | D10: 0.25 | E10: =ROUND((A10*(100%-D10))/(B10*C10),2) -> 32.49 | F10: 0.05 | G10: =ROUND((F10*A10)/12,2) -> 10.83 | H10: =E10+G10 -> 43.32
A12: Item | B12: Código | C12: Preço Un. | D12: Quantidade | E12: Custo de Aquisição
A13: Notebook 16 GB RAM, 500 GB HDD, Tela 14" e processador 2,8 GHz | B13: Cotação | C13: =J44 -> 2599.057143 | D13: 1 | E13: =C13*D13 -> 2599.057143
A23: Notebook 16 Gb RAM, 500 GB HDD
A41: Cotação 1 | B41: Cotação 2 | C41: Cotação 3 | D41: Cotação 4 | E41: Cotação 5 | F41: Cotação 6 | G41: Cotação 7 | I41: CV= | J41: =_xlfn.STDEV.S(A42:G42)/AVERAGE(A42:G42) -> 0.1660347226
A42: 2990 | B42: 2179 | C42: 2950 | D42: 1999.02 | E42: 2276.39 | F42: 2999.99 | G42: 2799 | I42: Média= | J42: =AVERAGE(A42:G42) -> 2599.057143
I43: Mediana= | J43: =MEDIAN(A42:G42) -> 2799
I44: Menor= | J44: =SMALL(J42:J43,1) -> 2599.057143
A46: Data da Pesquisa: 20/01/2025
A47: https://www.google.com/search?sca_esv=3c12e2eb7b7f70e3&tbm=shop&q=armario+madeira+alto+escritorio&tbs=mr:1,price:1,ppr_min:500,ppr_max:700&sa=X&ved=0ahUKEwim5PCi5ISLAxW-ppUCHQnQD2QQvSsI5QYoAg&biw=1455&bih=695&dpr=1.1

Sheet AUX - GPS
A5: COMPOSIÇÃO DO PREÇO UNITÁRIO AQUISÇÃO GPS PORTÁTIL
A7: Item | B7: Código | C7: Preço Un. | D7: Quantidade | E7: Custo de Aquisição
A8: GPS com receptor GCNSS de alta precisão, 8GB e certificação IP67 | B8: Cotação | C8: =J39 -> 3890.89 | D8: 1 | E8: =C8*D8 -> 3890.89
A18: GPS Portátil, 8Gb, IP67
A36: Cotação 1 | B36: Cotação 2 | C36: Cotação 3 | D36: Cotação 4 | E36: Cotação 5 | F36: Cotação 6 | G36: Cotação 7 | I36: CV= | J36: =_xlfn.STDEV.S(A37:G37)/AVERAGE(A37:G37) -> 0.1756352148
A37: 3199 | B37: 3890.89 | C37: 5008.3 | D37: 3235.42 | E37: 4799 | F37: 4249 | G37: 3786 | I37: Média= | J37: =AVERAGE(A37:G37) -> 4023.944286
I38: Mediana= | J38: =MEDIAN(A37:G37) -> 3890.89
I39: Menor= | J39: =SMALL(J37:J38,1) -> 3890.89
A41: Data da Pesquisa: 20/01/2025
A42: https://www.google.com/search?sca_esv=d31344bcc906bdee&tbm=shop&q=GPS+de+Navega%C3%A7%C3%A3o+portatil+ip67+BeiDou,+GLONASS+e+Galileo&tbs=mr:1,new:1&sa=X&ved=0ahUKEwix6cG9ooeLAxWLALkGHX78HGoQsysI7AgoAA&biw=1455&bih=695&dpr=1.1

Sheet AUX - MOBILIÁRIO
A5: COMPOSIÇÃO DO PREÇO UNITÁRIO MENSAL PARA ALUGUEL DE MOBILIÁRIO E EQUIPAMENTOS DE ESCRITÓRIO
A8: AQUISIÇÃO DE MOBILIÁRIO | B8: VALOR DA DEPRECIAÇÃO | F8: VALOR MENSAL TOTAL (R$)
B9: Tempo de Utilização (Anos) | C9: Meses p/Ano de Uso | D9: Percentual Residual (%) | E9: Depreciação Mensal - R$
A10: =SUM(E13:E18) -> 12844.97 | B10: 5 | C10: 12 | D10: 0.2 | E10: =ROUND((A10*(100%-D10))/(B10*C10),2) -> 171.27 | F10: =E10 -> 171.27
A12: Item | B12: Código | C12: Preço Un. | D12: Quantidade | E12: Custo de Aquisição
A13: Mesa de Escritório | B13: 11548/ORSE | C13: 345 | D13: 16 | E13: =C13*D13 -> 5520
A14: Cadeira Giratória | B14: 11534/ORSE | C14: 280 | D14: 20 | E14: =C14*D14 -> 5600
A15: Armário Escritório | B15: Cotação | C15: =G43 -> 574.99 | D15: 3 | E15: =C15*D15 -> 1724.97
A16: Aparelho Telefone | B16: Cotação | C16: =G69 -> 151.96 | D16: 0 | E16: =C16*D16 -> 0
A23: Armário para Escritório
A40: Cotação 1 | B40: Cotação 2 | C40: Cotação 3 | D40: Cotação 4 | E40: Cotação 5 | F40: CV= | G40: =_xlfn.STDEV.S(A41:E41)/AVERAGE(A41:A41) -> 0.06280088684
A41: 541.5 | B41: 620.76 | C41: 541.5 | D41: 591.2 | E41: 579.99 | F41: Média= | G41: =AVERAGE(A41:E41) -> 574.99
F42: Mediana= | G42: =MEDIAN(A41:E41) -> 579.99
F43: Menor= | G43: =SMALL(G41:G42,1) -> 574.99
A45: Data da Pesquisa: 20/01/2025
A46: https://www.google.com/search?sca_esv=3c12e2eb7b7f70e3&tbm=shop&q=armario+madeira+alto+escritorio&tbs=mr:1,price:1,ppr_min:500,ppr_max:700&sa=X&ved=0ahUKEwim5PCi5ISLAxW-ppUCHQnQD2QQvSsI5QYoAg&biw=1455&bih=695&dpr=1.1
A47: Aparelho Telefone
A66: Cotação 1 | B66: Cotação 2 | C66: Cotação 3 | D66: Cotação 4 | E66: Cotação 5 | F66: CV= | G66: =_xlfn.STDEV.S(A67:E67)/AVERAGE(A67:A67) -> 0.1742305328
A67: 122 | B67: 159.99 | C67: 138.88 | D67: 175 | E67: 163.93 | F67: Média= | G67: =AVERAGE(A67:E67) -> 151.96
F68: Mediana= | G68: =MEDIAN(A67:E67) -> 159.99
F69: Menor= | G69: =SMALL(G67:G68,1) -> 151.96
A70: Data da Pesquisa: 20/01/2025
A72: https://www.google.com/search?sca_esv=3c12e2eb7b7f70e3&tbm=shop&q=telefone+com+identificador+de+chamadas&tbs=mr:1,price:1,ppr_min:150,ppr_max:300&sa=X&ved=0ahUKEwjRubuz9ISLAxUtBbkGHaiyFkQQvSsIrwkoAQ&biw=1455&bih=695&dpr=1.1

Sheet AUX - IMPRESSORA
A5: COMPOSIÇÃO DO PREÇO UNITÁRIO MENSAL PARA ALUGUEL DE IMPRESSORA
A8: AQUISIÇÃO DE EQUIPAMENTO | B8: VALOR DA DEPRECIAÇÃO | F8: MANUTENÇÃO | H8: VALOR MENSAL TOTAL (R$)
B9: Tempo de Utilização (Anos) | C9: Meses p/Ano de Uso | D9: Percentual Residual (%) | E9: Depreciação Mensal - R$ | F9: Percentual Anual (%) | G9: Valor Mensal (R$)
A10: =SUM(E13:E18) -> 1528.228 | B10: 5 | C10: 12 | D10: 0.25 | E10: =ROUND((A10*(100%-D10))/(B10*C10),2) -> 19.1 | F10: 0.05 | G10: =ROUND((F10*A10)/12,2) -> 6.37 | H10: =E10+G10 -> 25.47
A12: Item | B12: Código | C12: Preço Un. | D12: Quantidade | E12: Custo de Aquisição
A13: Impressora Laser Colorida Multifuncional | B13: Cotação | C13: =G43 -> 1528.228 | D13: 1 | E13: =C13*D13 -> 1528.228
A23: Impressora Laser Multifuncional
F40: CV= | G40: =_xlfn.STDEV.S(A42:E42)/AVERAGE(A42:E42) -> 0.131051297
A41: Cotação 1 | B41: Cotação 2 | C41: Cotação 3 | D41: Cotação 4 | E41: Cotação 5 | F41: Média= | G41: =AVERAGE(A42:E42) -> 1528.228
A42: 1349.1 | B42: 1597 | C42: 1299 | D42: 1779.94 | E42: 1616.1 | F42: Mediana= | G42: =MEDIAN(A42:E42) -> 1597
F43: Menor= | G43: =SMALL(G41:G42,1) -> 1528.228
A46: Data da Pesquisa: 20/01/2025
A47: https://www.google.com/search?sca_esv=3c12e2eb7b7f70e3&tbm=shop&q=armario+madeira+alto+escritorio&tbs=mr:1,price:1,ppr_min:500,ppr_max:700&sa=X&ved=0ahUKEwim5PCi5ISLAxW-ppUCHQnQD2QQvSsI5QYoAg&biw=1455&bih=695&dpr=1.1
